Workbook

Sheet NOTES
A2: The following changes have been made for the tariff approval model to apply to the 2021 6-month extension period
A4: Issue | B4: Location | C4: Item | D4: Comment
A6: 1 | B6: '6 month formulae' | C6: Price control formulae | D6: Added formulae to apply to the 6-month extension
A8: =A6+1 -> 2 | B8: 'Prop2020TSSComp' | C8: Comparison to previous year indicative prices | D8: Removed worksheet as no indicative prices for 2021 to compare to
A10: =A8+1 -> 3 | B10: 'Indicative prices for 2021' | C10: Indicative prices for next year | D10: Removed worksheet as no indicative prices required for 2021/22 year
A12: =A10+1 -> 4 | B12: 'JS cost audit template' | C12: t-2 jurisdictional scheme costs | D12: Removed worksheet as no true-up to occur in 6-month extension
B13: 'TUOS cost audit template' | C13: t-2 designated pricing proposal charges | D13: Removed worksheet as no true-up to occur in 6-month extension
A15: =A12+1 -> 5 | B15: 'Est2019TransRev' | C15: Calculating t-1 estimates for unders/overs account | D15: Removed worksheet as t-1 estimates not needed in 6-month extension
B16: 'Est2019JSRev' | C16: Calculating t-1 estimates for unders/overs account | D16: Removed worksheet as t-1 estimates not needed in 6-month extension
A18: =A15+1 -> 6 | B18: 'Unmetered supply' | C18: Type 7 metering fees | D18: Renamed for relevant year
B19: 'Prop2021DistTar' | C19: Proposed 2021 distribution tariffs | D19: Renamed for relevant year
B20: '2021DistRevCapForm' | C20: 2021 distribution revenue cap | D20: Renamed for relevant year
B21: '2021DistTarRebalCont' | C21: 2021 distribution side constraints | D21: Renamed for relevant year
B22: 'Est2020DistRev' | C22: Estimated 2020 distribution revenue | D22: Renamed for relevant year
B23: 'Prop2021TransTar' | C23: Proposed 2021 transmission tariffs | D23: Renamed for relevant year
B24: '2021TransRevCont' | C24: 2021 transmission revenue cap | D24: Renamed for relevant year
B25: 'Prop2021JSTar' | C25: Proposed 2021 jurisdictional scheme tariffs | D25: Renamed for relevant year
B26: '2021JSRevCont' | C26: 2021 jurisdictional scheme revenue cap | D26: Renamed for relevant year
A28: =A18+1 -> 7 | B28: 'Model update'!A34:N299 | C28: Inputs for control formulae | D28: Removed all 2016–20 inputs for control formulae as not used in 6-month extension
A30: =A28+1 -> 8 | B30: 'Model update'!C5 | C30: Regulatory year | D30: Changed to 2021
A32: =A30+1 -> 9 | B32: 'Model update'!A26:F26 | C32: CPI data | D32: Expanded CPI data to include 2021
A34: =A32+1 -> 10 | B34: 'Model update'!C3 | C34: Business name | D34: Updated for relevant business name
A36: =A34+1 -> 11 | B36: 'Model update'!A34:D36 | C36: X-factor for ANS | D36: Added 2021 X-factor for use in escalating ANS price caps
A38: =A36+1 -> 12 | B38: Metering!H26:I28 | C38: Side constraint factors | D38: Removed side constraint factors not applied for 6-month extension.
B39: Metering!I25 | C39: CPI | D39: Updated CPI reference to 'Model update' sheet
A41: =A38+1 -> 13 | B41: Metering!B29:D39 | C41: Table 2 - Total annual revenue calculations | D41: Removed calculations for factors not applied in 6-month extension
C42: Table 3 - Adjusted annual revenue calculations | D42: Removed calculations for escalations not applied in 6-month extension
A44: =A41+1 -> 14 | B44: Metering!B44:F89 | C44: Table 4 - Metering service recovery arrangements | D44: Removed table as unders/overs not applied in 6-month extension
C45: Table 5 - Metering services unders/overs account | D45: Removed table as unders/overs not applied in 6-month extension
C46: Calculation of estimated metering revenue for t-1 | D46: Removed table as unders/overs not applied in 6-month extension
A48: =A44+1 -> 15 | B48: Metering!E22:E33 | C48: t-1 data for calculating revenue cap | D48: Removed t-1 data as not used for calculating revenue cap for 6-month extension
A50: =A48+1 -> 16 | B50: Metering!D26 | C50: Revenue cap | D50: Formula replaced with revenue directly from 6-month extension PTRM
A52: =A50+1 -> 17 | B52: 'Unmetered supply'!B19:H27 | C52: Revenue constraint on unmetered supply | D52: Removed demonstration of revenue constraint as not relevant for 6-month extension
A54: =A52+1 -> 18 | B54: 'Unmetered supply'!C7:E7 | C54: t-1 type 7 prices | D54: Updated for 2020 prices
B55: 'Unmetered supply'!K7:M7 | C55: t-2 type 7 quantities | D55: Updated for 2019 quantities
A57: =A54+1 -> 19 | B57: '2021DistRevCapForm'!B13:C38 | C57: Table 2 - Total annual revenue calculations | D57: Removed calculations for factors not applied in 6-month extension
C58: Table 3 - Adjusted annual revenue calculations | D58: Removed calculations for escalations not applied in 6-month extension
C59: Table 4 - B factor calculations | D59: Removed calculations for factors not applied in 6-month extension
C60: Table 5 - License fee calculations | D60: Removed calculations for factors not applied in 6-month extension
A62: =A57+1 -> 20 | B62: '2021DistRevCapForm'!B42:E77 | C62: Table 6 - DUoS recovery arrangements | D62: Removed table as unders/overs not applied in 6-month extension
C63: Table 7 - DUoS unders and overs account | D63: Removed table as unders/overs not applied in 6-month extension
A65: =A62+1 -> 21 | B65: '2021DistRevCapForm'!H6:H38 | C65: t-1 data for calculating revenue cap | D65: Removed t-1 data as not used for calculating revenue cap for 6-month extension
A67: =A65+1 -> 22 | B67: '2021DistRevCapForm'!C10 | C67: Revenue cap | D67: Formula replaced with revenue directly from 6-month extension PTRM
A69: =A67+1 -> 23 | B69: '2021DistTarRebalCont'!B9:C13 | C69: Side constraint factors | D69: Removed side constraint factors not applied for 6-month extension.
B70: '2021DistTarRebalCont'!C8 | C70: CPI | D70: Updated CPI reference to 'Model update' sheet
A72: =A69+1 -> 24 | B72: Est2020DistRev!D6:P54 | C72: t-1 prices | D72: Updated t-1 prices for approved 2020 prices
A74: =A72+1 -> 25 | B74: '2021TransRevCont'!B13:C17 | C74: Table 2 - Total DPPC related payments for year t | D74: Removed calculations for factors not applied in 6-month extension
B75: '2021TransRevCont'!C10 | C75: Revenue cap | D75: Updated formula to source total costs from Table 3
A77: =A74+1 -> 26 | B77: '2021TransRevCont'!B29:E66 | C77: Table 4 - DPPC recovery arrangements | D77: Removed table as unders/overs not applied in 6-month extension
C78: Table 5 - DPPC unders and overs account | D78: Removed table as unders/overs not applied in 6-month extension
A80: =A77+1 -> 27 | B80: '2021JSRevCont'!B13:C17 | C80: Table 2 - Total JSA related payments for year t | D80: Removed calculations for factors not applied in 6-month extension
B81: '2021JSRevCont'!C10 | C81: Revenue cap | D81: Updated formula to source total costs from Table 3
A83: =A80+1 -> 28 | B83: '2021JSRevCont'!B27:E62 | C83: Table 4 - JSA recovery arrangements | D83: Removed table as unders/overs not applied in 6-month extension
C84: Table 5 - JSA unders and overs account | D84: Removed table as unders/overs not applied in 6-month extension
A86: =A83+1 -> 29 | B86: 'Meteing exit fees' | C86: Worksheet | D86: Added worksheet for calculating ACS price caps
B87: 'Public lighting' | C87: Worksheet | D87: Added worksheet for calculating ACS price caps
B88: 'ANS' | C88: Worksheet | D88: Added worksheet for calculating ACS price caps

Sheet Formulae
B2: DUoS
B3: Figure 14.1 Revenue cap formulae
B4: (1) | H4: i=1,..,n and j=1,..,m and t=1,..,5
B5: (2) | H5: t = 1,2,…,5
B6: (3) | H6: t = 1
B7: (4) | H7: t = 2,…,5
B9: where;
C10: is the total annual revenue in year t.
D11: is the price of component 'j' of tariff 'i' in year t.
D12: is the forecast quantity of component 'j' of tariff 'i' in year t.
C13: is the adjusted annual smoothed revenue requirement for year t.
D14: is the annual adjustment f–factor scheme amount in year t. This amount will be calculated as per the method set out in the relevant f–factor scheme.
D15: is the sum of:
B16: · the final carryover amount from the application of the DMIS from the 2011–15 regulatory control period. This amount will be calculated using the method set out in the DMIS and will be deducted from/added to allowed revenue in the 2017 pricing proposal.
D17: is the sum of:
B18: · the recovery of license fee charges by the Victorian Essential Services Commission indexed by one and a half years of interest, calculated using the following method:
B20: where:
C21: are the licence fees paid by DNSP to the Victorian Essential Services Commission in the financial year ending in June of regulatory year t–1,
C22: is the approved nominal weighted average cost of capital (WACC) for the relevant regulatory year using the following method:
B25: · any under or over recovery of actual revenue collected through DUoS charges in regulatory year t–2 as calculated using the method in appendix A,
B26: · the AER approved pass through amounts (positive or negative) with respect to regulatory year t.
C27: is the annual smoothed revenue requirement as stated in the Post Tax Revenue Model (PTRM) for year t (when year t is the first year of the 2016–20 regulatory control period).[43]
C28: is the s‑factor determined in accordance with the service target performance incentive scheme (STPIS) for regulatory year t.[44]
C29: is the annual percentage change in the ABS CPI All Groups, Weighted Average of Eight Capital Cities[45] from the June quarter in year t–2 to the June quarter in year t–1, calculated using the following method :
B30: The ABS CPI All Groups, Weighted Average of Eight Capital Cities for the June quarter in regulatory year t–1
B31: divided by
B32: The ABS CPI All Groups, Weighted Average of Eight Capital Cities for the June quarter in regulatory year t–2
B33: minus one.
B34: For example, for the 2017 regulatory year, t–2 is June quarter 2015 and t–1 is June quarter 2016 and for the 2018 regulatory year, t–2 is June quarter 2016 and t–1 is June quarter 2017 and so on.
C35: is the X factor for each year of the 2016–20 regulatory control period as determined in the PTRM, and annually revised for the return on debt update in accordance with the formula specified in attachment 3—rate of return—calculated for the relevant year.
B38: [43] | C38: Our final F&A stated that if necessary an adjustment for inflation may be required to the annual smoothed revenue requirement for year t. However, as the annual smoothed revenue requirement for year t as stated in our preliminary decision PTRM is in nominal dollars there is no need to adjust it for inflation. This approach is consistent with past regulatory practice.
B39: [44] | C39: For the first two regulatory years of the 2016–20 regulatory control period, the value of St is to be adjusted to account for the change in revenue requirements between the regulatory control periods, as explained in attachment 11. In the formulas in the STPIS, the AR(t+1) is equivalent to ARt in this formula. Calculations of the S factor adjustment are to be made accordingly.
B40: [45] | C40: If the ABS does not or ceases to publish the index, then CPI will mean an index which the AER considers is the best available alternative index
B44: Figure 14.2 Side constraints [46]
C50: where each tariff class has "n" tariffs, with each up to "m" components, and where:
D51: is the proposed price for component ‘j’ of tariff 'i' for year t.
C52: is the price charged for component ‘j’ of tariff 'i' in year t–1.
D53: is the forecast quantity of component ‘j’ of tariff 'i' in year t.
C54: is the annual percentage change in the ABS CPI All Groups, Weighted Average of Eight Capital Cities[4] from the June quarter in year t–2 to the June quarter in year t–1, calculated using the following method :
C55: The ABS CPI All Groups, Weighted Average of Eight Capital Cities[47] for the June quarter in regulatory year t–1
C56: divided by
C57: The ABS CPI All Groups, Weighted Average of Eight Capital Cities for the June quarter in regulatory year t–2
C58: minus one.
B59: For example, for the 2017 regulatory year, t–2 is June quarter 2015 and t–1 is June quarter 2016 and for the 2018 regulatory year, t–2 is June quarter 2016 and t–1 is June quarter 2017 and so on.
D60: is the X factor for each year of the 2016–20 regulatory control period as determined in the PTRM, and annually revised for the return on debt update in accordance with the formula specified in attachment 3—rate of return—calculated for the relevant year. If X>0, then X will be set equal to zero for the purposes of the side constraint formula.
C61: is the s‑factor determined in accordance with the STPIS for regulatory year t.[5]
D62: is the annual percentage change from the f–factor scheme amount in year t. This amount will be calculated as per the method set out in attachment 19—f–factor scheme.
D63: is the annual percentage change from the final carryover amount from the application of the DMIS from the 2011–15 regulatory control period. This amount will be calculated using the method set out in the DMIS and will be deducted from/added to allowed revenue in the 2017 pricing proposal.
D64: is annual percentage change from the sum of:
B65: · the recovery of license fee charges by the Victorian Essential Services Commission indexed by one and a half years of interest, calculated using the following method:
B67: where:
B68: are the licence fees paid byDNSP to the Victorian Essential Services Commission in the financial year ending in June of regulatory year t–1,
C69: is the approved nominal weighted average cost of capital (WACC) for the relevant regulatory year using the following method:
B72: where the
B73: is as set out in our final decision PTRM and updated annually
B74: · the AER approved pass through amounts (positive or negative) with respect to regulatory year t.
B75: With the exception of the CPI, X factor and S factor, the percentage for each of the other factors above can be calculated by dividing the incremental revenues (as used in the total annual revenue formula) for each factor by the expected revenues for regulatory year t–1 (based on the prices in year t–1 multiplied by the forecast quantities for year t).
B77: [46] | C77: All parameters are in nominal terms unless otherwise specified.
B78: [47] | C78: If the ABS does not or ceases to publish the index, then CPI will mean an index which the AER considers is the best available alternative index.
H83: Table 14.1 | I83: Example calculation of DUoS unders and overs account ($'000, nominal)
I84: Year t–2 | J84: Year t–1 | K84: Year t
I85: (actual) | J85: (estimate) | K85: (forecast)
H86: (A) Revenue from DUoS charges | I86: 46 779 | J86: 40 269 | K86: 39 510
H87: (B) Less TAR for regulatory year = | I87: 43 039 | J87: 41 427 | K87: 44 429
H88: + Adjusted annual smoothed revenues (AARt) | I88: 40 189 | J88: 41 393 | K88: 44 393
H89: + f–factor scheme amount (It) | I89: –12 | J89: 10 | K89: 14
H90: + DMIS carryover amount (Tt) | I90: 1013 | J90: 0 | K90: 0
H91: + Annual adjustments (Bt)a = | I91: 1849 | J91: 24 | K91: 22
H92: + License fee recovery | I92: 25 | J92: 24 | K92: 22
H93: + Approved pass through amounts | I93: 1824 | J93: 0 | K93: 0
H95: (A minus B) Under/over recovery of revenue for regulatory year | I95: 3740 | J95: –1158 | K95: –4919b
H97: DUoS unders and overs account
H98: Nominal WACC (per cent) | I98: 0.05 | J98: 0.055 | K98: 0.06
H99: Opening balance | I99: 1737 | J99: 5656c | K99: 4778
H100: Interest on opening balance | I100: 87 | J100: 311 | K100: 287
H101: Under/over recovery of revenue for regulatory year | I101: 3740 | J101: –1158 | K101: –4919b
H102: Interest on under/over recovery for regulatory year | I102: 92 | J102: –31 | K102: –145
H103: Closing balance | I103: 5656 | J103: 4778 | K103: 0d
G104: Notes: | H104: (a) Bt parameter calculations in the DUoS unders and overs account exclude approved DUoS revenue under/over recovery for regulatory year.
H105: (b) Approved DUoS revenue under/over recovery for regulatory year t.
H106: (c) Opening balance is the previous year's closing balance.
H107: (d) The DNSP is expected to achieve a closing balance as close to zero as practicable in its DUoS unders and overs account in each forecast year in its annual pricing proposals in the 2016–20 regulatory control period.
H113: Table 14.2 | I113: Example calculation of designated pricing proposal charges unders and overs account ($'000, nominal)
I114: Year t–2 | J114: Year t–1 | K114: Year t
I115: (actual) | J115: (estimate) | K115: (forecast)
H116: (A) Revenue from designated pricing proposal charges (DPPC) | I116: 40 077 | J116: 34 944 | K116: 36 609
H117: (B) Less DPPC related payments for regulatory year = | I117: 34 365 | J117: 38 734 | K117: 39 200
H118: + DPPC charges to be paid to TNSP | I118: 33 672 | J118: 37 933 | K118: 38 000
H119: + Avoided TUoS/DPPC payments | I119: 572 | J119: 734 | K119: 800
H120: + Inter–distributor payments | I120: 121 | J120: 67 | K120: 400
H122: (A minus B) Under/over recovery of revenue for regulatory year | I122: 5712 | J122: –3790 | K122: –2540a
H124: DPPC unders and overs account
H125: Nominal WACC (per cent) | I125: 0.05 | J125: 0.055 | K125: 0.06
H126: Opening balance | I126: 167 | J126: 6028b | K126: 2467
H127: Interest on opening balance | I127: 8 | J127: 332 | K127: 148
H128: Under/over recovery of revenue for regulatory year | I128: 5712 | J128: –3790 | K128: –2540a
H129: Interest on under/over recovery for regulatory year | I129: 141 | J129: –103 | K129: –75
H130: Closing balance | I130: 6028 | J130: 2467 | K130: 0c
G131: Notes: | H131: (a) Approved DPPC revenue under/over recovery for regulatory year t.
H132: (b) Opening balance is the previous year's closing balance.
H133: (c)The DNSP is expected to achieve a closing balance as close to zero as practicable in its DPPC unders and overs account in each forecast year in its annual pricing proposals in the 2016–20 regulatory control period.
H139: Table 14.3 Example calculation of jurisdictional scheme amounts unders and overs account ($'000, nominal)
I140: Year t–2 | J140: Year t–1 | K140: Year t
I141: (actual) | J141: (estimate) | K141: (forecast)
H142: (A) Revenue from jurisdictional schemes | I142: 19 777 | J142: 23 121 | K142: 26 965
H143: (B) Less jurisdictional scheme payments for regulatory year = | I143: 20 272 | J143: 20 959 | K143: 28 641
H144: + Jurisdictional scheme 1 payments | I144: 14 159 | J144: 13 954 | K144: 13 961
H145: + Jurisdictional scheme 2 payments | I145: 6113 | J145: 7005 | K145: 14 680
H147: (A minus B) Under/over recovery of revenue for regulatory year | I147: –495 | J147: 2162 | K147: –1676a
H149: Jurisdictional scheme amount unders and overs account
H150: Nominal WACC (per cent) | I150: 0.05 | J150: 0.055 | K150: 0.06
H151: Opening balance | I151: –52 | J151: –562b | K151: 1628
H152: Interest on opening balance | I152: –3 | J152: –31 | K152: 98
H153: Under/over recovery of revenue for regulatory year | I153: –495 | J153: 2162 | K153: –1676a
H154: Interest on under/over recovery for regulatory year | I154: –12 | J154: 59 | K154: –50
H155: Closing balance | I155: –562 | J155: 1628 | K155: 0c
G156: Notes: | H156: (a) Approved jurisdictional scheme amounts revenue under/over recovery for regulatory year t.
H157: (b) Opening balance is the previous year's closing balance.
H158: (c) The DNSP is expected to achieve a closing balance as close to zero as practicable in its jurisdictional scheme amount unders and overs account in each forecast year in its annual pricing proposals in the 2016–20 regulatory control period.
B166: Metering
B167: Figure 16.3 | C167: Annual metering charges revenue cap formula
A168: (1) | H168: i=1,..,n and j=1,..,m and t=1,..,5
A170: (2) | H170: t = 1,2,…,5
A172: (3) | H172: t = 1,2,…,5
B175: where;
C176: is the total annual revenue for annual metering charges in year t.
E177: is the price of component 'j' of metering service 'i' in year t.
E178: is the forecast quantity of component 'j' of metering service 'i' in year t.
D179: is the annual revenue requirement for year t. When year t is the first year of the 2016–20 regulatory control period,
D180: is the annual revenue requirement in the annual metering charges Post Tax Revenue Model (PTRM) for year t.
E181: is equal to zero for all years except 2017 and is a once off adjustment to 2017 charges for the unders and overs recoveries relating to Advanced Metering Infrastructure actual revenues and actual costs incurred in 2014 and 2015.
E182: is the sum of annual adjustment factors in year t as calculated in the unders and overs account in appendix C.
D184: is the annual revenue requirement for year t–1.
C185: is the annual percentage change in the ABS CPI All Groups, Weighted Average of Eight Capital Cities[39] from the June quarter in year t–2 to the June quarter in year t–1, calculated using the following method:
B186: The ABS CPI All Groups, Weighted Average of Eight Capital Cities for the June quarter in regulatory year t–1
B187: divided by
B188: The ABS CPI All Groups, Weighted Average of Eight Capital Cities for the June quarter in regulatory year t–2
B189: minus one.
B190: For example, for the 2017 regulatory year, t–2 is June quarter 2015 and t–1 is June quarter 2016 and for the 2018 regulatory year, t–2 is June quarter 2016 and t–1 is June quarter 2017 and so on.
D191: is the X factor for each year of the 2016–20 regulatory control period as determined in the annual metering charges PTRM.
B194: [39] | C194: If the ABS does not or ceases to publish the index, then CPI will mean an index which the AER considers is the best available alternative index
B199: Figure 16.4 Side constraints
B201: where:
E202: is the price of annual metering charges service 'i' in year t.
D203: is the price of annual metering charges service 'i' in year t–1.
C204: is the annual percentage change in the ABS CPI All Groups, Weighted Average of Eight Capital Cities from the June quarter in year t–2 to the June quarter in year t–1, calculated using the following method:
B205: The ABS CPI All Groups, Weighted Average of Eight Capital Cities[40] for the June quarter in regulatory year t–1
B206: divided by
B207: The ABS CPI All Groups, Weighted Average of Eight Capital Cities for the June quarter in regulatory year t–2
B208: minus one.
B209: For example, for the 2017 regulatory year, t–2 is June quarter 2015 and t–1 is June quarter 2016 and for the 2018 regulatory year, t–2 is June quarter 2016 and t–1 is June quarter 2017 and so on.
D210: is the X factor for each year of the 2016–20 regulatory control period as determined in the annual metering charges PTRM.
E211: is the annual percentage change for the unders and overs recoveries relating to Advanced Metering Infrastructure actual revenues and actual costs incurred in 2014 and 2015. It is equal to zero for all years except 2017 and is a once off adjustment to 2017 charges.
E212: is the annual percentage change from the sum of annual adjustment factors in year t as calculated in the unders and overs account in appendix C.
B213: With the exception of the CPI and the X factor, the percentage for each of the other factors above can be calculated by dividing the incremental revenues (as used in the total annual revenue formula) for each factor by the expected revenues for regulatory year t–1 (based on the prices in year t–1 multiplied by the forecast quantities for year t).
B215: [40] | C215: If the ABS does not or ceases to publish the index, then CPI will mean an index which the AER considers is the best available alternative index.
H220: Table 16.xx | I220: Example calculation of annual metering charges unders and overs account ($'000, nominal)
I221: Year t–2 | J221: Year t–1 | K221: Year t
I222: (actual) | J222: (estimate) | K222: (forecast)
H223: (A) Revenue from annual metering charges | I223: 8 449 | J223: 7 389 | K223: 6 460
H224: (B) Less TARM for regulatory year = | I224: 7 366 | J224: 7 422 | K224: 7 573
H225: + Annual revenue requirement (ARt) | I225: 7 349 | J225: 7 412 | K225: 7 559
H226: + T factor (Tt) – true‑ups relating to the AMI–Order in Council | I226: 17 | J226: 10 | K226: 14
H228: (A minus B) Under/over recovery of revenue for regulatory year | I228: 1 083 | J228: –33 | K228: –1 113a
H230: Annual metering charges unders and overs account
H231: Nominal WACC (per cent) | I231: 0.05 | J231: 0.055 | K231: 0.06
H232: Opening balance | I232: –50 | J232: 1 057b | K232: 1 081
H233: Interest on opening balance | I233: –3 | J233: 58 | K233: 65
H234: Under/over recovery of revenue for regulatory year | I234: 1 083 | J234: –33 | K234: –1 113b
H235: Interest on under/over recovery for regulatory year | I235: 27 | J235: –1 | K235: –33
H236: Closing balance | I236: 1 057 | J236: 1 081 | K236: 0c
G237: Notes: | H237: (a) Approved annual metering charges revenue under/over recovery for regulatory year t. This is the Bt parameter in the annual metering charges revenue cap formula.
H238: (b) Opening balance is the previous year's closing balance.
H239: (c) The DNSP is expected to achieve a closing balance as close to zero as practicable in its annual metering charges unders and overs account in each forecast year in its annual pricing proposals in the 2016–20 regulatory control period.

Sheet 6 month formulae
H4: The revenue cap to be applies to standard control services will be as set in the amended PTRM, with no other factors applied.*
I5: * AER currently considering AusNet's proposal to apply a cost pass-through for the 2019/20 bushfire season.
I6: If required, the AER would amend the standard control services revenue cap control mechanism formula (i.e. TAR=AR+C).
H10: The revenue cap to be applied to revenue-capped type 5 and 6 (inc. smart metering) services will be as set in the amended metering PTRM, with no other factors applied.
H16: The side constraint mechanism to apply to standard control services and metering services will be just CPI and the 2% allowance as there is no X-factor to apply, and no other adjustments need to be discounted from the permissable percentage.*
I17: * AER currently considering AusNet's proposal to apply a cost pass-through for the 2019/20 bushfire season.
I18: If required, the AER would amend the side constraints formula to remove the CPI movement from the price movements. (i.e. permissable percentage = (1+change in CPI)x(1+2%)+change in C)
I20: NB - no adjustment to be made to make 12 month and 6 month period comparable
H25: The price cap to be applied to type 7 metering services will be escalated for CPI
H29: The price cap to apply to ancillary network services will be escalated for CPI and x-factor.
H30: X-factor to apply will reflect updated labour escalation forecast for the extended period in line with the calculation of the 2021–26 draft decision, being half of the forecast yearly change in the State utilities sector real wages for Vic in 21/22.
H33: The price cap to apply to metering exit fees and public lighting services will not be escalated.
H39: CPI definition to remain as per the 2015–20 determination.

Sheet Model update
A3: Tariff Approval Template for | C3: AusNet Services
A5: calendar year commencing | C5: 2021
A7: t | B7: = | C7: =C5 -> 2021
A8: t-1 | B8: = | C8: =C7-1 -> 2020
A9: t-2 | B9: = | C9: 2019
A10: t-3 | B10: = | C10: 2018
A11: t-4 | B11: = | C11: 2017
A13: Please fill in yellow highlighted cells where appropriate
A15: CPI | B15: The ABS changed the index reference base in September 2012 from 1989-90 to 2011-12.
A16: CPI Index Sept 2011 | C16: 99.8
A17: CPI Index Sept 2012 | C17: 101.8 | E17: CPI 2013 | F17: =C17/C16-1 -> 0.02004008016
A18: CPI Index Sept 2013 | C18: 104 | E18: CPI 2014 | F18: =C18/C17-1 -> 0.02161100196
A19: CPI Index Sept 2014 | C19: 106.4 | E19: CPI 2015 | F19: =C19/C18-1 -> 0.02307692308
A20: CPI Index Sept 2015 | C20: 108 | E20: CPI 2016 | F20: =C20/C19-1 -> 0.01503759398
A21: CPI Index June 2015 | C21: 107.5
A22: CPI Index June 2016 | C22: 108.6 | E22: CPI 2017 | F22: =IF(OR(C21="",C22=""),0,C22/C21-1) -> 0.01023255814
A23: CPI Index June 2017 | C23: 110.7 | E23: CPI 2018 | F23: =IF(OR(C22="",C23=""),0,C23/C22-1) -> 0.01933701657
A24: CPI Index June 2018 | C24: 113 | E24: CPI 2019 | F24: 0.02077687444
A25: CPI Index June 2019 | C25: 114.8 | E25: CPI 2020 | F25: 0.01592920354
A26: CPI Index June 2020 | C26: 114.4 | E26: CPI 2021 | F26: =IF(OR(C25="",C26=""),0,C26/C25-1) -> -0.003484320557
A28: ="CPI " &$C$9 -> CPI 2019 | C28: =VLOOKUP(A28,E$17:F$25,2,FALSE) -> 0.02077687444 | D28: (t-2)
A29: ="CPI " &$C$8 -> CPI 2020 | C29: =VLOOKUP(A29,E$17:F$25,2,FALSE) -> 0.01592920354 | D29: (t-1)
A30: ="CPI " &$C$5 -> CPI 2021 | C30: =VLOOKUP(A30,E$17:F$26,2,FALSE) -> -0.003484320557 | D30: (t)
A35: 2021 X-factor for ANS | C35: -0.001192676717

Sheet Metering
B1: ="Tariff Approval - "&'Model update'!C3 -> Tariff Approval - AusNet Services
B3: ="PROPOSED "&'Model update'!$C$5&" METERING TARIFFS AND REVENUE" -> PROPOSED 2021 METERING TARIFFS AND REVENUE
D5: ="Proposed Metering Tariffs P(t) for " &'Model update'!$C$5 -> Proposed Metering Tariffs P(t) for 2021 | E5: ="Current Metering Tariffs P(t-1) for" &'Model update'!$C$8 -> Current Metering Tariffs P(t-1) for2020 | F5: ="Forecast Quantities (Qt) for "&'Model update'!$C$5 -> Forecast Quantities (Qt) for 2021 | H5: ="Forecast Revenue (Pt "&'Model update'!$C$5&")*(Qt " &'Model update'!$C$5&")" -> Forecast Revenue (Pt 2021)*(Qt 2021) | I5: ="Revenue (Pt-1 "&'Model update'!$C$8&")*(Qt " &'Model update'!$C$5&")" -> Revenue (Pt-1 2020)*(Qt 2021) | K5: Movement | L5: Side Constraint
B6: Proposed tariff | C6: Existing tariff | D6: PropTar $/Cust/year | E6: ExistTar $/Cust/year | F6: FcastVol Cust # | H6: PropRev Fixed | I6: ExistRev Fixed
B8: Single phase single element | C8: Single phase single element | D8: 29.8 | E8: 51.4 | F8: 415727 | H8: =D8*F8 -> 12388664.6 | I8: =E8*F8 -> 21368367.8 | K8: =IFERROR(H8/I8,"") -> 0.579766537 | L8: =IF(B8="","",IF(K8<$I$30,"COMPLIANT","BREACHED")) -> COMPLIANT
B9: Single phase, two element with contactor | C9: Single phase, two element with contactor | D9: 35.05 | E9: 60.6 | F9: 224372.25 | H9: 7864247.362 | I9: 13596958.35 | K9: =IFERROR(H9/I9,"") -> 0.5783828383 | L9: COMPLIANT
B10: Multiphase | C10: Multiphase | D10: 42.22 | E10: 73 | F10: 68612 | H10: 2896798.64 | I10: 5008676 | K10: 0.5783561644 | L10: COMPLIANT
B11: Multiphase, direct connected with contactor | C11: Multiphase, direct connected with contactor | D11: 46.825 | E11: 80.85 | F11: 67887.25 | H11: 3178820.481 | I11: 5488684.162 | K11: 0.5791589363 | L11: COMPLIANT
B12: Multiphase Current Transformer connected | C12: Multiphase Current Transformer connected | D12: 60.175 | E12: 103.95 | F12: 4581.5 | H12: 275691.7625 | I12: 476246.925 | K12: 0.5788840789 | L12: COMPLIANT
H13: 0 | I13: 0
H14: 0 | I14: 0
H15: 0 | I15: 0
H16: 0 | I16: 0
H17: =SUM(H7:H16) -> 26604222.85 | I17: =SUM(I7:I16) -> 45938933.24
B22: Year (t) | D22: ='Model update'!C5 -> 2021
B24: Table 1- Compliance with AER Final Determination Total Metering Annual Revenue | H24: Metering tariff rebalancing control
B25: Revenue from Metering charges for year t | D25: =H17 -> 26604222.85 | H25: ="CPI "&'Model update'!$C$5 -> CPI 2021 | I25: ='Model update'!C30 -> -0.003484320557
B26: Total Annual Metering Revenue for year t | D26: 26605535.86
D27: =IF(D25="","",IF(D26>=D25,"METERING REVENUE CAP FORMULA COMPLIANT","METERING REVENUE CAP FORMULA BREACHED")) -> METERING REVENUE CAP FORMULA COMPLIANT
I30: =(1+I25)*(1-I26)*(1+0.02)+SUM(I27:I28) -> 1.016445993

Sheet Unmetered supply
B1: ="Tariff Approval - " &'Model update'!C3 -> Tariff Approval - AusNet Services
B3: ="PROPOSED "&'Model update'!C5&" UNMETERED SUPPLY TARIFF" -> PROPOSED 2021 UNMETERED SUPPLY TARIFF
C4: ="P t-1 ("&'Model update'!$C$8&")" -> P t-1 (2020) | G4: ="Pt ("&'Model update'!$C$7&")" -> Pt (2021) | K4: ="Qt-2 ("&'Model update'!$C$9&")" -> Qt-2 (2019) | O4: P t-1 * Qt-2 | T4: Pt * Qt-2
C5: ($) per NMI | D5: ($) per meter | E5: ($) per light | G5: ($) per NMI | H5: ($) per meter | I5: ($) per light | K5: NMIs | L5: Meters | M5: Lights | O5: $ Comp1 | P5: $ Comp2 | Q5: $ Comp3 | R5: Total $ | T5: NMIs | U5: Meters | V5: Lights
B6: Proposed tariff | C6: ExistTarComp1 | D6: ExistTarComp2 | E6: ExistTarComp3 | G6: PropTarComp1 | H6: PropTarComp2 | I6: PropTarComp3 | K6: ActVolComp1 | L6: ActVolComp2 | M6: ActVolComp3 | O6: $Comp1 | P6: ExistRevComp2 | Q6: ExistRevComp3 | R6: Exist Rev Total | T6: $PropRevComp1 | U6: $PropRevComp2 | V6: $ PropRevComp3 | W6: Total $
B7: metering data services - unmetered supplies | C7: 327.8 | D7: 0 | E7: 1.7197 | G7: =ROUNDDOWN(C7*(1+$C$14),1) -> 326.6 | I7: =ROUNDDOWN(E7*(1+$C$14),4) -> 1.7137 | K7: 88 | L7: 0 | M7: 178359 | O7: =IF($B7="","",C7*K7) -> 28846.4 | P7: =IF($B7="","",D7*L7) -> 0 | Q7: =IF($B7="","",E7*M7) -> 306723.9723 | R7: =SUM(O7:Q7) -> 335570.3723 | T7: =IF($B7="","",G7*K7) -> 28740.8 | U7: =IF($B7="","",H7*L7) -> 0 | V7: =IF($B7="","",I7*M7) -> 305653.8183 | W7: =SUM(T7:V7) -> 334394.6183
B10: UNMETERED SUPPLY TARIFF CONTROL
B12: CPI
B14: ="CPI "&'Model update'!C5 -> CPI 2021 | C14: ='Model update'!C30 -> -0.003484320557

Sheet Metering exit fees
B1: ="Tariff Approval - "&'Model update'!C3 -> Tariff Approval - AusNet Services
B3: Proposed metering exit fees
B5: Metering type | C5: 2020 price cap | D5: 2021 price cap | E5: Proposed 2021 price
B6: Single Phase Single Element | C6: 364.17 | D6: =IF(C6="","",C6) -> 364.17 | E6: =D6 -> 364.17 | F6: =IF(E6="","",IF(E6<=D6,"COMPLIANT","BREACHED")) -> COMPLIANT
B7: Single Phase Two Element with Contactor | C7: 359.43 | D7: =IF(C7="","",C7) -> 359.43 | E7: =D7 -> 359.43 | F7: =IF(E7="","",IF(E7<=D7,"COMPLIANT","BREACHED")) -> COMPLIANT
B8: Multiphase | C8: 363.24 | D8: 363.24 | E8: 363.24 | F8: COMPLIANT
B9: Multiphase with Contactor | C9: 458.84 | D9: 458.84 | E9: 458.84 | F9: COMPLIANT
B10: Multiphase CT Connected | C10: 545.23 | D10: 545.23 | E10: 545.23 | F10: COMPLIANT

Sheet Public lighting
B1: ="Tariff Approval - "&'Model update'!C3 -> Tariff Approval - AusNet Services
B3: Proposed public lighting prices
B5: Public lighting tariff | C5: 2020 price cap | D5: 2021 price cap | E5: Proposed 2021 price
B6: CENTRAL
B7: Existing Lights
B8: Mercury Vapour 80W | C8: 43.96935102 | D8: =IF(C8="","",C8/2) -> 21.98467551 | E8: =D8 -> 21.98467551 | F8: =IF(E8="","",IF(E8<=D8,"COMPLIANT","BREACHED")) -> COMPLIANT
B9: HP Sodium 150W | C9: 104.0726993 | D9: =IF(C9="","",C9/2) -> 52.03634964 | E9: 52.03634964 | F9: COMPLIANT
B10: HP Sodium 250W | C10: 105.115713 | D10: 52.55785648 | E10: 52.55785648 | F10: COMPLIANT
B11: Mercury Vapour 50W | C11: 67.27310706 | D11: 33.63655353 | E11: 33.63655353 | F11: COMPLIANT
B12: Mercury Vapour 125W | C12: 64.634946 | D12: 32.317473 | E12: 32.317473 | F12: COMPLIANT
B13: Mercury Vapour 250W | C13: 110.3714986 | D13: 55.18574931 | E13: 55.18574931 | F13: COMPLIANT
B14: Mercury Vapour 400W | C14: 114.5761271 | D14: 57.28806357 | E14: 57.28806357 | F14: COMPLIANT
B15: HP Sodium 100W | C15: 111.3577882 | D15: 55.67889412 | E15: 55.67889412 | F15: COMPLIANT
B16: HP Sodium 400W | C16: 149.2643124 | D16: 74.63215621 | E16: 74.63215621 | F16: COMPLIANT
B17: Metal Halide 70W | C17: 191.9308638 | D17: 95.96543188 | E17: 95.96543188 | F17: COMPLIANT
B18: Metal Halide 100W | C18: 248.4932484 | D18: 124.2466242 | E18: 124.2466242 | F18: COMPLIANT
B19: Metal Halide 150W | C19: 282.3062318 | D19: 141.1531159 | E19: 141.1531159 | F19: COMPLIANT
B20: HP Sodium 50W | C20: 46.14011784 | D20: 23.07005892 | E20: 23.07005892 | F20: COMPLIANT
B21: Energy Efficient Lights
B22: T5 2X14W | C22: 35.59721944 | D22: 17.79860972 | E22: 17.79860972 | F22: COMPLIANT
B23: T5 2X24W | C23: 42.07869746 | D23: 21.03934873 | E23: 21.03934873 | F23: COMPLIANT
B24: LED 18W | C24: 16.2743424 | D24: 8.1371712 | E24: 8.1371712 | F24: COMPLIANT
B25: Compact Fluorescent 32W | C25: 31.5944654 | D25: 15.7972327 | E25: 15.7972327 | F25: COMPLIANT
B26: Compact Fluorescent 42W | C26: 31.5944654 | D26: 15.7972327 | E26: 15.7972327 | F26: COMPLIANT
B28: NORTH & EAST
B29: Existing Lights
B30: Mercury Vapour 80W | C30: 49.95386498 | D30: 24.97693249 | E30: 24.97693249 | F30: COMPLIANT
B31: HP Sodium 150W | C31: 118.4013729 | D31: 59.20068646 | E31: 59.20068646 | F31: COMPLIANT
B32: HP Sodium 250W | C32: 117.1212056 | D32: 58.56060281 | E32: 58.56060281 | F32: COMPLIANT
B33: Mercury Vapour 50W | C33: 73.93172017 | D33: 36.96586008 | E33: 36.96586008 | F33: COMPLIANT
B34: Mercury Vapour 125W | C34: 73.93172017 | D34: 36.96586008 | E34: 36.96586008 | F34: COMPLIANT
B35: Mercury Vapour 250W | C35: 121.8060539 | D35: 60.90302693 | E35: 60.90302693 | F35: COMPLIANT
B36: Mercury Vapour 400W | C36: 125.31969 | D36: 62.65984501 | E36: 62.65984501 | F36: COMPLIANT
B37: HP Sodium 100W | C37: 126.689469 | D37: 63.34473451 | E37: 63.34473451 | F37: COMPLIANT
B38: HP Sodium 400W | C38: 166.312112 | D38: 83.15605599 | E38: 83.15605599 | F38: COMPLIANT
B39: Metal Halide 70W | C39: 190.0465838 | D39: 95.02329191 | E39: 95.02329191 | F39: COMPLIANT
B40: Metal Halide 100W | C40: 250.7799225 | D40: 125.3899613 | E40: 125.3899613 | F40: COMPLIANT
B41: Metal Halide 150W | C41: 284.9086112 | D41: 142.4543056 | E41: 142.4543056 | F41: COMPLIANT
B42: HP Sodium 50W | C42: 53.84060406 | D42: 26.92030203 | E42: 26.92030203 | F42: COMPLIANT
B43: Energy Efficient Lights
B44: T5 2X14W | C44: 40.60210449 | D44: 20.30105224 | E44: 20.30105224 | F44: COMPLIANT
B45: T5 2X24W | C45: 47.91261656 | D45: 23.95630828 | E45: 23.95630828 | F45: COMPLIANT
B46: LED 18W | C46: 16.73741637 | D46: 8.368708183 | E46: 8.368708183 | F46: COMPLIANT
B47: Compact Fluorescent 32W | C47: 36.12952193 | D47: 18.06476096 | E47: 18.06476096 | F47: COMPLIANT
B48: Compact Fluorescent 42W | C48: 36.12952193 | D48: 18.06476096 | E48: 18.06476096 | F48: COMPLIANT
D49: =IF(C49="","",ROUND(C49,2)) -> 

Sheet ANS
B1: ="Tariff Approval - "&'Model update'!C3 -> Tariff Approval - AusNet Services
B3: Proposed ancillary network service prices
B5: Ancillary network service | C5: B2B Code | D5: Code | E5: AH/NH | F5: 2020 price cap | G5: 2021 price cap | H5: Proposed 2021 price | L5: Escalators
B6: Field officer visits | L6: CPI | M6: ='Model update'!C30 -> -0.003484320557
B7: Field officer visits—BH | C7: 20600 | D7: 020600 | E7: 0 | F7: 20.04 | G7: =IF(F7="","",F7*(1+$M$6)*(1-$M$7)) -> 19.99399218 | H7: =G7 -> 19.99399218 | I7: =IF(H7="","",IF(H7<=G7,"COMPLIANT","BREACHED")) -> COMPLIANT | L7: X-factor | M7: ='Model update'!C35 -> -0.001192676717
B8: Field officer visits—AH | C8: 020600AH | D8: 020600 | E8: 1 | F8: 360.98 | G8: =IF(F8="","",F8*(1+$M$6)*(1-$M$7)) -> 360.1512623 | H8: 360.1512623 | I8: COMPLIANT
B9: Remote Re-energisation - Any Time | C9: 020710 | D9: 020710 | E9: 0 | F9: 6.85 | G9: 6.834273773 | H9: 6.834273773 | I9: COMPLIANT
B10: Remote De-energisation - Any Time | C10: 020720 | D10: 020720 | E10: 0 | F10: 6.85 | G10: 6.834273773 | H10: 6.834273773 | I10: COMPLIANT
B11: Remote Meter Re-configuration | C11: 020800 | D11: 020800 | E11: 0 | F11: 30.56 | G11: 30.48984037 | H11: 30.48984037 | I11: COMPLIANT
B12: Remote Special Read | C12: 020900 | D12: 020900 | E12: 0 | F12: 1.46 | G12: 1.456648133 | H12: 1.456648133 | I12: COMPLIANT
B13: Routine new connections — AusNet Services responsible for metering, customers<100amps
B14: Single Ø Overhead—BH | C14: 010107 | D14: 010107 | E14: 0 | F14: 432.93 | G14: 431.9360795 | H14: 431.9360795 | I14: COMPLIANT
B15: Single Ø Overhead—AH | C15: 010107AH | D15: 010107 | E15: 1 | F15: 522.07 | G15: 520.871432 | H15: 520.871432 | I15: COMPLIANT
B16: Install 95mm overhead service from LVABC - BH | C16: 010125 | D16: 010125 | E16: 0 | F16: 713.48 | G16: 711.841993 | H16: 711.841993 | I16: COMPLIANT
B17: Install 95mm overhead service from LVABC - AH | C17: 010125AH | D17: 010125 | E17: 1 | F17: 893.79 | G17: 891.7380374 | H17: 891.7380374 | I17: =IF(H17="","",IF(H17<=G17,"COMPLIANT","BREACHED")) -> COMPLIANT
B18: Single Ø Underground—BH | C18: 010109 | D18: 010109 | E18: 0 | F18: 224.85 | G18: 224.3337895 | H18: 224.3337895 | I18: =IF(H18="","",IF(H18<=G18,"COMPLIANT","BREACHED")) -> COMPLIANT
B19: Single Ø Underground—AH | C19: 010109AH | D19: 010109 | E19: 1 | F19: 287.6 | G19: 286.9397281 | H19: 286.9397281 | I19: COMPLIANT
B20: Multi Ø Overhead—Direct Connected Meter—BH | C20: 010111 | D20: 010111 | E20: 0 | F20: 462.7 | G20: 461.6377336 | H20: 461.6377336 | I20: COMPLIANT
B21: Multi Ø Overhead—Direct Connected Meter—AH | C21: 010111AH | D21: 010111 | E21: 1 | F21: 557.97 | G21: 556.6890127 | H21: 556.6890127 | I21: COMPLIANT
B22: Multi Ø Overhead—CT Connected Meter—BH | C22: 010112 | D22: 010112 | E22: 0 | F22: 621.2 | G22: 619.7738493 | H22: 619.7738493 | I22: COMPLIANT
B23: Multi Ø Overhead—CT ConnectedMeter—AH | C23: 010112AH | D23: 010112 | E23: 1 | F23: 749.12 | G23: 747.4001707 | H23: 747.4001707 | I23: COMPLIANT
B24: Multi Ø Underground—Direct Connected Meter—BH | C24: 010113 | D24: 010113 | E24: 0 | F24: 336.47 | G24: 335.6975323 | H24: 335.6975323 | I24: COMPLIANT
B25: Multi Ø Underground—Direct Connected Meter—aH | C25: 010113AH | D25: 010113 | E25: 1 | F25: 416.72 | G25: 415.7632944 | H25: 415.7632944 | I25: COMPLIANT
B26: Multi Ø Underground—CT Connected Meter—BH | C26: 010114 | D26: 010114 | E26: 0 | F26: 485.45 | G26: 484.3355041 | H26: 484.3355041 | I26: COMPLIANT
B27: Multi Ø Underground—CT ConnectedMeter—AH | C27: 010114AH | D27: 010114 | E27: 1 | F27: 601.23 | G27: 599.8496965 | H27: 599.8496965 | I27: COMPLIANT
B28: Temporary Overhead Supply—Coincident Disconnection (Truck visit)—BH | C28: 010115 | D28: 010115 | E28: 0 | F28: 364.27 | G28: 363.4337091 | H28: 363.4337091 | I28: COMPLIANT
B29: Temporary Overhead Supply—Coincident Disconnection (Truck visit)—AH | C29: 010115AH | D29: 010115 | E29: 1 | F29: 462.65 | G29: 461.5878484 | H29: 461.5878484 | I29: COMPLIANT
B30: Routine new connections — AusNet Services not responsible for metering, customers<100amps
B31: Single Ø Overhead—BH | C31: 010116 | D31: 010116 | E31: 0 | F31: 432.93 | G31: 431.9360795 | H31: 431.9360795 | I31: COMPLIANT
B32: Single Ø Overhead—AH | C32: 010116AH | D32: 010116 | E32: 1 | F32: 522.07 | G32: 520.871432 | H32: 520.871432 | I32: COMPLIANT
B33: Install 95mm overhead service from LVABC - BH | C33: 010126 | D33: 010126 | E33: 0 | F33: 713.48 | G33: 711.841993 | H33: 711.841993 | I33: COMPLIANT
B34: Install 95mm overhead service from LVABC - AH | C34: 010126AH | D34: 010126 | E34: 1 | F34: 893.79 | G34: 891.7380374 | H34: 891.7380374 | I34: COMPLIANT
B35: Single Ø Underground—BH | C35: 010118 | D35: 010118 | E35: 0 | F35: 224.85 | G35: 224.3337895 | H35: 224.3337895 | I35: COMPLIANT
B36: Single Ø Underground—AH | C36: 010118AH | D36: 010118 | E36: 1 | F36: 287.6 | G36: 286.9397281 | H36: 286.9397281 | I36: COMPLIANT
B37: Multi Ø Overhead—Direct Connected Meter—BH | C37: 010120 | D37: 010120 | E37: 0 | F37: 462.7 | G37: 461.6377336 | H37: 461.6377336 | I37: COMPLIANT
B38: Multi Ø Overhead—Direct Connected Meter—AH | C38: 010120AH | D38: 010120 | E38: 1 | F38: 557.97 | G38: 556.6890127 | H38: 556.6890127 | I38: COMPLIANT
B39: Multi Ø Overhead—CT Connected Meter—BH | C39: 010121 | D39: 010121 | E39: 0 | F39: 621.2 | G39: 619.7738493 | H39: 619.7738493 | I39: COMPLIANT
B40: Multi Ø Overhead—CT ConnectedMeter—AH | C40: 010121AH | D40: 010121 | E40: 1 | F40: 749.12 | G40: 747.4001707 | H40: 747.4001707 | I40: COMPLIANT
B41: Multi Ø Underground—Direct Connected Meter—BH | C41: 010122 | D41: 010122 | E41: 0 | F41: 336.47 | G41: 335.6975323 | H41: 335.6975323 | I41: COMPLIANT
B42: Multi Ø Underground—Direct Connected Meter—AH | C42: 010122AH | D42: 010122 | E42: 1 | F42: 416.72 | G42: 415.7632944 | H42: 415.7632944 | I42: COMPLIANT
B43: Multi Ø Underground—CT Connected Meter—BH | C43: 010123 | D43: 010123 | E43: 0 | F43: 485.45 | G43: 484.3355041 | H43: 484.3355041 | I43: COMPLIANT
B44: Multi Ø Underground—CT ConnectedMeter—AH | C44: 010123AH | D44: 010123 | E44: 1 | F44: 601.23 | G44: 599.8496965 | H44: 599.8496965 | I44: COMPLIANT
B45: Temporary Overhead Supply—Coincident Disconnection (Truck visit)—BH | C45: 010124 | D45: 010124 | E45: 0 | F45: 364.27 | G45: 363.4337091 | H45: 363.4337091 | I45: COMPLIANT
B46: Temporary Overhead Supply—Coincident Disconnection (Truck visit)—AH | C46: 010124AH | D46: 010124 | E46: 1 | F46: 462.65 | G46: 461.5878484 | H46: 461.5878484 | I46: COMPLIANT
B47: Service truck visits
B48: Service Truck Visit—BH | C48: 030000 | D48: 030000 | E48: 0 | F48: 364.27 | G48: 363.4337091 | H48: 363.4337091 | I48: COMPLIANT
B49: Wasted Truck Visit—BH | C49: 030001 | D49: 030001 | E49: 0 | F49: 207.28 | G49: 206.8041267 | H49: 206.8041267 | I49: COMPLIANT
B50: Wasted Truck Visit—AH | C50: 030001AH | D50: 030001 | E50: 1 | F50: 299.67 | G50: 298.9820178 | H50: 298.9820178 | I50: COMPLIANT
B51: Service Truck Visit—AH | C51: 030000AH | D51: 030000 | E51: 1 | F51: 462.65 | G51: 461.5878484 | H51: 461.5878484 | I51: COMPLIANT
B52: Truck Appointment—AH | C52: 030100AH | D52: 030100 | E52: 1 | F52: 0 | G52: 0 | H52: 0 | I52: COMPLIANT
B53: Meter equipment tests
B54: Single phase | C54: 060100 | D54: 060100 | E54: 0 | F54: 171.52 | G54: 171.1262245 | H54: 171.1262245 | I54: COMPLIANT
B55: Single phase (each additional meter) | C55: 060200 | D55: 060200 | E55: 0 | F55: 63.89 | G55: 63.74332137 | H55: 63.74332137 | I55: COMPLIANT
B56: Multi Phase | C56: 060300 | D56: 060300 | E56: 0 | F56: 203.49 | G56: 203.0228278 | H56: 203.0228278 | I56: COMPLIANT
B57: Multi Phase (each additional meter) | C57: 060400 | D57: 060400 | E57: 0 | F57: 95.84 | G57: 95.61997058 | H57: 95.61997058 | I57: COMPLIANT
B58: Small Generator Installations (including PV)
B59: Pre Approval of PV and small generator installation < 4.6kW - BH | C59: 100100 | D59: 100100 | E59: 0 | F59: 0 | G59: 0 | H59: 0 | I59: COMPLIANT
B60: Pre Approval of PV and small generator installation 4.6kW to 15kW - BH | C60: 100101 | D60: 100101 | E60: 0 | F60: 159.75 | G60: 159.383246 | H60: 159.383246 | I60: COMPLIANT
B61: Pre Approval of PV and small generator installation 15kW to 30kW - BH | C61: 100102 | D61: 100102 | E61: 0 | F61: 211.79 | G61: 211.3037726 | H61: 211.3037726 | I61: COMPLIANT
B62: Meter Exchange for PV and small generator installation | C62: 100103 | D62: 100103 | E62: 0 | F62: 0 | G62: 0 | H62: 0 | I62: COMPLIANT
B63: Meter Reconfiguration for PV and small generator installation | C63: 100104 | D63: 100104 | E63: 0 | F63: 30.25 | G63: 30.18055206 | H63: 30.18055206 | I63: COMPLIANT
G64: =IF(F64="","",ROUND(F64*(1+M64)*(1-M96),2)) -> 
B65: QUOTED SERVICES | G65: =IF(F65="","",ROUND(F65*(1+M65)*(1-M97),2)) ->  | H65: =G65 ->  | I65: =IF(H65="","",IF(H65<=G65,"COMPLIANT","BREACHED")) -> 
B66: Business Hours | G66: =IF(F66="","",ROUND(F66*(1+M66)*(1-M98),2)) -> 
B67: Construction Overhead Install | F67: 111.8279066 | G67: =IF(F67="","",ROUND(F67*(1+$M$6)*(1-$M$7),2)) -> 111.57 | H67: =G67 -> 111.57 | I67: =IF(H67="","",IF(H67<=G67,"COMPLIANT","BREACHED")) -> COMPLIANT
B68: Construction Underground Install | F68: 109.2220558 | G68: =IF(F68="","",ROUND(F68*(1+$M$6)*(1-$M$7),2)) -> 108.97 | H68: 108.97 | I68: COMPLIANT
B69: Construction Substation Install | F69: 109.2220558 | G69: 108.97 | H69: 108.97 | I69: COMPLIANT
B70: Electrical Tester Including Vehicle & Equipment | F70: 195.2710521 | G70: 194.82 | H70: 194.82 | I70: COMPLIANT
B71: Planner Including Vehicle | F71: 150.1216112 | G71: 149.78 | H71: 149.78 | I71: COMPLIANT
B72: Supervisor Including Vehicle | F72: 150.1216112 | G72: 149.78 | H72: 149.78 | I72: COMPLIANT
B73: Design | F73: 128.1787817 | G73: 127.88 | H73: 127.88 | I73: COMPLIANT
B74: Drafting | F74: 98.49668703 | G74: 98.27 | H74: 98.27 | I74: COMPLIANT
B75: Survey | F75: 116.0218725 | G75: 115.76 | H75: 115.76 | I75: COMPLIANT
B76: Tech Officer | F76: 116.0218725 | G76: 115.76 | H76: 115.76 | I76: COMPLIANT
B77: Line Inspector | F77: 111.8279066 | G77: 111.57 | H77: 111.57 | I77: COMPLIANT
B78: Contract Supervision | F78: 116.0218725 | G78: 115.76 | H78: 115.76 | I78: COMPLIANT
B79: Protection Engineer | F79: 128.1787817 | G79: 127.88 | H79: 127.88 | I79: COMPLIANT
B80: Maintenance Planner | F80: 116.0218725 | G80: 115.76 | H80: 115.76 | I80: COMPLIANT
B82: After Hours
B83: Construction Overhead Install | F83: 135.8173915 | G83: 135.51 | H83: 135.51 | I83: COMPLIANT
B84: Construction Underground Install | F84: 132.6523453 | G84: 132.35 | H84: 132.35 | I84: COMPLIANT
B85: Construction Substation Install | F85: 132.6523453 | G85: 132.35 | H85: 132.35 | I85: COMPLIANT
B86: Electrical Tester Including Vehicle & Equipment | F86: 220.1552497 | G86: 219.65 | H86: 219.65 | I86: COMPLIANT
B87: Planner Including Vehicle
B88: Supervisor Including Vehicle
B89: Design | F89: 155.6688301 | G89: 155.31 | H89: 155.31 | I89: COMPLIANT
B90: Drafting | F90: 119.6230912 | G90: 119.35 | H90: 119.35 | I90: COMPLIANT
B91: Survey | F91: 140.9172541 | G91: 140.59 | H91: 140.59 | I91: COMPLIANT
B92: Tech Officer | F92: 140.9172541 | G92: 140.59 | H92: 140.59 | I92: COMPLIANT
B93: Line Inspector | F93: 135.8173915 | G93: 135.51 | H93: 135.51 | I93: COMPLIANT
B94: Contract Supervision | F94: 140.9172541 | G94: 140.59 | H94: =G94 -> 140.59 | I94: =IF(H94="","",IF(H94<=G94,"COMPLIANT","BREACHED")) -> COMPLIANT
B95: Protection Engineer | F95: 155.6688301 | G95: 155.31 | H95: 155.31 | I95: COMPLIANT
B96: Maintenance Planner | F96: 140.9172541 | G96: 140.59 | H96: 140.59 | I96: COMPLIANT

Sheet Prop2021DistTar
B1: ="Tariff Approval - "&'Model update'!$C$3 -> Tariff Approval - AusNet Services | C1: ="Prop"&'Model update'!$C$5&"DistTar" -> Prop2021DistTar
B3: ="PROPOSED "&'Model update'!$C$5&" DISTRIBUTION TARIFFS" -> PROPOSED 2021 DISTRIBUTION TARIFFS
D4: ="Proposed Distribution Tariffs (Pt) for "&'Model update'!$C$5 -> Proposed Distribution Tariffs (Pt) for 2021 | R4: ="Current Distribution Tariffs (Pt-1) for "&'Model update'!$C$8 -> Current Distribution Tariffs (Pt-1) for 2020 | AF4: ="Forecast Quantities (Qt) for "&'Model update'!$C$5 -> Forecast Quantities (Qt) for 2021 | AT4: ="Forecast Revenue (Pt "&'Model update'!$C$5&")*(Qt " &'Model update'!$C$5&")" -> Forecast Revenue (Pt 2021)*(Qt 2021) | BI4: ="Revenue (Pt-1 "&'Model update'!$C$8&")*(Qt " &'Model update'!$C$5&")" -> Revenue (Pt-1 2020)*(Qt 2021)
B5: Proposed tariff | C5: Existing tariff | D5: PropTar Fixed | E5: PropTar PkBlk1 | F5: PropTar PkBlk2 | G5: PropTar PkBlk3 | H5: PropTar PkBlk4 | I5: PropTar OPkBlk1 | J5: PropTar OPkBlk2 | K5: PropTar OPkBlk3 | L5: PropTar OPkBlk4 | M5: PropTar DemBlk1 | N5: PropTar DemBlk2 | O5: PropTar DemBlk3 | P5: PropTar DemBlk4 | R5: ExistTar Fixed | S5: ExistTar PkBlk1 | T5: ExistTar PkBlk2 | U5: ExistTar PkBlk3 | V5: ExistTar PkBlk4 | W5: ExistTar OPkBlk1 | X5: ExistTar OPkBlk2 | Y5: ExistTar OPkBlk3 | Z5: ExistTar OPkBlk4 | AA5: ExistTar DemBlk1 | AB5: ExistTar DemBlk2 | AC5: ExistTar DemBlk3 | AD5: ExistTar DemBlk4 | AF5: FcastVol Fixed | AG5: FcastVol PkBlk1 | AH5: FcastVol PkBlk2 | AI5: FcastVol PkBlk3 | AJ5: FcastVol PkBlk4 | AK5: FcastVol OPkBlk1 | AL5: FcastVol OPkBlk2 | AM5: FcastVol OPkBlk3 | AN5: FcastVol OPkBlk4 | AO5: FcastVol DemBlk1 | AP5: FcastVol DemBlk2 | AQ5: FcastVol DemBlk3 | AR5: FcastVol DemBlk4 | AT5: PropRev Fixed | AU5: PropRev PkBlk1 | AV5: PropRev PkBlk2 | AW5: PropRev PkBlk3 | AX5: PropRev PkBlk4 | AY5: PropRev OPkBlk1 | AZ5: PropRev OPkBlk2 | BA5: PropRev OPkBlk3 | BB5: PropRev OPkBlk4 | BC5: PropRev DemBlk1 | BD5: PropRev DemBlk2 | BE5: PropRev DemBlk3 | BF5: PropRev DemBlk4 | BG5: PropRev Total | BI5: ExistRev Fixed | BJ5: ExistRev PkBlk1 | BK5: ExistRev PkBlk2 | BL5: ExistRev PkBlk3 | BM5: ExistRev PkBlk4 | BN5: ExistRev OPkBlk1 | BO5: ExistRev OPkBlk2 | BP5: ExistRev OPkBlk3 | BQ5: ExistRev OPkBlk4 | BR5: ExistRev DemBlk1 | BS5: ExistRev DemBlk2 | BT5: ExistRev DemBlk3 | BU5: ExistRev DemBlk4 | BV5: ExistRev Total
A6: NEE11 | B6: NEE11 Small Single Rate < 160MWh | C6: NEE11 Small Single Rate < 160MWh | D6: 106 | E6: 7.839 | F6: 9.3777 | G6: 0 | H6: 0 | I6: 0 | J6: 0 | K6: 0 | L6: 0 | M6: 0 | N6: 0 | O6: 0 | P6: 0 | R6: =Est2020DistRev!D6 -> 118 | S6: =Est2020DistRev!E6 -> 8.7595 | T6: =Est2020DistRev!F6 -> 10.4789 | U6: =Est2020DistRev!G6 -> 0 | V6: =Est2020DistRev!H6 -> 0 | W6: =Est2020DistRev!I6 -> 0 | X6: =Est2020DistRev!J6 -> 0 | Y6: =Est2020DistRev!K6 -> 0 | Z6: =Est2020DistRev!L6 -> 0 | AA6: =Est2020DistRev!M6 -> 0 | AB6: =Est2020DistRev!N6 -> 0 | AC6: =Est2020DistRev!O6 -> 0 | AD6: =Est2020DistRev!P6 -> 0 | AF6: 239028.3345 | AG6: 686112016.8 | AH6: 283669233.4 | AI6: 0 | AJ6: 0 | AK6: 0 | AL6: 0 | AM6: 0 | AN6: 0 | AO6: 0 | AP6: 0 | AQ6: 0 | AR6: 0 | AT6: =D6*AF6 -> 25337003.45 | AU6: =E6/100*AG6 -> 53784320.99 | AV6: 26601649.7 | AW6: 0 | AX6: 0 | AY6: 0 | AZ6: 0 | BA6: 0 | BB6: 0 | BC6: =M6*AO6 -> 0 | BD6: 0 | BE6: 0 | BF6: 0 | BG6: =SUM(AT6:BF6) -> 105722974.2 | BI6: =R6*AF6 -> 28205343.47 | BJ6: =S6/100*AG6 -> 60099982.11 | BK6: 29725415.3 | BL6: 0 | BM6: 0 | BN6: 0 | BO6: 0 | BP6: 0 | BQ6: 0 | BR6: =AA6*AO6 -> 0 | BS6: 0 | BT6: 0 | BU6: 0 | BV6: =SUM(BI6:BU6) -> 118030740.9
A7: NGT11 | B7: NGT11 Small Interval Single Rate < 160MWh | C7: NGT11 Small Interval Single Rate < 160MWh | D7: 106 | E7: 10.4568 | F7: 0 | G7: 0 | H7: 0 | I7: 0 | J7: 0 | K7: 0 | L7: 0 | M7: 0 | N7: 0 | O7: 0 | P7: 0 | R7: =Est2020DistRev!D7 -> 118 | S7: =Est2020DistRev!E7 -> 11.6847 | T7: =Est2020DistRev!F7 -> 0 | U7: =Est2020DistRev!G7 -> 0 | V7: =Est2020DistRev!H7 -> 0 | W7: =Est2020DistRev!I7 -> 0 | X7: =Est2020DistRev!J7 -> 0 | Y7: =Est2020DistRev!K7 -> 0 | Z7: =Est2020DistRev!L7 -> 0 | AA7: =Est2020DistRev!M7 -> 0 | AB7: =Est2020DistRev!N7 -> 0 | AC7: =Est2020DistRev!O7 -> 0 | AD7: =Est2020DistRev!P7 -> 0 | AF7: 4 | AG7: 15851.69034 | AH7: 0 | AI7: 0 | AJ7: 0 | AK7: 0 | AL7: 0 | AM7: 0 | AN7: 0 | AO7: 0 | AP7: 0 | AQ7: 0 | AR7: 0 | AT7: =D7*AF7 -> 424 | AU7: =E7/100*AG7 -> 1657.579555 | AV7: 0 | AW7: 0 | AX7: 0 | AY7: 0 | AZ7: 0 | BA7: 0 | BB7: 0 | BC7: =M7*AO7 -> 0 | BD7: =N7*AP7 -> 0 | BE7: =O7*AQ7 -> 0 | BF7: =P7*AR7 -> 0 | BG7: =SUM(AT7:BF7) -> 2081.579555 | BI7: =R7*AF7 -> 472 | BJ7: =S7/100*AG7 -> 1852.222461 | BK7: =T7/100*AH7 -> 0 | BL7: =U7/100*AI7 -> 0 | BM7: =V7/100*AJ7 -> 0 | BN7: =W7/100*AK7 -> 0 | BO7: =X7/100*AL7 -> 0 | BP7: =Y7/100*AM7 -> 0 | BQ7: =Z7/100*AN7 -> 0 | BR7: =AA7*AO7 -> 0 | BS7: =AB7*AP7 -> 0 | BT7: =AC7*AQ7 -> 0 | BU7: =AD7*AR7 -> 0 | BV7: =SUM(BI7:BU7) -> 2324.222461
A8: NSP11 | B8: NSP11 Small Single Rate < 160MWh | C8: NSP11 Small Single Rate < 160MWh | D8: 106 | E8: 34.8141 | F8: 30.4637 | G8: 26.6615 | H8: 0 | I8: 2.9693 | J8: 0 | K8: 0 | L8: 0 | M8: 0 | N8: 0 | O8: 0 | P8: 0 | R8: =Est2020DistRev!D8 -> 118 | S8: =Est2020DistRev!E8 -> 38.9022 | T8: =Est2020DistRev!F8 -> 34.0409 | U8: =Est2020DistRev!G8 -> 29.7923 | V8: =Est2020DistRev!H8 -> 0 | W8: =Est2020DistRev!I8 -> 3.318 | X8: =Est2020DistRev!J8 -> 0 | Y8: =Est2020DistRev!K8 -> 0 | Z8: =Est2020DistRev!L8 -> 0 | AA8: =Est2020DistRev!M8 -> 0 | AB8: =Est2020DistRev!N8 -> 0 | AC8: =Est2020DistRev!O8 -> 0 | AD8: =Est2020DistRev!P8 -> 0 | AF8: 0 | AG8: 0 | AH8: 0 | AI8: 0 | AJ8: 0 | AK8: 0 | AL8: 0 | AM8: 0 | AN8: 0 | AO8: 0 | AP8: 0 | AQ8: 0 | AR8: 0 | AT8: 0 | AU8: 0 | AV8: 0 | AW8: 0 | AX8: 0 | AY8: 0 | AZ8: 0 | BA8: 0 | BB8: 0 | BC8: 0 | BD8: 0 | BE8: 0 | BF8: 0 | BG8: 0 | BI8: 0 | BJ8: 0 | BK8: 0 | BL8: 0 | BM8: 0 | BN8: 0 | BO8: 0 | BP8: 0 | BQ8: 0 | BR8: 0 | BS8: 0 | BT8: 0 | BU8: 0 | BV8: 0
A9: NEN11 | B9: NEN11 Small Single Rate < 160MWh Embedded Network | C9: NEN11 Small Single Rate < 160MWh Embedded Network | D9: 106 | E9: 4.8059 | F9: 5.2818 | G9: 0 | H9: 0 | I9: 0 | J9: 0 | K9: 0 | L9: 0 | M9: 0 | N9: 0 | O9: 0 | P9: 0 | R9: =Est2020DistRev!D9 -> 118 | S9: =Est2020DistRev!E9 -> 5.3702 | T9: =Est2020DistRev!F9 -> 5.902 | U9: =Est2020DistRev!G9 -> 0 | V9: =Est2020DistRev!H9 -> 0 | W9: =Est2020DistRev!I9 -> 0 | X9: =Est2020DistRev!J9 -> 0 | Y9: =Est2020DistRev!K9 -> 0 | Z9: =Est2020DistRev!L9 -> 0 | AA9: =Est2020DistRev!M9 -> 0 | AB9: =Est2020DistRev!N9 -> 0 | AC9: =Est2020DistRev!O9 -> 0 | AD9: =Est2020DistRev!P9 -> 0 | AF9: 0 | AG9: 0 | AH9: 0 | AI9: 0 | AJ9: 0 | AK9: 0 | AL9: 0 | AM9: 0 | AN9: 0 | AO9: 0 | AP9: 0 | AQ9: 0 | AR9: 0 | AT9: 0 | AU9: 0 | AV9: 0 | AW9: 0 | AX9: 0 | AY9: 0 | AZ9: 0 | BA9: 0 | BB9: 0 | BC9: 0 | BD9: 0 | BE9: 0 | BF9: 0 | BG9: 0 | BI9: 0 | BJ9: 0 | BK9: 0 | BL9: 0 | BM9: 0 | BN9: 0 | BO9: 0 | BP9: 0 | BQ9: 0 | BR9: 0 | BS9: 0 | BT9: 0 | BU9: 0 | BV9: 0
A10: NEE12 | B10: NEE12 Small Business Single Rate - new in 2001 | C10: NEE12 Small Business Single Rate - new in 2001 | D10: 106 | E10: 11.2642 | F10: 14.2389 | G10: 0 | H10: 0 | I10: 0 | J10: 0 | K10: 0 | L10: 0 | M10: 0 | N10: 0 | O10: 0 | P10: 0 | R10: =Est2020DistRev!D10 -> 118 | S10: =Est2020DistRev!E10 -> 12.5869 | T10: =Est2020DistRev!F10 -> 15.9109 | U10: =Est2020DistRev!G10 -> 0 | V10: =Est2020DistRev!H10 -> 0 | W10: =Est2020DistRev!I10 -> 0 | X10: =Est2020DistRev!J10 -> 0 | Y10: =Est2020DistRev!K10 -> 0 | Z10: =Est2020DistRev!L10 -> 0 | AA10: =Est2020DistRev!M10 -> 0 | AB10: =Est2020DistRev!N10 -> 0 | AC10: =Est2020DistRev!O10 -> 0 | AD10: =Est2020DistRev!P10 -> 0 | AF10: 14834.62602 | AG10: 29916679.02 | AH10: 46008597.66 | AI10: 0 | AJ10: 0 | AK10: 0 | AL10: 0 | AM10: 0 | AN10: 0 | AO10: 0 | AP10: 0 | AQ10: 0 | AR10: 0 | AT10: 1572470.358 | AU10: 3369874.558 | AV10: 6551118.212 | AW10: 0 | AX10: 0 | AY10: 0 | AZ10: 0 | BA10: 0 | BB10: 0 | BC10: 0 | BD10: 0 | BE10: 0 | BF10: 0 | BG10: 11493463.13 | BI10: 1750485.871 | BJ10: 3765582.472 | BK10: 7320381.965 | BL10: 0 | BM10: 0 | BN10: 0 | BO10: 0 | BP10: 0 | BQ10: 0 | BR10: 0 | BS10: 0 | BT10: 0 | BU10: 0 | BV10: 12836450.31
A11: NSP12 | B11: NSP12 Small Business Single Rate - new in 2001 | C11: NSP12 Small Business Single Rate - new in 2001 | D11: 106 | E11: 34.8141 | F11: 30.4637 | G11: 26.6615 | H11: 0 | I11: 2.9693 | J11: 0 | K11: 0 | L11: 0 | M11: 0 | N11: 0 | O11: 0 | P11: 0 | R11: =Est2020DistRev!D11 -> 118 | S11: =Est2020DistRev!E11 -> 38.9022 | T11: =Est2020DistRev!F11 -> 34.0409 | U11: =Est2020DistRev!G11 -> 29.7923 | V11: =Est2020DistRev!H11 -> 0 | W11: =Est2020DistRev!I11 -> 3.318 | X11: =Est2020DistRev!J11 -> 0 | Y11: =Est2020DistRev!K11 -> 0 | Z11: =Est2020DistRev!L11 -> 0 | AA11: =Est2020DistRev!M11 -> 0 | AB11: =Est2020DistRev!N11 -> 0 | AC11: =Est2020DistRev!O11 -> 0 | AD11: =Est2020DistRev!P11 -> 0 | AF11: 0 | AG11: 0 | AH11: 0 | AI11: 0 | AJ11: 0 | AK11: 0 | AL11: 0 | AM11: 0 | AN11: 0 | AO11: 0 | AP11: 0 | AQ11: 0 | AR11: 0 | AT11: 0 | AU11: 0 | AV11: 0 | AW11: 0 | AX11: 0 | AY11: 0 | AZ11: 0 | BA11: 0 | BB11: 0 | BC11: 0 | BD11: 0 | BE11: 0 | BF11: 0 | BG11: 0 | BI11: 0 | BJ11: 0 | BK11: 0 | BL11: 0 | BM11: 0 | BN11: 0 | BO11: 0 | BP11: 0 | BQ11: 0 | BR11: 0 | BS11: 0 | BT11: 0 | BU11: 0 | BV11: 0
A12: NEN12 | B12: NEN12 Small Business Single Rate - Embedded Network | C12: NEN12 Small Business Single Rate - Embedded Network | D12: 106 | E12: 16.3826 | F12: 19.0708 | G12: 0 | H12: 0 | I12: 0 | J12: 0 | K12: 0 | L12: 0 | M12: 0 | N12: 0 | O12: 0 | P12: 0 | R12: =Est2020DistRev!D12 -> 118 | S12: =Est2020DistRev!E12 -> 18.3063 | T12: =Est2020DistRev!F12 -> 21.3102 | U12: =Est2020DistRev!G12 -> 0 | V12: =Est2020DistRev!H12 -> 0 | W12: =Est2020DistRev!I12 -> 0 | X12: =Est2020DistRev!J12 -> 0 | Y12: =Est2020DistRev!K12 -> 0 | Z12: =Est2020DistRev!L12 -> 0 | AA12: =Est2020DistRev!M12 -> 0 | AB12: =Est2020DistRev!N12 -> 0 | AC12: =Est2020DistRev!O12 -> 0 | AD12: =Est2020DistRev!P12 -> 0 | AF12: 0 | AG12: 0 | AH12: 0 | AI12: 0 | AJ12: 0 | AK12: 0 | AL12: 0 | AM12: 0 | AN12: 0 | AO12: 0 | AP12: 0 | AQ12: 0 | AR12: 0 | AT12: 0 | AU12: 0 | AV12: 0 | AW12: 0 | AX12: 0 | AY12: 0 | AZ12: 0 | BA12: 0 | BB12: 0 | BC12: 0 | BD12: 0 | BE12: 0 | BF12: 0 | BG12: 0 | BI12: 0 | BJ12: 0 | BK12: 0 | BL12: 0 | BM12: 0 | BN12: 0 | BO12: 0 | BP12: 0 | BQ12: 0 | BR12: 0 | BS12: 0 | BT12: 0 | BU12: 0 | BV12: 0
A13: NEE20 | B13: NEE20 Small Two Rate | C13: NEE20 Small Two Rate | D13: 106 | E13: 15.6003 | F13: 0 | G13: 0 | H13: 0 | I13: 2.8691 | J13: 0 | K13: 0 | L13: 0 | M13: 0 | N13: 0 | O13: 0 | P13: 0 | R13: =Est2020DistRev!D13 -> 118 | S13: =Est2020DistRev!E13 -> 16.9796 | T13: =Est2020DistRev!F13 -> 0 | U13: =Est2020DistRev!G13 -> 0 | V13: =Est2020DistRev!H13 -> 0 | W13: =Est2020DistRev!I13 -> 3.1228 | X13: =Est2020DistRev!J13 -> 0 | Y13: =Est2020DistRev!K13 -> 0 | Z13: =Est2020DistRev!L13 -> 0 | AA13: =Est2020DistRev!M13 -> 0 | AB13: =Est2020DistRev!N13 -> 0 | AC13: =Est2020DistRev!O13 -> 0 | AD13: =Est2020DistRev!P13 -> 0 | AF13: 25675.15816 | AG13: 68100453.35 | AH13: 0 | AI13: 0 | AJ13: 0 | AK13: 90999048.34 | AL13: 0 | AM13: 0 | AN13: 0 | AO13: 0 | AP13: 0 | AQ13: 0 | AR13: 0 | AT13: 2721566.765 | AU13: 10623875.02 | AV13: 0 | AW13: 0 | AX13: 0 | AY13: 2610853.696 | AZ13: 0 | BA13: 0 | BB13: 0 | BC13: 0 | BD13: 0 | BE13: 0 | BF13: 0 | BG13: 15956295.49 | BI13: 3029668.663 | BJ13: 11563184.58 | BK13: 0 | BL13: 0 | BM13: 0 | BN13: 2841718.282 | BO13: 0 | BP13: 0 | BQ13: 0 | BR13: 0 | BS13: 0 | BT13: 0 | BU13: 0 | BV13: 17434571.52
A14: NSP20 | B14: NSP20 Small Two Rate | C14: NSP20 Small Two Rate | D14: 106 | E14: 34.8141 | F14: 30.4637 | G14: 26.6615 | H14: 0 | I14: 2.9693 | J14: 0 | K14: 0 | L14: 0 | M14: 0 | N14: 0 | O14: 0 | P14: 0 | R14: =Est2020DistRev!D14 -> 118 | S14: =Est2020DistRev!E14 -> 38.9022 | T14: =Est2020DistRev!F14 -> 34.0409 | U14: =Est2020DistRev!G14 -> 29.7923 | V14: =Est2020DistRev!H14 -> 0 | W14: =Est2020DistRev!I14 -> 3.318 | X14: =Est2020DistRev!J14 -> 0 | Y14: =Est2020DistRev!K14 -> 0 | Z14: =Est2020DistRev!L14 -> 0 | AA14: =Est2020DistRev!M14 -> 0 | AB14: =Est2020DistRev!N14 -> 0 | AC14: =Est2020DistRev!O14 -> 0 | AD14: =Est2020DistRev!P14 -> 0 | AF14: 7 | AG14: 1224.099089 | AH14: 935.2246949 | AI14: 295.5317039 | AJ14: 0 | AK14: 40249.81788 | AL14: 0 | AM14: 0 | AN14: 0 | AO14: 0 | AP14: 0 | AQ14: 0 | AR14: 0 | AT14: 742 | AU14: 426.1590811 | AV14: 284.9040454 | AW14: 78.79318523 | AX14: 0 | AY14: 1195.137842 | AZ14: 0 | BA14: 0 | BB14: 0 | BC14: 0 | BD14: 0 | BE14: 0 | BF14: 0 | BG14: 2726.994154 | BI14: 826 | BJ14: 476.201476 | BK14: 318.3589032 | BL14: 88.04569181 | BM14: 0 | BN14: 1335.488957 | BO14: 0 | BP14: 0 | BQ14: 0 | BR14: 0 | BS14: 0 | BT14: 0 | BU14: 0 | BV14: 3044.095028
A15: NGT26 | B15: NGT26 Small Interval Multi Rate | C15: NGT26 Small Interval Multi Rate | D15: 106 | E15: 11.2356 | F15: 11.2356 | G15: 8.2333 | H15: 8.2333 | I15: 3.05 | J15: 3.05 | K15: 0 | L15: 0 | M15: 0 | N15: 0 | O15: 0 | P15: 0 | R15: =Est2020DistRev!D15 -> 118 | S15: =Est2020DistRev!E15 -> 12.229 | T15: =Est2020DistRev!F15 -> 12.229 | U15: =Est2020DistRev!G15 -> 8.9612 | V15: =Est2020DistRev!H15 -> 8.9612 | W15: =Est2020DistRev!I15 -> 3.3197 | X15: =Est2020DistRev!J15 -> 3.3197 | Y15: =Est2020DistRev!K15 -> 0 | Z15: =Est2020DistRev!L15 -> 0 | AA15: =Est2020DistRev!M15 -> 0 | AB15: =Est2020DistRev!N15 -> 0 | AC15: =Est2020DistRev!O15 -> 0 | AD15: =Est2020DistRev!P15 -> 0 | AF15: 778.3385935 | AG15: 1323806.292 | AH15: 0 | AI15: 1378430.228 | AJ15: 0 | AK15: 1366870.175 | AL15: 0 | AM15: 0 | AN15: 0 | AO15: 0 | AP15: 0 | AQ15: 0 | AR15: 0 | AT15: 82503.89091 | AU15: 148737.5797 | AV15: 0 | AW15: 113490.296 | AX15: 0 | AY15: 41689.54034 | AZ15: 0 | BA15: 0 | BB15: 0 | BC15: 0 | BD15: 0 | BE15: 0 | BF15: 0 | BG15: 386421.3069 | BI15: 91843.95403 | BJ15: 161888.2714 | BK15: 0 | BL15: 123523.8896 | BM15: 0 | BN15: 45375.9892 | BO15: 0 | BP15: 0 | BQ15: 0 | BR15: 0 | BS15: 0 | BT15: 0 | BU15: 0 | BV15: 422632.1042
A16: NEN20 | B16: NEN20 Small Two Rate - Embedded Network | C16: NEN20 Small Two Rate - Embedded Network | D16: 106 | E16: 9.0125 | F16: 0 | G16: 0 | H16: 0 | I16: 2.9461 | J16: 0 | K16: 0 | L16: 0 | M16: 0 | N16: 0 | O16: 0 | P16: 0 | R16: =Est2020DistRev!D16 -> 118 | S16: =Est2020DistRev!E16 -> 10.0708 | T16: =Est2020DistRev!F16 -> 0 | U16: =Est2020DistRev!G16 -> 0 | V16: =Est2020DistRev!H16 -> 0 | W16: =Est2020DistRev!I16 -> 3.292 | X16: =Est2020DistRev!J16 -> 0 | Y16: =Est2020DistRev!K16 -> 0 | Z16: =Est2020DistRev!L16 -> 0 | AA16: =Est2020DistRev!M16 -> 0 | AB16: =Est2020DistRev!N16 -> 0 | AC16: =Est2020DistRev!O16 -> 0 | AD16: =Est2020DistRev!P16 -> 0 | AF16: 0 | AG16: 0 | AH16: 0 | AI16: 0 | AJ16: 0 | AK16: 0 | AL16: 0 | AM16: 0 | AN16: 0 | AO16: 0 | AP16: 0 | AQ16: 0 | AR16: 0 | AT16: 0 | AU16: 0 | AV16: 0 | AW16: 0 | AX16: 0 | AY16: 0 | AZ16: 0 | BA16: 0 | BB16: 0 | BC16: 0 | BD16: 0 | BE16: 0 | BF16: 0 | BG16: 0 | BI16: 0 | BJ16: 0 | BK16: 0 | BL16: 0 | BM16: 0 | BN16: 0 | BO16: 0 | BP16: 0 | BQ16: 0 | BR16: 0 | BS16: 0 | BT16: 0 | BU16: 0 | BV16: 0
A17: NEE21 | B17: NEE21 Small Business Two Rate | C17: NEE21 Small Business Two Rate | D17: 106 | E17: 14.5435 | F17: 0 | G17: 0 | H17: 0 | I17: 3.0126 | J17: 0 | K17: 0 | L17: 0 | M17: 0 | N17: 0 | O17: 0 | P17: 0 | R17: =Est2020DistRev!D17 -> 118 | S17: =Est2020DistRev!E17 -> 16.2513 | T17: =Est2020DistRev!F17 -> 0 | U17: =Est2020DistRev!G17 -> 0 | V17: =Est2020DistRev!H17 -> 0 | W17: =Est2020DistRev!I17 -> 3.3664 | X17: =Est2020DistRev!J17 -> 0 | Y17: =Est2020DistRev!K17 -> 0.5975 | Z17: =Est2020DistRev!L17 -> 0 | AA17: =Est2020DistRev!M17 -> 0 | AB17: =Est2020DistRev!N17 -> 0 | AC17: =Est2020DistRev!O17 -> 0 | AD17: =Est2020DistRev!P17 -> 0 | AF17: 14772.51818 | AG17: 95606928.02 | AH17: 0 | AI17: 0 | AJ17: 0 | AK17: 71167541.72 | AL17: 0 | AM17: -6826817.572 | AN17: 0 | AO17: 0 | AP17: 0 | AQ17: 0 | AR17: 0 | AT17: 1565886.927 | AU17: 13904593.58 | AV17: 0 | AW17: 0 | AX17: 0 | AY17: 2143993.362 | AZ17: 0 | BA17: 0 | BB17: 0 | BC17: 0 | BD17: 0 | BE17: 0 | BF17: 0 | BG17: 17614473.87 | BI17: 1743157.146 | BJ17: 15537368.69 | BK17: 0 | BL17: 0 | BM17: 0 | BN17: 2395784.124 | BO17: 0 | BP17: -40790.23499 | BQ17: 0 | BR17: 0 | BS17: 0 | BT17: 0 | BU17: 0 | BV17: 19635519.73
A18: NSP21 | B18: NSP21 Small Business Two Rate | C18: NSP21 Small Business Two Rate | D18: 106 | E18: 34.8141 | F18: 30.4637 | G18: 26.6615 | H18: 0 | I18: 2.9693 | J18: 0 | K18: 0 | L18: 0 | M18: 0 | N18: 0 | O18: 0 | P18: 0 | R18: =Est2020DistRev!D18 -> 118 | S18: =Est2020DistRev!E18 -> 38.9022 | T18: =Est2020DistRev!F18 -> 34.0409 | U18: =Est2020DistRev!G18 -> 29.7923 | V18: =Est2020DistRev!H18 -> 0 | W18: =Est2020DistRev!I18 -> 3.318 | X18: =Est2020DistRev!J18 -> 0 | Y18: =Est2020DistRev!K18 -> 0.5975 | Z18: =Est2020DistRev!L18 -> 0 | AA18: =Est2020DistRev!M18 -> 0 | AB18: =Est2020DistRev!N18 -> 0 | AC18: =Est2020DistRev!O18 -> 0 | AD18: =Est2020DistRev!P18 -> 0 | AF18: 12.38757058 | AG18: 3155.707254 | AH18: 11732.08998 | AI18: 5294.728203 | AJ18: 0 | AK18: 229094.7831 | AL18: 0 | AM18: -1050 | AN18: 0 | AO18: 0 | AP18: 0 | AQ18: 0 | AR18: 0 | AT18: 1313.082482 | AU18: 1098.631079 | AV18: 3574.028694 | AW18: 1411.65396 | AX18: 0 | AY18: 6802.511395 | AZ18: 0 | BA18: 0 | BB18: 0 | BC18: 0 | BD18: 0 | BE18: 0 | BF18: 0 | BG18: 14199.90761 | BI18: 1461.733329 | BJ18: 1227.639547 | BK18: 3993.709017 | BL18: 1577.42131 | BM18: 0 | BN18: 7601.364903 | BO18: 0 | BP18: -6.27375 | BQ18: 0 | BR18: 0 | BS18: 0 | BT18: 0 | BU18: 0 | BV18: 15855.59436
A19: NSP27 | B19: NSP27 Small Business Two Rate | C19: NSP27 Small Business Two Rate | D19: 106 | E19: 19.6727 | F19: 17.2452 | G19: 15.1249 | H19: 0 | I19: 5.4007 | J19: 0 | K19: 0 | L19: 0 | M19: 0 | N19: 0 | O19: 0 | P19: 0 | R19: =Est2020DistRev!D19 -> 118 | S19: =Est2020DistRev!E19 -> 21.9828 | T19: =Est2020DistRev!F19 -> 19.2702 | U19: =Est2020DistRev!G19 -> 16.9009 | V19: =Est2020DistRev!H19 -> 0 | W19: =Est2020DistRev!I19 -> 6.0349 | X19: =Est2020DistRev!J19 -> 0 | Y19: =Est2020DistRev!K19 -> 0.5975 | Z19: =Est2020DistRev!L19 -> 0 | AA19: =Est2020DistRev!M19 -> 0 | AB19: =Est2020DistRev!N19 -> 0 | AC19: =Est2020DistRev!O19 -> 0 | AD19: =Est2020DistRev!P19 -> 0 | AF19: 111.8313559 | AG19: 26116.11276 | AH19: 26228.72567 | AI19: 65430.57892 | AJ19: 0 | AK19: 7355360.386 | AL19: 0 | AM19: -13316.4 | AN19: 0 | AO19: 0 | AP19: 0 | AQ19: 0 | AR19: 0 | AT19: 11854.12372 | AU19: 5137.744514 | AV19: 4523.1962 | AW19: 9896.309631 | AX19: 0 | AY19: 397240.9484 | AZ19: 0 | BA19: 0 | BB19: 0 | BC19: 0 | BD19: 0 | BE19: 0 | BF19: 0 | BG19: 428652.3224 | BI19: 13196.09999 | BJ19: 5741.052835 | BK19: 5054.327895 | BL19: 11058.35671 | BM19: 0 | BN19: 443888.6439 | BO19: 0 | BP19: -79.56549 | BQ19: 0 | BR19: 0 | BS19: 0 | BT19: 0 | BU19: 0 | BV19: 478858.9159
A20: NEN21 | B20: NEN21 Small Business Two Rate - Embedded Network | C20: NEN21 Small Business Two Rate - Embedded Network | D20: 106 | E20: 10.0993 | F20: 0 | G20: 0 | H20: 0 | I20: 4.6013 | J20: 0 | K20: 0 | L20: 0 | M20: 0 | N20: 0 | O20: 0 | P20: 0 | R20: =Est2020DistRev!D20 -> 118 | S20: =Est2020DistRev!E20 -> 11.2852 | T20: =Est2020DistRev!F20 -> 0 | U20: =Est2020DistRev!G20 -> 0 | V20: =Est2020DistRev!H20 -> 0 | W20: =Est2020DistRev!I20 -> 5.1416 | X20: =Est2020DistRev!J20 -> 0 | Y20: =Est2020DistRev!K20 -> 0 | Z20: =Est2020DistRev!L20 -> 0 | AA20: =Est2020DistRev!M20 -> 0 | AB20: =Est2020DistRev!N20 -> 0 | AC20: =Est2020DistRev!O20 -> 0 | AD20: =Est2020DistRev!P20 -> 0 | AF20: 0 | AG20: 0 | AH20: 0 | AI20: 0 | AJ20: 0 | AK20: 0 | AL20: 0 | AM20: 0 | AN20: 0 | AO20: 0 | AP20: 0 | AQ20: 0 | AR20: 0 | AT20: 0 | AU20: 0 | AV20: 0 | AW20: 0 | AX20: 0 | AY20: 0 | AZ20: 0 | BA20: 0 | BB20: 0 | BC20: 0 | BD20: 0 | BE20: 0 | BF20: 0 | BG20: 0 | BI20: 0 | BJ20: 0 | BK20: 0 | BL20: 0 | BM20: 0 | BN20: 0 | BO20: 0 | BP20: 0 | BQ20: 0 | BR20: 0 | BS20: 0 | BT20: 0 | BU20: 0 | BV20: 0
A21: NEE23 | B21: NEE23 Photovoltaic | C21: NEE23 Photovoltaic | D21: 116 | E21: 15.6003 | F21: 0 | G21: 0 | H21: 0 | I21: 2.8691 | J21: 0 | K21: 0 | L21: 0 | M21: 0 | N21: 0 | O21: 0 | P21: 0 | R21: =Est2020DistRev!D21 -> 130 | S21: =Est2020DistRev!E21 -> 16.9796 | T21: =Est2020DistRev!F21 -> 0 | U21: =Est2020DistRev!G21 -> 0 | V21: =Est2020DistRev!H21 -> 0 | W21: =Est2020DistRev!I21 -> 3.1228 | X21: =Est2020DistRev!J21 -> 0 | Y21: =Est2020DistRev!K21 -> 0.5975 | Z21: =Est2020DistRev!L21 -> 0 | AA21: =Est2020DistRev!M21 -> 0 | AB21: =Est2020DistRev!N21 -> 0 | AC21: =Est2020DistRev!O21 -> 0 | AD21: =Est2020DistRev!P21 -> 0 | AF21: 78747.11053 | AG21: 148727012 | AH21: 0 | AI21: 0 | AJ21: 0 | AK21: 186285788.9 | AL21: 0 | AM21: -137295086.9 | AN21: 0 | AO21: 0 | AP21: 0 | AQ21: 0 | AR21: 0 | AT21: 9134664.822 | AU21: 23201860.06 | AV21: 0 | AW21: 0 | AX21: 0 | AY21: 5344725.568 | AZ21: 0 | BA21: 0 | BB21: 0 | BC21: 0 | BD21: 0 | BE21: 0 | BF21: 0 | BG21: 37681250.45 | BI21: 10237124.37 | BJ21: 25253251.73 | BK21: 0 | BL21: 0 | BM21: 0 | BN21: 5817332.615 | BO21: 0 | BP21: -820338.1444 | BQ21: 0 | BR21: 0 | BS21: 0 | BT21: 0 | BU21: 0 | BV21: 40487370.57
A22: NSP23 | B22: NSP23 Photovoltaic | C22: NSP23 Photovoltaic | D22: 116 | E22: 34.8141 | F22: 30.4637 | G22: 26.6615 | H22: 0 | I22: 2.9693 | J22: 0 | K22: 0 | L22: 0 | M22: 0 | N22: 0 | O22: 0 | P22: 0 | R22: =Est2020DistRev!D22 -> 130 | S22: =Est2020DistRev!E22 -> 38.9022 | T22: =Est2020DistRev!F22 -> 34.0409 | U22: =Est2020DistRev!G22 -> 29.7923 | V22: =Est2020DistRev!H22 -> 0 | W22: =Est2020DistRev!I22 -> 3.318 | X22: =Est2020DistRev!J22 -> 0 | Y22: =Est2020DistRev!K22 -> 0.5975 | Z22: =Est2020DistRev!L22 -> 0 | AA22: =Est2020DistRev!M22 -> 0 | AB22: =Est2020DistRev!N22 -> 0 | AC22: =Est2020DistRev!O22 -> 0 | AD22: =Est2020DistRev!P22 -> 0 | AF22: 153.588696 | AG22: 1470.608659 | AH22: 1503.732715 | AI22: 36097.96162 | AJ22: 0 | AK22: 613592.2774 | AL22: 0 | AM22: -354454.3172 | AN22: 0 | AO22: 0 | AP22: 0 | AQ22: 0 | AR22: 0 | AT22: 17816.28874 | AU22: 511.9791691 | AV22: 458.0926232 | AW22: 9624.258038 | AX22: 0 | AY22: 18219.39549 | AZ22: 0 | BA22: 0 | BB22: 0 | BC22: 0 | BD22: 0 | BE22: 0 | BF22: 0 | BG22: 46630.01406 | BI22: 19966.53049 | BJ22: 572.0991217 | BK22: 511.8841499 | BL22: 10754.41302 | BM22: 0 | BN22: 20358.99176 | BO22: 0 | BP22: -2117.864545 | BQ22: 0 | BR22: 0 | BS22: 0 | BT22: 0 | BU22: 0 | BV22: 50046.054
A23: NEE24 | B23: NEE24 Small rate 5 day 8 to 8 | C23: NEE24 Small rate 5 day 8 to 8 | D23: 106 | E23: 6.5595 | F23: 0 | G23: 0 | H23: 0 | I23: 2.7625 | J23: 0 | K23: 0 | L23: 0 | M23: 0 | N23: 0 | O23: 0 | P23: 0 | R23: =Est2020DistRev!D23 -> 118 | S23: =Est2020DistRev!E23 -> 7.3298 | T23: =Est2020DistRev!F23 -> 0 | U23: =Est2020DistRev!G23 -> 0 | V23: =Est2020DistRev!H23 -> 0 | W23: =Est2020DistRev!I23 -> 3.0869 | X23: =Est2020DistRev!J23 -> 0 | Y23: =Est2020DistRev!K23 -> 0 | Z23: =Est2020DistRev!L23 -> 0 | AA23: =Est2020DistRev!M23 -> 0 | AB23: =Est2020DistRev!N23 -> 0 | AC23: =Est2020DistRev!O23 -> 0 | AD23: =Est2020DistRev!P23 -> 0 | AF23: 1100.169297 | AG23: 1290491.094 | AH23: 0 | AI23: 0 | AJ23: 0 | AK23: 3209655.895 | AL23: 0 | AM23: 0 | AN23: 0 | AO23: 0 | AP23: 0 | AQ23: 0 | AR23: 0 | AT23: 116617.9455 | AU23: 84649.76328 | AV23: 0 | AW23: 0 | AX23: 0 | AY23: 88666.74409 | AZ23: 0 | BA23: 0 | BB23: 0 | BC23: 0 | BD23: 0 | BE23: 0 | BF23: 0 | BG23: 289934.4528 | BI23: 129819.977 | BJ23: 94590.41618 | BK23: 0 | BL23: 0 | BM23: 0 | BN23: 99078.86781 | BO23: 0 | BP23: 0 | BQ23: 0 | BR23: 0 | BS23: 0 | BT23: 0 | BU23: 0 | BV23: 323489.261
A24: NEE25 | B24: NEE25 Small business rate 5 day 8 to 8 | C24: NEE25 Small business rate 5 day 8 to 8 | D24: 106 | E24: 13.7666 | F24: 0 | G24: 0 | H24: 0 | I24: 2.8699 | J24: 0 | K24: 0 | L24: 0 | M24: 0 | N24: 0 | O24: 0 | P24: 0 | R24: =Est2020DistRev!D24 -> 118 | S24: =Est2020DistRev!E24 -> 15.3832 | T24: =Est2020DistRev!F24 -> 0 | U24: =Est2020DistRev!G24 -> 0 | V24: =Est2020DistRev!H24 -> 0 | W24: =Est2020DistRev!I24 -> 3.2069 | X24: =Est2020DistRev!J24 -> 0 | Y24: =Est2020DistRev!K24 -> 0 | Z24: =Est2020DistRev!L24 -> 0 | AA24: =Est2020DistRev!M24 -> 0 | AB24: =Est2020DistRev!N24 -> 0 | AC24: =Est2020DistRev!O24 -> 0 | AD24: =Est2020DistRev!P24 -> 0 | AF24: 3.5 | AG24: 93117.10304 | AH24: 0 | AI24: 0 | AJ24: 0 | AK24: 100928.9976 | AL24: 0 | AM24: 0 | AN24: 0 | AO24: 0 | AP24: 0 | AQ24: 0 | AR24: 0 | AT24: 371 | AU24: 12819.05911 | AV24: 0 | AW24: 0 | AX24: 0 | AY24: 2896.561302 | AZ24: 0 | BA24: 0 | BB24: 0 | BC24: 0 | BD24: 0 | BE24: 0 | BF24: 0 | BG24: 16086.62041 | BI24: 413 | BJ24: 14324.3902 | BK24: 0 | BL24: 0 | BM24: 0 | BN24: 3236.692024 | BO24: 0 | BP24: 0 | BQ24: 0 | BR24: 0 | BS24: 0 | BT24: 0 | BU24: 0 | BV24: 17974.08222
A25: NEE30 | B25: NEE30 Small Dedicated | C25: NEE30 Small Dedicated | D25: 0 | E25: 0 | F25: 0 | G25: 0 | H25: 0 | I25: 2.7869 | J25: 0 | K25: 0 | L25: 0 | M25: 0 | N25: 0 | O25: 0 | P25: 0 | R25: =Est2020DistRev!D25 -> 0 | S25: =Est2020DistRev!E25 -> 0 | T25: =Est2020DistRev!F25 -> 0 | U25: =Est2020DistRev!G25 -> 0 | V25: =Est2020DistRev!H25 -> 0 | W25: =Est2020DistRev!I25 -> 3.1141 | X25: =Est2020DistRev!J25 -> 0 | Y25: =Est2020DistRev!K25 -> 0 | Z25: =Est2020DistRev!L25 -> 0 | AA25: =Est2020DistRev!M25 -> 0 | AB25: =Est2020DistRev!N25 -> 0 | AC25: =Est2020DistRev!O25 -> 0 | AD25: =Est2020DistRev!P25 -> 0 | AF25: 42479.55853 | AG25: 0 | AH25: 0 | AI25: 0 | AJ25: 0 | AK25: 54981945.82 | AL25: 0 | AM25: 0 | AN25: 0 | AO25: 0 | AP25: 0 | AQ25: 0 | AR25: 0 | AT25: 0 | AU25: 0 | AV25: 0 | AW25: 0 | AX25: 0 | AY25: 1532291.848 | AZ25: 0 | BA25: 0 | BB25: 0 | BC25: 0 | BD25: 0 | BE25: 0 | BF25: 0 | BG25: 1532291.848 | BI25: 0 | BJ25: 0 | BK25: 0 | BL25: 0 | BM25: 0 | BN25: 1712192.775 | BO25: 0 | BP25: 0 | BQ25: 0 | BR25: 0 | BS25: 0 | BT25: 0 | BU25: 0 | BV25: 1712192.775
A26: NSP30 | B26: NSP30 Small Dedicated | C26: NSP30 Small Dedicated | D26: 0 | E26: 0 | F26: 0 | G26: 0 | H26: 0 | I26: 2.7869 | J26: 0 | K26: 0 | L26: 0 | M26: 0 | N26: 0 | O26: 0 | P26: 0 | R26: =Est2020DistRev!D26 -> 0 | S26: =Est2020DistRev!E26 -> 0 | T26: =Est2020DistRev!F26 -> 0 | U26: =Est2020DistRev!G26 -> 0 | V26: =Est2020DistRev!H26 -> 0 | W26: =Est2020DistRev!I26 -> 3.1141 | X26: =Est2020DistRev!J26 -> 0 | Y26: =Est2020DistRev!K26 -> 0 | Z26: =Est2020DistRev!L26 -> 0 | AA26: =Est2020DistRev!M26 -> 0 | AB26: =Est2020DistRev!N26 -> 0 | AC26: =Est2020DistRev!O26 -> 0 | AD26: =Est2020DistRev!P26 -> 0 | AF26: 0 | AG26: 0 | AH26: 0 | AI26: 0 | AJ26: 0 | AK26: 0 | AL26: 0 | AM26: 0 | AN26: 0 | AO26: 0 | AP26: 0 | AQ26: 0 | AR26: 0 | AT26: 0 | AU26: 0 | AV26: 0 | AW26: 0 | AX26: 0 | AY26: 0 | AZ26: 0 | BA26: 0 | BB26: 0 | BC26: 0 | BD26: 0 | BE26: 0 | BF26: 0 | BG26: 0 | BI26: 0 | BJ26: 0 | BK26: 0 | BL26: 0 | BM26: 0 | BN26: 0 | BO26: 0 | BP26: 0 | BQ26: 0 | BR26: 0 | BS26: 0 | BT26: 0 | BU26: 0 | BV26: 0
A27: NEE31 | B27: NEE31 Small Dedicated-afternoon boost | C27: NEE31 Small Dedicated-afternoon boost | D27: 0 | E27: 0 | F27: 0 | G27: 0 | H27: 0 | I27: 2.7869 | J27: 0 | K27: 0 | L27: 0 | M27: 0 | N27: 0 | O27: 0 | P27: 0 | R27: =Est2020DistRev!D27 -> 0 | S27: =Est2020DistRev!E27 -> 0 | T27: =Est2020DistRev!F27 -> 0 | U27: =Est2020DistRev!G27 -> 0 | V27: =Est2020DistRev!H27 -> 0 | W27: =Est2020DistRev!I27 -> 3.1141 | X27: =Est2020DistRev!J27 -> 0 | Y27: =Est2020DistRev!K27 -> 0 | Z27: =Est2020DistRev!L27 -> 0 | AA27: =Est2020DistRev!M27 -> 0 | AB27: =Est2020DistRev!N27 -> 0 | AC27: =Est2020DistRev!O27 -> 0 | AD27: =Est2020DistRev!P27 -> 0 | AF27: 6284.002625 | AG27: 0 | AH27: 0 | AI27: 0 | AJ27: 0 | AK27: 15874112.38 | AL27: 0 | AM27: 0 | AN27: 0 | AO27: 0 | AP27: 0 | AQ27: 0 | AR27: 0 | AT27: 0 | AU27: 0 | AV27: 0 | AW27: 0 | AX27: 0 | AY27: 442395.6378 | AZ27: 0 | BA27: 0 | BB27: 0 | BC27: 0 | BD27: 0 | BE27: 0 | BF27: 0 | BG27: 442395.6378 | BI27: 0 | BJ27: 0 | BK27: 0 | BL27: 0 | BM27: 0 | BN27: 494335.7335 | BO27: 0 | BP27: 0 | BQ27: 0 | BR27: 0 | BS27: 0 | BT27: 0 | BU27: 0 | BV27: 494335.7335
A28: NSP31 | B28: NSP31 Small Dedicated-afternoon boost | C28: NSP31 Small Dedicated-afternoon boost | D28: 0 | E28: 0 | F28: 0 | G28: 0 | H28: 0 | I28: 2.7869 | J28: 0 | K28: 0 | L28: 0 | M28: 0 | N28: 0 | O28: 0 | P28: 0 | R28: =Est2020DistRev!D28 -> 0 | S28: =Est2020DistRev!E28 -> 0 | T28: =Est2020DistRev!F28 -> 0 | U28: =Est2020DistRev!G28 -> 0 | V28: =Est2020DistRev!H28 -> 0 | W28: =Est2020DistRev!I28 -> 3.1141 | X28: =Est2020DistRev!J28 -> 0 | Y28: =Est2020DistRev!K28 -> 0 | Z28: =Est2020DistRev!L28 -> 0 | AA28: =Est2020DistRev!M28 -> 0 | AB28: =Est2020DistRev!N28 -> 0 | AC28: =Est2020DistRev!O28 -> 0 | AD28: =Est2020DistRev!P28 -> 0 | AF28: 0 | AG28: 0 | AH28: 0 | AI28: 0 | AJ28: 0 | AK28: 0 | AL28: 0 | AM28: 0 | AN28: 0 | AO28: 0 | AP28: 0 | AQ28: 0 | AR28: 0 | AT28: 0 | AU28: 0 | AV28: 0 | AW28: 0 | AX28: 0 | AY28: 0 | AZ28: 0 | BA28: 0 | BB28: 0 | BC28: 0 | BD28: 0 | BE28: 0 | BF28: 0 | BG28: 0 | BI28: 0 | BJ28: 0 | BK28: 0 | BL28: 0 | BM28: 0 | BN28: 0 | BO28: 0 | BP28: 0 | BQ28: 0 | BR28: 0 | BS28: 0 | BT28: 0 | BU28: 0 | BV28: 0
A29: NEE32 | B29: NEE32 Dedicated Circuit 8 to 8 | C29: NEE32 Dedicated Circuit 8 to 8 | D29: 0 | E29: 0 | F29: 0 | G29: 0 | H29: 0 | I29: 2.7869 | J29: 0 | K29: 0 | L29: 0 | M29: 0 | N29: 0 | O29: 0 | P29: 0 | R29: =Est2020DistRev!D29 -> 0 | S29: =Est2020DistRev!E29 -> 0 | T29: =Est2020DistRev!F29 -> 0 | U29: =Est2020DistRev!G29 -> 0 | V29: =Est2020DistRev!H29 -> 0 | W29: =Est2020DistRev!I29 -> 3.1141 | X29: =Est2020DistRev!J29 -> 0 | Y29: =Est2020DistRev!K29 -> 0 | Z29: =Est2020DistRev!L29 -> 0 | AA29: =Est2020DistRev!M29 -> 0 | AB29: =Est2020DistRev!N29 -> 0 | AC29: =Est2020DistRev!O29 -> 0 | AD29: =Est2020DistRev!P29 -> 0 | AF29: 1823.930886 | AG29: 0 | AH29: 0 | AI29: 0 | AJ29: 0 | AK29: 2310467.8 | AL29: 0 | AM29: 0 | AN29: 0 | AO29: 0 | AP29: 0 | AQ29: 0 | AR29: 0 | AT29: 0 | AU29: 0 | AV29: 0 | AW29: 0 | AX29: 0 | AY29: 64390.42713 | AZ29: 0 | BA29: 0 | BB29: 0 | BC29: 0 | BD29: 0 | BE29: 0 | BF29: 0 | BG29: 64390.42713 | BI29: 0 | BJ29: 0 | BK29: 0 | BL29: 0 | BM29: 0 | BN29: 71950.27777 | BO29: 0 | BP29: 0 | BQ29: 0 | BR29: 0 | BS29: 0 | BT29: 0 | BU29: 0 | BV29: 71950.27777
A30: NSP32 | B30: NSP32 Dedicated Circuit 8 to 8 | C30: NSP32 Dedicated Circuit 8 to 8 | D30: 0 | E30: 0 | F30: 0 | G30: 0 | H30: 0 | I30: 2.7869 | J30: 0 | K30: 0 | L30: 0 | M30: 0 | N30: 0 | O30: 0 | P30: 0 | R30: =Est2020DistRev!D30 -> 0 | S30: =Est2020DistRev!E30 -> 0 | T30: =Est2020DistRev!F30 -> 0 | U30: =Est2020DistRev!G30 -> 0 | V30: =Est2020DistRev!H30 -> 0 | W30: =Est2020DistRev!I30 -> 3.1141 | X30: =Est2020DistRev!J30 -> 0 | Y30: =Est2020DistRev!K30 -> 0 | Z30: =Est2020DistRev!L30 -> 0 | AA30: =Est2020DistRev!M30 -> 0 | AB30: =Est2020DistRev!N30 -> 0 | AC30: =Est2020DistRev!O30 -> 0 | AD30: =Est2020DistRev!P30 -> 0 | AF30: 0 | AG30: 0 | AH30: 0 | AI30: 0 | AJ30: 0 | AK30: 0 | AL30: 0 | AM30: 0 | AN30: 0 | AO30: 0 | AP30: 0 | AQ30: 0 | AR30: 0 | AT30: 0 | AU30: 0 | AV30: 0 | AW30: 0 | AX30: 0 | AY30: 0 | AZ30: 0 | BA30: 0 | BB30: 0 | BC30: 0 | BD30: 0 | BE30: 0 | BF30: 0 | BG30: 0 | BI30: 0 | BJ30: 0 | BK30: 0 | BL30: 0 | BM30: 0 | BN30: 0 | BO30: 0 | BP30: 0 | BQ30: 0 | BR30: 0 | BS30: 0 | BT30: 0 | BU30: 0 | BV30: 0
A31: NEE40 | B31: NEE40 Medium Single Rate - closed to new customers | C31: NEE40 Medium Single Rate - closed to new customers | D31: 106 | E31: 20.3491 | F31: 0 | G31: 0 | H31: 0 | I31: 0 | J31: 0 | K31: 0 | L31: 0 | M31: 0 | N31: 0 | O31: 0 | P31: 0 | R31: =Est2020DistRev!D31 -> 118 | S31: =Est2020DistRev!E31 -> 22.7386 | T31: =Est2020DistRev!F31 -> 0 | U31: =Est2020DistRev!G31 -> 0 | V31: =Est2020DistRev!H31 -> 0 | W31: =Est2020DistRev!I31 -> 0 | X31: =Est2020DistRev!J31 -> 0 | Y31: =Est2020DistRev!K31 -> 0 | Z31: =Est2020DistRev!L31 -> 0 | AA31: =Est2020DistRev!M31 -> 0 | AB31: =Est2020DistRev!N31 -> 0 | AC31: =Est2020DistRev!O31 -> 0 | AD31: =Est2020DistRev!P31 -> 0 | AF31: 118.2170397 | AG31: 2580392.564 | AH31: 0 | AI31: 0 | AJ31: 0 | AK31: 0 | AL31: 0 | AM31: 0 | AN31: 0 | AO31: 0 | AP31: 0 | AQ31: 0 | AR31: 0 | AT31: 12531.00621 | AU31: 525086.6632 | AV31: 0 | AW31: 0 | AX31: 0 | AY31: 0 | AZ31: 0 | BA31: 0 | BB31: 0 | BC31: 0 | BD31: 0 | BE31: 0 | BF31: 0 | BG31: 537617.6694 | BI31: 13949.61068 | BJ31: 586745.1435 | BK31: 0 | BL31: 0 | BM31: 0 | BN31: 0 | BO31: 0 | BP31: 0 | BQ31: 0 | BR31: 0 | BS31: 0 | BT31: 0 | BU31: 0 | BV31: 600694.7541
A32: NEE51 | B32: NEE51 Medium Two Rate 5Day - closed to new customers - <160MWh to NEE21 | C32: NEE51 Medium Two Rate 5Day - closed to new customers - <160MWh to NEE21 | D32: 106 | E32: 17.5828 | F32: 0 | G32: 0 | H32: 0 | I32: 3.7239 | J32: 0 | K32: 0 | L32: 0 | M32: 0 | N32: 0 | O32: 0 | P32: 0 | R32: =Est2020DistRev!D32 -> 118 | S32: =Est2020DistRev!E32 -> 19.6475 | T32: =Est2020DistRev!F32 -> 0 | U32: =Est2020DistRev!G32 -> 0 | V32: =Est2020DistRev!H32 -> 0 | W32: =Est2020DistRev!I32 -> 4.1612 | X32: =Est2020DistRev!J32 -> 0 | Y32: =Est2020DistRev!K32 -> 0 | Z32: =Est2020DistRev!L32 -> 0 | AA32: =Est2020DistRev!M32 -> 0 | AB32: =Est2020DistRev!N32 -> 0 | AC32: =Est2020DistRev!O32 -> 0 | AD32: =Est2020DistRev!P32 -> 0 | AF32: 189.9351202 | AG32: 21635948.95 | AH32: 0 | AI32: 0 | AJ32: 0 | AK32: 18217897.32 | AL32: 0 | AM32: 0 | AN32: 0 | AO32: 0 | AP32: 0 | AQ32: 0 | AR32: 0 | AT32: 20133.12275 | AU32: 3804205.632 | AV32: 0 | AW32: 0 | AX32: 0 | AY32: 678416.2784 | AZ32: 0 | BA32: 0 | BB32: 0 | BC32: 0 | BD32: 0 | BE32: 0 | BF32: 0 | BG32: 4502755.033 | BI32: 22412.34419 | BJ32: 4250923.069 | BK32: 0 | BL32: 0 | BM32: 0 | BN32: 758083.1434 | BO32: 0 | BP32: 0 | BQ32: 0 | BR32: 0 | BS32: 0 | BT32: 0 | BU32: 0 | BV32: 5031418.557
A33: NEE55 | B33: NEE55 Snowfields Tariff | C33: NEE55 Snowfields Tariff | D33: 106 | E33: 13.1077 | F33: 0 | G33: 0 | H33: 0 | I33: 3.6657 | J33: 0 | K33: 0 | L33: 0 | M33: 0 | N33: 0 | O33: 0 | P33: 0 | R33: =Est2020DistRev!D33 -> 118 | S33: =Est2020DistRev!E33 -> 14.6469 | T33: =Est2020DistRev!F33 -> 0 | U33: =Est2020DistRev!G33 -> 0 | V33: =Est2020DistRev!H33 -> 0 | W33: =Est2020DistRev!I33 -> 4.0962 | X33: =Est2020DistRev!J33 -> 0 | Y33: =Est2020DistRev!K33 -> 0 | Z33: =Est2020DistRev!L33 -> 0 | AA33: =Est2020DistRev!M33 -> 0 | AB33: =Est2020DistRev!N33 -> 0 | AC33: =Est2020DistRev!O33 -> 0 | AD33: =Est2020DistRev!P33 -> 0 | AE33: =Est2020DistRev!Q33 -> 0 | AF33: 0.5 | AG33: 36029.74523 | AH33: 0 | AI33: 0 | AJ33: 0 | AK33: 37046.36548 | AL33: 0 | AM33: 0 | AN33: 0 | AO33: 0 | AP33: 0 | AQ33: 0 | AR33: 0 | AT33: 53 | AU33: 4722.670916 | AV33: 0 | AW33: 0 | AX33: 0 | AY33: 1358.008619 | AZ33: 0 | BA33: 0 | BB33: 0 | BC33: 0 | BD33: 0 | BE33: 0 | BF33: 0 | BG33: 6133.679535 | BI33: 59 | BJ33: 5277.240754 | BK33: 0 | BL33: 0 | BM33: 0 | BN33: 1517.493223 | BO33: 0 | BP33: 0 | BQ33: 0 | BR33: 0 | BS33: 0 | BT33: 0 | BU33: 0 | BV33: 6853.733977
A34: NSP55 | B34: NSP55 Snowfields Tariff | C34: NSP55 Snowfields Tariff | D34: 106 | E34: 34.9844 | F34: 30.6126 | G34: 26.7918 | H34: 0 | I34: 2.1199 | J34: 0 | K34: 0 | L34: 0 | M34: 0 | N34: 0 | O34: 0 | P34: 0 | R34: =Est2020DistRev!D34 -> 118 | S34: =Est2020DistRev!E34 -> 39.0925 | T34: =Est2020DistRev!F34 -> 34.2073 | U34: =Est2020DistRev!G34 -> 29.9379 | V34: =Est2020DistRev!H34 -> 0 | W34: =Est2020DistRev!I34 -> 2.3688 | X34: =Est2020DistRev!J34 -> 0 | Y34: =Est2020DistRev!K34 -> 0 | Z34: =Est2020DistRev!L34 -> 0 | AA34: =Est2020DistRev!M34 -> 0 | AB34: =Est2020DistRev!N34 -> 0 | AC34: =Est2020DistRev!O34 -> 0 | AD34: =Est2020DistRev!P34 -> 0 | AE34: =Est2020DistRev!Q34 -> 0 | AF34: 3.5 | AG34: 9550.226913 | AH34: 54117.95251 | AI34: 25329.33022 | AJ34: 0 | AK34: 535690.8771 | AL34: 0 | AM34: 0 | AN34: 0 | AO34: 0 | AP34: 0 | AQ34: 0 | AR34: 0 | AT34: 371 | AU34: 3341.089584 | AV34: 16566.91233 | AW34: 6786.183493 | AX34: 0 | AY34: 11356.1109 | AZ34: 0 | BA34: 0 | BB34: 0 | BC34: 0 | BD34: 0 | BE34: 0 | BF34: 0 | BG34: 38421.29631 | BI34: 413 | BJ34: 3733.422456 | BK34: 18512.29037 | BL34: 7583.06955 | BM34: 0 | BN34: 12689.4455 | BO34: 0 | BP34: 0 | BQ34: 0 | BR34: 0 | BS34: 0 | BT34: 0 | BU34: 0 | BV34: 42931.22787
A35: NSP56 | B35: NSP56 Medium Demand Multi-rate | C35: NSP56 Medium Demand Multi-rate | D35: 2282 | E35: 9.9768 | F35: 7.2641 | G35: 0 | H35: 0 | I35: 3.4093 | J35: 0 | K35: 0 | L35: 0 | M35: 17.35 | N35: 28.92 | O35: 0 | P35: 0 | R35: =Est2020DistRev!D35 -> 2550 | S35: =Est2020DistRev!E35 -> 11.1483 | T35: =Est2020DistRev!F35 -> 8.1171 | U35: =Est2020DistRev!G35 -> 0 | V35: =Est2020DistRev!H35 -> 0 | W35: =Est2020DistRev!I35 -> 3.8096 | X35: =Est2020DistRev!J35 -> 0 | Y35: =Est2020DistRev!K35 -> 0 | Z35: =Est2020DistRev!L35 -> 0 | AA35: =Est2020DistRev!M35 -> 19.39 | AB35: =Est2020DistRev!N35 -> 32.32 | AC35: =Est2020DistRev!O35 -> 0 | AD35: =Est2020DistRev!P35 -> 0 | AE35: =Est2020DistRev!Q35 -> 0 | AF35: 635.90625 | AG35: 42307312.42 | AH35: 32269925.85 | AI35: 0 | AJ35: 0 | AK35: 53760873.8 | AL35: 0 | AM35: 0 | AN35: 0 | AO35: 106189.7327 | AP35: 37696.83715 | AQ35: 0 | AR35: 0 | AT35: 1451138.062 | AU35: =E35/100*AG35 -> 4220915.946 | AV35: 2344119.683 | AW35: 0 | AX35: 0 | AY35: 1832869.471 | AZ35: 0 | BA35: 0 | BB35: 0 | BC35: =M35*AO35 -> 1842391.863 | BD35: =N35*AP35 -> 1090192.531 | BE35: =O35*AQ35 -> 0 | BF35: =P35*AR35 -> 0 | BG35: =SUM(AT35:BF35) -> 12781627.56 | BI35: =R35*AF35 -> 1621560.938 | BJ35: =S35/100*AG35 -> 4716546.111 | BK35: =T35/100*AH35 -> 2619382.151 | BL35: =U35/100*AI35 -> 0 | BM35: =V35/100*AJ35 -> 0 | BN35: =W35/100*AK35 -> 2048074.248 | BO35: =X35/100*AL35 -> 0 | BP35: =Y35/100*AM35 -> 0 | BQ35: =Z35/100*AN35 -> 0 | BR35: =AA35*AO35 -> 2059018.918 | BS35: =AB35*AP35 -> 1218361.777 | BT35: =AC35*AQ35 -> 0 | BU35: =AD35*AR35 -> 0 | BV35: =SUM(BI35:BU35) -> 14282944.14
A36: NEN56 | B36: NEN56 Medium Demand Multi-rate - Embedded Network | C36: NEN56 Medium Demand Multi-rate - Embedded Network | D36: 2282 | E36: 8.0352 | F36: 5.6001 | G36: 0 | H36: 0 | I36: 3.4832 | J36: 0 | K36: 0 | L36: 0 | M36: 17.35 | N36: 28.92 | O36: 0 | P36: 0 | R36: =Est2020DistRev!D36 -> 2550 | S36: =Est2020DistRev!E36 -> 8.9787 | T36: =Est2020DistRev!F36 -> 6.2577 | U36: =Est2020DistRev!G36 -> 0 | V36: =Est2020DistRev!H36 -> 0 | W36: =Est2020DistRev!I36 -> 3.8922 | X36: =Est2020DistRev!J36 -> 0 | Y36: =Est2020DistRev!K36 -> 0 | Z36: =Est2020DistRev!L36 -> 0 | AA36: =Est2020DistRev!M36 -> 19.39 | AB36: =Est2020DistRev!N36 -> 32.32 | AC36: =Est2020DistRev!O36 -> 0 | AD36: =Est2020DistRev!P36 -> 0 | AF36: 1 | AG36: 48857.90064 | AH36: 52671.60783 | AI36: 0 | AJ36: 0 | AK36: 48862.91001 | AL36: 0 | AM36: 0 | AN36: 0 | AO36: 260 | AP36: 73.395 | AQ36: 0 | AR36: 0 | AT36: 2282 | AU36: 3925.830032 | AV36: 2949.66271 | AW36: 0 | AX36: 0 | AY36: 1701.992881 | AZ36: 0 | BA36: 0 | BB36: 0 | BC36: 4511 | BD36: 2122.5834 | BE36: 0 | BF36: 0 | BG36: 17493.06902 | BI36: 2550 | BJ36: 4386.804324 | BK36: 3296.031203 | BL36: 0 | BM36: 0 | BN36: 1901.842183 | BO36: 0 | BP36: 0 | BQ36: 0 | BR36: 5041.4 | BS36: 2372.1264 | BT36: 0 | BU36: 0 | BV36: 19548.20411
A37: NEE60 | B37: NEE60 Medium Two Rate 7Day - closed to new customers | C37: NEE60 Medium Two Rate 7Day - closed to new customers | D37: 106 | E37: 9.1032 | F37: 0 | G37: 0 | H37: 0 | I37: 3.5401 | J37: 0 | K37: 0 | L37: 0 | M37: 0 | N37: 0 | O37: 0 | P37: 0 | R37: =Est2020DistRev!D37 -> 118 | S37: =Est2020DistRev!E37 -> 10.1722 | T37: =Est2020DistRev!F37 -> 0 | U37: =Est2020DistRev!G37 -> 0 | V37: =Est2020DistRev!H37 -> 0 | W37: =Est2020DistRev!I37 -> 3.9558 | X37: =Est2020DistRev!J37 -> 0 | Y37: =Est2020DistRev!K37 -> 0 | Z37: =Est2020DistRev!L37 -> 0 | AA37: =Est2020DistRev!M37 -> 0 | AB37: =Est2020DistRev!N37 -> 0 | AC37: =Est2020DistRev!O37 -> 0 | AD37: =Est2020DistRev!P37 -> 0 | AF37: 151.6656605 | AG37: 11912095.65 | AH37: 0 | AI37: 0 | AJ37: 0 | AK37: 3866727.129 | AL37: 0 | AM37: 0 | AN37: 0 | AO37: 0 | AP37: 0 | AQ37: 0 | AR37: 0 | AT37: 16076.56001 | AU37: 1084381.891 | AV37: 0 | AW37: 0 | AX37: 0 | AY37: 136886.0071 | AZ37: 0 | BA37: 0 | BB37: 0 | BC37: 0 | BD37: 0 | BE37: 0 | BF37: 0 | BG37: 1237344.458 | BI37: 17896.54794 | BJ37: 1211722.194 | BK37: 0 | BL37: 0 | BM37: 0 | BN37: 152959.9918 | BO37: 0 | BP37: 0 | BQ37: 0 | BR37: 0 | BS37: 0 | BT37: 0 | BU37: 0 | BV37: 1382578.733
A38: NEE52 | B38: NEE52 Unmetered | C38: NEE52 Unmetered | D38: 0 | E38: 15.1205 | F38: 0 | G38: 0 | H38: 0 | I38: 7.6658 | J38: 0 | K38: 0 | L38: 0 | M38: 0 | N38: 0 | O38: 0 | P38: 0 | R38: =Est2020DistRev!D38 -> 0 | S38: =Est2020DistRev!E38 -> 16.896 | T38: =Est2020DistRev!F38 -> 0 | U38: =Est2020DistRev!G38 -> 0 | V38: =Est2020DistRev!H38 -> 0 | W38: =Est2020DistRev!I38 -> 8.566 | X38: =Est2020DistRev!J38 -> 0 | Y38: =Est2020DistRev!K38 -> 0 | Z38: =Est2020DistRev!L38 -> 0 | AA38: =Est2020DistRev!M38 -> 0 | AB38: =Est2020DistRev!N38 -> 0 | AC38: =Est2020DistRev!O38 -> 0 | AD38: =Est2020DistRev!P38 -> 0 | AF38: 44.5 | AG38: 7313424.244 | AH38: 0 | AI38: 0 | AJ38: 0 | AK38: 18444180.33 | AL38: 0 | AM38: 0 | AN38: 0 | AO38: 0 | AP38: 0 | AQ38: 0 | AR38: 0 | AT38: 0 | AU38: 1105826.313 | AV38: 0 | AW38: 0 | AX38: 0 | AY38: 1413893.975 | AZ38: 0 | BA38: 0 | BB38: =L38/100*AN38 -> 0 | BC38: 0 | BD38: 0 | BE38: 0 | BF38: 0 | BG38: 2519720.288 | BI38: 0 | BJ38: 1235676.16 | BK38: 0 | BL38: 0 | BM38: 0 | BN38: 1579928.487 | BO38: 0 | BP38: 0 | BQ38: 0 | BR38: 0 | BS38: 0 | BT38: 0 | BU38: 0 | BV38: 2815604.647
A39: NEE74 | B39: NEE74 LV Large Two Rate 5Day | C39: NEE74 LV Large Two Rate 5Day | D39: 127 | E39: 22.5333 | F39: 0 | G39: 0 | H39: 0 | I39: 6.4018 | J39: 0 | K39: 0 | L39: 0 | M39: 0 | N39: 0 | O39: 0 | P39: 0 | R39: =Est2020DistRev!D39 -> 142 | S39: =Est2020DistRev!E39 -> 25.1793 | T39: =Est2020DistRev!F39 -> 0 | U39: =Est2020DistRev!G39 -> 0 | V39: =Est2020DistRev!H39 -> 0 | W39: =Est2020DistRev!I39 -> 7.1535 | X39: =Est2020DistRev!J39 -> 0 | Y39: =Est2020DistRev!K39 -> 0 | Z39: =Est2020DistRev!L39 -> 0 | AA39: =Est2020DistRev!M39 -> 0 | AB39: =Est2020DistRev!N39 -> 0 | AC39: =Est2020DistRev!O39 -> 0 | AD39: =Est2020DistRev!P39 -> 0 | AF39: 3.5 | AG39: 941231.6583 | AH39: 0 | AI39: 0 | AJ39: 0 | AK39: 1062334.427 | AL39: 0 | AM39: 0 | AN39: 0 | AO39: 0 | AP39: 0 | AQ39: 0 | AR39: 0 | AT39: 444.5 | AU39: 212090.5533 | AV39: 0 | AW39: 0 | AX39: 0 | AY39: 68008.52536 | AZ39: 0 | BA39: 0 | BB39: 0 | BC39: 0 | BD39: 0 | BE39: 0 | BF39: 0 | BG39: 280543.5786 | BI39: 497 | BJ39: 236995.5429 | BK39: 0 | BL39: 0 | BM39: 0 | BN39: 75994.09325 | BO39: 0 | BP39: 0 | BQ39: 0 | BR39: 0 | BS39: 0 | BT39: 0 | BU39: 0 | BV39: 313486.6362
A40: NSP75 | B40: NSP75 Large Multi-rate <750 kVA | C40: NSP75 Large Multi-rate <750 kVA | D40: 5102 | E40: 2.9014 | F40: 1.9659 | G40: 0 | H40: 0 | I40: 1.1213 | J40: 0 | K40: 0 | L40: 0 | M40: 42.16 | N40: 70.71 | O40: 0 | P40: 0 | R40: =Est2020DistRev!D40 -> 5701 | S40: =Est2020DistRev!E40 -> 3.2421 | T40: =Est2020DistRev!F40 -> 2.1968 | U40: =Est2020DistRev!G40 -> 0 | V40: =Est2020DistRev!H40 -> 0 | W40: =Est2020DistRev!I40 -> 1.253 | X40: =Est2020DistRev!J40 -> 0 | Y40: =Est2020DistRev!K40 -> 0 | Z40: =Est2020DistRev!L40 -> 0 | AA40: =Est2020DistRev!M40 -> 47.11 | AB40: =Est2020DistRev!N40 -> 79.01 | AC40: =Est2020DistRev!O40 -> 0 | AD40: =Est2020DistRev!P40 -> 0 | AF40: 399.7375 | AG40: 65066965.82 | AH40: 46895776.11 | AI40: 0 | AJ40: 0 | AK40: 87211176.76 | AL40: 0 | AM40: 0 | AN40: 0 | AO40: 106150.6633 | AP40: 47175.12337 | AQ40: 0 | AR40: 0 | AT40: 2039460.725 | AU40: 1887852.946 | AV40: 921924.0625 | AW40: 0 | AX40: 0 | AY40: 977898.925 | AZ40: 0 | BA40: 0 | BB40: 0 | BC40: 4475311.963 | BD40: 3335752.973 | BE40: 0 | BF40: 0 | BG40: 13638201.59 | BI40: 2278903.488 | BJ40: 2109536.099 | BK40: 1030206.41 | BL40: 0 | BM40: 0 | BN40: 1092756.045 | BO40: 0 | BP40: 0 | BQ40: 0 | BR40: 5000757.746 | BS40: 3727306.497 | BT40: 0 | BU40: 0 | BV40: 15239466.28
A41: NSP76 | B41: NSP76 Large Multi-rate >750 kVA | C41: NSP76 Large Multi-rate >750 kVA | D41: 5102 | E41: 2.6821 | F41: 1.7577 | G41: 0 | H41: 0 | I41: 0.9967 | J41: 0 | K41: 0 | L41: 0 | M41: 43.96 | N41: 74.34 | O41: 0 | P41: 0 | R41: =Est2020DistRev!D41 -> 5701 | S41: =Est2020DistRev!E41 -> 2.997 | T41: =Est2020DistRev!F41 -> 1.9641 | U41: =Est2020DistRev!G41 -> 0 | V41: =Est2020DistRev!H41 -> 0 | W41: =Est2020DistRev!I41 -> 1.1137 | X41: =Est2020DistRev!J41 -> 0 | Y41: =Est2020DistRev!K41 -> 0 | Z41: =Est2020DistRev!L41 -> 0 | AA41: =Est2020DistRev!M41 -> 49.12 | AB41: =Est2020DistRev!N41 -> 83.07 | AC41: =Est2020DistRev!O41 -> 0 | AD41: =Est2020DistRev!P41 -> 0 | AF41: 276.04375 | AG41: 96539748.78 | AH41: 70796917.76 | AI41: 0 | AJ41: 0 | AK41: 125406478.9 | AL41: 0 | AM41: 0 | AN41: 0 | AO41: 145281.4198 | AP41: 64874.07558 | AQ41: 0 | AR41: 0 | AT41: 1408375.212 | AU41: 2589292.602 | AV41: 1244397.423 | AW41: 0 | AX41: 0 | AY41: 1249926.375 | AZ41: 0 | BA41: 0 | BB41: 0 | BC41: 6386571.216 | BD41: 4822738.778 | BE41: 0 | BF41: 0 | BG41: 17701301.61 | BI41: 1573725.419 | BJ41: 2893296.271 | BK41: 1390522.262 | BL41: 0 | BM41: 0 | BN41: 1396651.955 | BO41: 0 | BP41: 0 | BQ41: 0 | BR41: 7136223.342 | BS41: 5389089.458 | BT41: 0 | BU41: 0 | BV41: 19779508.71
A42: NSP77 | B42: NSP77 Large Multi-rate >2 GWh | C42: NSP77 Large Multi-rate >2 GWh | D42: 5102 | E42: 2.6291 | F42: 1.7343 | G42: 0 | H42: 0 | I42: 0.9389 | J42: 0 | K42: 0 | L42: 0 | M42: 48.19 | N42: 80 | O42: 0 | P42: 0 | R42: =Est2020DistRev!D42 -> 5701 | S42: =Est2020DistRev!E42 -> 2.9378 | T42: =Est2020DistRev!F42 -> 1.9379 | U42: =Est2020DistRev!G42 -> 0 | V42: =Est2020DistRev!H42 -> 0 | W42: =Est2020DistRev!I42 -> 1.0492 | X42: =Est2020DistRev!J42 -> 0 | Y42: =Est2020DistRev!K42 -> 0 | Z42: =Est2020DistRev!L42 -> 0 | AA42: =Est2020DistRev!M42 -> 53.85 | AB42: =Est2020DistRev!N42 -> 89.39 | AC42: =Est2020DistRev!O42 -> 0 | AD42: =Est2020DistRev!P42 -> 0 | AF42: 42.2375 | AG42: 32246242.09 | AH42: 22577275.47 | AI42: 0 | AJ42: 0 | AK42: 41375655.65 | AL42: 0 | AM42: 0 | AN42: 0 | AO42: 39295.95982 | AP42: 19178.78678 | AQ42: 0 | AR42: 0 | AT42: 215495.725 | AU42: 847785.9509 | AV42: 391557.6884 | AW42: 0 | AX42: 0 | AY42: 388476.0309 | AZ42: 0 | BA42: 0 | BB42: 0 | BC42: 1893672.304 | BD42: 1534302.942 | BE42: 0 | BF42: 0 | BG42: 5271290.641 | BI42: 240795.9875 | BJ42: 947330.1002 | BK42: 437525.0212 | BL42: 0 | BM42: 0 | BN42: 434113.3791 | BO42: 0 | BP42: 0 | BQ42: 0 | BR42: 2116087.436 | BS42: 1714391.75 | BT42: 0 | BU42: 0 | BV42: 5890243.674
A43: NSP78 | B43: NSP78 Large Multi-rate >4 GWh | C43: NSP78 Large Multi-rate >4 GWh | D43: 5102 | E43: 2.3495 | F43: 1.5507 | G43: 0 | H43: 0 | I43: 0.811 | J43: 0 | K43: 0 | L43: 0 | M43: 53.01 | N43: 87.71 | O43: 0 | P43: 0 | R43: =Est2020DistRev!D43 -> 5701 | S43: =Est2020DistRev!E43 -> 2.6254 | T43: =Est2020DistRev!F43 -> 1.7328 | U43: =Est2020DistRev!G43 -> 0 | V43: =Est2020DistRev!H43 -> 0 | W43: =Est2020DistRev!I43 -> 0.9062 | X43: =Est2020DistRev!J43 -> 0 | Y43: =Est2020DistRev!K43 -> 0 | Z43: =Est2020DistRev!L43 -> 0 | AA43: =Est2020DistRev!M43 -> 59.24 | AB43: =Est2020DistRev!N43 -> 98.01 | AC43: =Est2020DistRev!O43 -> 0 | AD43: =Est2020DistRev!P43 -> 0 | AF43: 17.7375 | AG43: 25893028.55 | AH43: 17970261.11 | AI43: 0 | AJ43: 0 | AK43: 33397961.12 | AL43: 0 | AM43: 0 | AN43: 0 | AO43: 25171.59926 | AP43: 16125.0005 | AQ43: 0 | AR43: 0 | AT43: 90496.725 | AU43: 608356.7057 | AV43: 278664.8391 | AW43: 0 | AX43: 0 | AY43: 270857.4647 | AZ43: 0 | BA43: 0 | BB43: 0 | BC43: 1334346.477 | BD43: 1414323.794 | BE43: 0 | BF43: 0 | BG43: 3997046.006 | BI43: 101121.4875 | BJ43: 679795.5714 | BK43: 311388.6846 | BL43: 0 | BM43: 0 | BN43: 302652.3237 | BO43: 0 | BP43: 0 | BQ43: 0 | BR43: 1491165.54 | BS43: 1580411.299 | BT43: 0 | BU43: 0 | BV43: 4466534.907
A44: NSP81 | B44: NSP81 HV Kva | C44: NSP81 HV Kva | D44: 5102 | E44: 0.5119 | F44: 0 | G44: 0 | H44: 0 | I44: 0.2071 | J44: 0 | K44: 0 | L44: 0 | M44: 34.7 | N44: 56.86 | O44: 0 | P44: 0 | R44: =Est2020DistRev!D44 -> 5701 | S44: =Est2020DistRev!E44 -> 0.572 | T44: =Est2020DistRev!F44 -> 0 | U44: =Est2020DistRev!G44 -> 0 | V44: =Est2020DistRev!H44 -> 0 | W44: =Est2020DistRev!I44 -> 0.2314 | X44: =Est2020DistRev!J44 -> 0 | Y44: =Est2020DistRev!K44 -> 0 | Z44: =Est2020DistRev!L44 -> 0 | AA44: =Est2020DistRev!M44 -> 38.77 | AB44: =Est2020DistRev!N44 -> 63.54 | AC44: =Est2020DistRev!O44 -> 0 | AD44: =Est2020DistRev!P44 -> 0 | AF44: 30.2375 | AG44: 124298431.6 | AH44: 0 | AI44: 0 | AJ44: 0 | AK44: 105890467.8 | AL44: 0 | AM44: 0 | AN44: 0 | AO44: 97969.5 | AP44: 42579.59966 | AQ44: 0 | AR44: 0 | AT44: 154271.725 | AU44: 636283.6713 | AV44: 0 | AW44: 0 | AX44: 0 | AY44: 219299.1589 | AZ44: 0 | BA44: 0 | BB44: 0 | BC44: 3399541.65 | BD44: 2421076.037 | BE44: 0 | BF44: 0 | BG44: 6830472.242 | BI44: 172383.9875 | BJ44: 710987.0286 | BK44: 0 | BL44: 0 | BM44: 0 | BN44: 245030.5426 | BO44: 0 | BP44: 0 | BQ44: 0 | BR44: 3798277.515 | BS44: 2705507.763 | BT44: 0 | BU44: 0 | BV44: 7632186.836
A45: NSP82 | B45: NSP82 Traction | C45: NSP82 Traction | D45: 5102 | E45: 0.4601 | F45: 0.4601 | G45: 0 | H45: 0 | I45: 0.392 | J45: 0 | K45: 0 | L45: 0 | M45: 31.81 | N45: 52.05 | O45: 0 | P45: 0 | R45: =Est2020DistRev!D45 -> 5701 | S45: =Est2020DistRev!E45 -> 0.5141 | T45: =Est2020DistRev!F45 -> 0.5141 | U45: =Est2020DistRev!G45 -> 0 | V45: =Est2020DistRev!H45 -> 0 | W45: =Est2020DistRev!I45 -> 0.438 | X45: =Est2020DistRev!J45 -> 0 | Y45: =Est2020DistRev!K45 -> 0 | Z45: =Est2020DistRev!L45 -> 0 | AA45: =Est2020DistRev!M45 -> 35.54 | AB45: =Est2020DistRev!N45 -> 58.16 | AC45: =Est2020DistRev!O45 -> 0 | AD45: =Est2020DistRev!P45 -> 0
A46: NSP83 | B46: NSP83 Small HV | C46: NSP83 Small HV | D46: 5102 | E46: 8.6372 | F46: 3.0223 | G46: 0 | H46: 0 | I46: 0.9412 | J46: 0 | K46: 0 | L46: 0 | M46: 3.7 | N46: 6.12 | O46: 0 | P46: 0 | R46: =Est2020DistRev!D46 -> 5701 | S46: =Est2020DistRev!E46 -> 9.6514 | T46: =Est2020DistRev!F46 -> 3.3772 | U46: =Est2020DistRev!G46 -> 0 | V46: =Est2020DistRev!H46 -> 0 | W46: =Est2020DistRev!I46 -> 1.0517 | X46: =Est2020DistRev!J46 -> 0 | Y46: =Est2020DistRev!K46 -> 0 | Z46: =Est2020DistRev!L46 -> 0 | AA46: =Est2020DistRev!M46 -> 4.14 | AB46: =Est2020DistRev!N46 -> 6.84 | AC46: =Est2020DistRev!O46 -> 0 | AD46: =Est2020DistRev!P46 -> 0 | AF46: 10.2375 | AG46: 2797789.1 | AH46: 1951495.497 | AI46: 0 | AJ46: 0 | AK46: 2416770.473 | AL46: 0 | AM46: 0 | AN46: 0 | AO46: 12870.8125 | AP46: 3028.028555 | AQ46: 0 | AR46: 0 | AT46: 52231.725 | AU46: 241650.6401 | AV46: 58980.04842 | AW46: 0 | AX46: 0 | AY46: 22746.64369 | AZ46: 0 | BA46: 0 | BB46: 0 | BC46: 47622.00625 | BD46: 18531.53475 | BE46: 0 | BF46: 0 | BG46: 441762.5983 | BI46: 58363.9875 | BJ46: 270025.8172 | BK46: 65905.90594 | BL46: 0 | BM46: 0 | BN46: 25417.17507 | BO46: 0 | BP46: 0 | BQ46: 0 | BR46: 53285.16375 | BS46: 20711.71531 | BT46: 0 | BU46: 0 | BV46: 493709.7648
A47: NSP91 | B47: NSP91 ST kVA | C47: NSP91 ST kVA | D47: 18184 | E47: 0.4645 | F47: 0 | G47: 0 | H47: 0 | I47: 0.0437 | J47: 0 | K47: 0 | L47: 0 | M47: 2.32 | N47: 3.82 | O47: 0 | P47: 0 | R47: =Est2020DistRev!D47 -> 20319 | S47: =Est2020DistRev!E47 -> 0.519 | T47: =Est2020DistRev!F47 -> 0 | U47: =Est2020DistRev!G47 -> 0 | V47: =Est2020DistRev!H47 -> 0 | W47: =Est2020DistRev!I47 -> 0.0488 | X47: =Est2020DistRev!J47 -> 0 | Y47: =Est2020DistRev!K47 -> 0 | Z47: =Est2020DistRev!L47 -> 0 | AA47: =Est2020DistRev!M47 -> 2.59 | AB47: =Est2020DistRev!N47 -> 4.27 | AC47: =Est2020DistRev!O47 -> 0 | AD47: =Est2020DistRev!P47 -> 0
A48: NEE93 | B48: NEE93 Latrobe Generators kVA (non published) | C48: NEE93 Latrobe Generators kVA (non published) | D48: 0 | E48: 0.9125 | F48: 0 | G48: 0 | H48: 0 | I48: 0.9125 | J48: 0 | K48: 0 | L48: 0 | M48: 0 | N48: 0 | O48: 0 | P48: 0 | R48: =Est2020DistRev!D48 -> 0 | S48: =Est2020DistRev!E48 -> 1.0197 | T48: =Est2020DistRev!F48 -> 0 | U48: =Est2020DistRev!G48 -> 0 | V48: =Est2020DistRev!H48 -> 0 | W48: =Est2020DistRev!I48 -> 1.0196 | X48: =Est2020DistRev!J48 -> 0 | Y48: =Est2020DistRev!K48 -> 0 | Z48: =Est2020DistRev!L48 -> 0 | AA48: =Est2020DistRev!M48 -> 0 | AB48: =Est2020DistRev!N48 -> 0 | AC48: =Est2020DistRev!O48 -> 0 | AD48: =Est2020DistRev!P48 -> 0
A49: NSP94 | B49: NSP94 - ST kVA >25MVA <20kM | C49: NSP94 - ST kVA >25MVA <20kM | D49: 18184 | E49: 0.432 | F49: 0 | G49: 0 | H49: 0 | I49: 0.0277 | J49: 0 | K49: 0 | L49: 0 | M49: 1.73 | N49: 2.87 | O49: 0 | P49: 0 | R49: =Est2020DistRev!D49 -> 20319 | S49: =Est2020DistRev!E49 -> 0.4827 | T49: =Est2020DistRev!F49 -> 0 | U49: =Est2020DistRev!G49 -> 0 | V49: =Est2020DistRev!H49 -> 0 | W49: =Est2020DistRev!I49 -> 0.031 | X49: =Est2020DistRev!J49 -> 0 | Y49: =Est2020DistRev!K49 -> 0 | Z49: =Est2020DistRev!L49 -> 0 | AA49: =Est2020DistRev!M49 -> 1.93 | AB49: =Est2020DistRev!N49 -> 3.21 | AC49: =Est2020DistRev!O49 -> 0 | AD49: =Est2020DistRev!P49 -> 0
A50: NSP95 | B50: NSP95 - ST kVA <25MVA >20kM | C50: NSP95 - ST kVA <25MVA >20kM | D50: 18184 | E50: 0.5012 | F50: 0 | G50: 0 | H50: 0 | I50: 0.0631 | J50: 0 | K50: 0 | L50: 0 | M50: 3.59 | N50: 5.96 | O50: 0 | P50: 0 | R50: =Est2020DistRev!D50 -> 20319 | S50: =Est2020DistRev!E50 -> 0.5601 | T50: =Est2020DistRev!F50 -> 0 | U50: =Est2020DistRev!G50 -> 0 | V50: =Est2020DistRev!H50 -> 0 | W50: =Est2020DistRev!I50 -> 0.0705 | X50: =Est2020DistRev!J50 -> 0 | Y50: =Est2020DistRev!K50 -> 0 | Z50: =Est2020DistRev!L50 -> 0 | AA50: =Est2020DistRev!M50 -> 4.01 | AB50: =Est2020DistRev!N50 -> 6.66 | AC50: =Est2020DistRev!O50 -> 0 | AD50: =Est2020DistRev!P50 -> 0
A51: NASN19 | B51: NASN19 - Business >40MWh Single Rate | C51: NASN19 - Business >40MWh Single Rate | D51: 106 | E51: 12.5484 | F51: 12.5484 | G51: 0 | H51: 0 | I51: 0 | J51: 0 | K51: 0 | L51: 0 | M51: 1.73 | N51: 6.91 | O51: 0 | P51: 0 | R51: =Est2020DistRev!D51 -> 118 | S51: =Est2020DistRev!E51 -> 14.0219 | T51: =Est2020DistRev!F51 -> 14.0219 | U51: =Est2020DistRev!G51 -> 0 | V51: =Est2020DistRev!H51 -> 0 | W51: =Est2020DistRev!I51 -> 0 | X51: =Est2020DistRev!J51 -> 0 | Y51: =Est2020DistRev!K51 -> 0 | Z51: =Est2020DistRev!L51 -> 0 | AA51: =Est2020DistRev!M51 -> 1.45 | AB51: =Est2020DistRev!N51 -> 5.8 | AC51: =Est2020DistRev!O51 -> 0 | AD51: =Est2020DistRev!P51 -> 0 | AF51: 538.8875706 | AG51: 25110693.91 | AH51: 0 | AI51: 0 | AJ51: 0 | AK51: 0 | AL51: 0 | AM51: 0 | AN51: 0 | AO51: 46042.52516 | AP51: 57855.16803 | AQ51: 0 | AR51: 0 | AT51: 57122.08248 | AU51: 3150990.314 | AV51: 0 | AW51: 0 | AX51: 0 | AY51: 0 | AZ51: 0 | BA51: 0 | BB51: 0 | BC51: 79653.56853 | BD51: 399779.2111 | BE51: 0 | BF51: 0 | BG51: 3687545.177 | BI51: 63588.73333 | BJ51: 3520996.389 | BK51: 0 | BL51: 0 | BM51: 0 | BN51: 0 | BO51: 0 | BP51: 0 | BQ51: 0 | BR51: 66761.66148 | BS51: 335559.9746 | BT51: 0 | BU51: 0 | BV51: 3986906.759
A52: NASN21 | B52: NASN21 - Business >40MWh Two Rate | C52: NASN21 - Business >40MWh Two Rate | D52: 106 | E52: 12.8906 | F52: 0 | G52: 0 | H52: 0 | I52: 2.7866 | J52: 0 | L52: 0 | M52: 1.73 | N52: 6.91 | O52: 0 | P52: 0 | R52: =Est2020DistRev!D52 -> 118 | S52: =Est2020DistRev!E52 -> 14.4043 | T52: =Est2020DistRev!F52 -> 0 | U52: =Est2020DistRev!G52 -> 0 | V52: =Est2020DistRev!H52 -> 0 | W52: =Est2020DistRev!I52 -> 3.1138 | X52: =Est2020DistRev!J52 -> 0 | Y52: =Est2020DistRev!K52 -> 0.5975 | Z52: =Est2020DistRev!L52 -> 0 | AA52: =Est2020DistRev!M52 -> 1.45 | AB52: =Est2020DistRev!N52 -> 5.8 | AC52: =Est2020DistRev!O52 -> 0 | AD52: =Est2020DistRev!P52 -> 0 | AF52: 4310.612692 | AG52: 142345744.6 | AH52: 0 | AI52: 0 | AJ52: 0 | AK52: 121263382.5 | AL52: 0 | AM52: -3978461.303 | AN52: 0 | AO52: 494986.7639 | AP52: 641947.975 | AQ52: 0 | AR52: 0 | AT52: 456924.9454 | AU52: 18349220.55 | AV52: 0 | AW52: 0 | AX52: 0 | AY52: 3379125.417 | AZ52: 0 | BA52: 0 | BB52: 0 | BC52: 856327.1016 | BD52: 4435860.507 | BE52: 0 | BF52: 0 | BG52: 27477458.52 | BI52: 508652.2977 | BJ52: 20503908.08 | BK52: 0 | BL52: 0 | BM52: 0 | BN52: 3775899.205 | BO52: 0 | BP52: -23771.30629 | BQ52: 0 | BR52: 717730.8077 | BS52: 3723298.255 | BT52: 0 | BU52: 0 | BV52: 29205717.34
A53: NASN11 | B53: NASN11 - Residential Single Rate | C53: NASN11 - Residential Single Rate | D53: 106 | E53: 4.9494 | F53: 4.9494 | G53: 0 | H53: 0 | I53: 0 | J53: 0 | L53: 0 | M53: 2.16 | N53: 8.64 | O53: 0 | P53: 0 | R53: =Est2020DistRev!D53 -> 118 | S53: =Est2020DistRev!E53 -> 5.5306 | T53: =Est2020DistRev!F53 -> 5.5306 | U53: =Est2020DistRev!G53 -> 0 | V53: =Est2020DistRev!H53 -> 0 | W53: =Est2020DistRev!I53 -> 0 | X53: =Est2020DistRev!J53 -> 0 | Y53: =Est2020DistRev!K53 -> 0.5975 | Z53: =Est2020DistRev!L53 -> 0 | AA53: =Est2020DistRev!M53 -> 2.41 | AB53: =Est2020DistRev!N53 -> 9.66 | AC53: =Est2020DistRev!O53 -> 0 | AD53: =Est2020DistRev!P53 -> 0 | AF53: 19.96692967 | AG53: 80493.51087 | AH53: 0 | AI53: 0 | AJ53: 0 | AK53: 0 | AL53: 0 | AM53: -17314.27667 | AN53: 0 | AO53: 253.9415106 | AP53: 378.096074 | AQ53: 0 | AR53: 0 | AT53: 2116.494545 | AU53: 3983.945827 | AV53: 0 | AW53: 0 | AX53: 0 | AY53: 0 | AZ53: 0 | BA53: 0 | BB53: 0 | BC53: 548.5136628 | BD53: 3266.75008 | BE53: 0 | BF53: 0 | BG53: 9915.704115 | BI53: 2356.097701 | BJ53: 4451.774112 | BK53: 0 | BL53: 0 | BM53: 0 | BN53: 0 | BO53: 0 | BP53: -103.4528031 | BQ53: 0 | BR53: 611.9990405 | BS53: 3652.408075 | BT53: 0 | BU53: 0 | BV53: 10968.82613
A54: NASN12 | B54: NASN12 - Business Single Rate | C54: NASN12 - Business Single Rate | D54: 106 | E54: 10.1744 | F54: 10.1744 | G54: 0 | H54: 0 | I54: 0 | J54: 0 | L54: 0 | M54: 2.16 | N54: 8.64 | O54: 0 | P54: 0 | R54: =Est2020DistRev!D54 -> 118 | S54: =Est2020DistRev!E54 -> 11.3691 | T54: =Est2020DistRev!F54 -> 11.3691 | U54: =Est2020DistRev!G54 -> 0 | V54: =Est2020DistRev!H54 -> 0 | W54: =Est2020DistRev!I54 -> 0 | X54: =Est2020DistRev!J54 -> 0 | Y54: =Est2020DistRev!K54 -> 0.5975 | Z54: =Est2020DistRev!L54 -> 0 | AA54: =Est2020DistRev!M54 -> 2.41 | AB54: =Est2020DistRev!N54 -> 9.66 | AC54: =Est2020DistRev!O54 -> 0 | AD54: =Est2020DistRev!P54 -> 0 | AF54: 3.443785292 | AG54: 64170.78729 | AH54: 0 | AI54: 0 | AJ54: 0 | AK54: 0 | AL54: 0 | AM54: 0 | AN54: 0 | AO54: 301.883003 | AP54: 587.7557165 | AQ54: 0 | AR54: 0 | AT54: 365.041241 | AU54: 6528.992582 | AV54: 0 | AW54: 0 | AX54: 0 | AY54: 0 | AZ54: 0 | BA54: 0 | BB54: 0 | BC54: 652.0672864 | BD54: 5078.209391 | BE54: 0 | BF54: 0 | BG54: 12624.3105 | BI54: 406.3666645 | BJ54: 7295.640977 | BK54: 0 | BL54: 0 | BM54: 0 | BN54: 0 | BO54: 0 | BP54: 0 | BQ54: 0 | BR54: 727.5380371 | BS54: 5677.720222 | BT54: 0 | BU54: 0 | BV54: 14107.2659
AT55: 0 | AU55: 0 | AV55: 0 | AW55: 0 | AX55: 0 | AY55: 0 | AZ55: 0 | BA55: 0 | BB55: 0 | BC55: 0 | BD55: 0 | BE55: 0 | BF55: 0 | BG55: 0 | BI55: 0 | BJ55: 0 | BK55: 0 | BL55: 0 | BM55: 0 | BN55: 0 | BO55: 0 | BP55: 0 | BQ55: 0 | BR55: 0 | BS55: 0 | BT55: 0 | BU55: 0 | BV55: 0
AT56: 0 | AU56: 0 | AV56: 0 | AW56: 0 | AX56: 0 | AY56: 0 | AZ56: 0 | BA56: 0 | BB56: 0 | BC56: 0 | BD56: 0 | BE56: 0 | BF56: 0 | BG56: 0 | BI56: 0 | BJ56: 0 | BK56: 0 | BL56: 0 | BM56: 0 | BN56: 0 | BO56: 0 | BP56: 0 | BQ56: 0 | BR56: 0 | BS56: 0 | BT56: 0 | BU56: 0 | BV56: 0
AT57: 0 | AU57: 0 | AV57: 0 | AW57: 0 | AX57: 0 | AY57: 0 | AZ57: 0 | BA57: 0 | BB57: 0 | BC57: 0 | BD57: 0 | BE57: 0 | BF57: 0 | BG57: 0 | BI57: 0 | BJ57: 0 | BK57: 0 | BL57: 0 | BM57: 0 | BN57: 0 | BO57: 0 | BP57: 0 | BQ57: 0 | BR57: 0 | BS57: 0 | BT57: 0 | BU57: 0 | BV57: 0
AT58: 0 | AU58: 0 | AV58: 0 | AW58: 0 | AX58: 0 | AY58: 0 | AZ58: 0 | BA58: 0 | BB58: 0 | BC58: 0 | BD58: 0 | BE58: 0 | BF58: 0 | BG58: 0 | BI58: 0 | BJ58: 0 | BK58: 0 | BL58: 0 | BM58: 0 | BN58: 0 | BO58: 0 | BP58: 0 | BQ58: 0 | BR58: 0 | BS58: 0 | BT58: 0 | BU58: 0 | BV58: 0
AT59: 0 | AU59: 0 | AV59: 0 | AW59: 0 | AX59: 0 | AY59: 0 | AZ59: 0 | BA59: 0 | BB59: 0 | BC59: 0 | BD59: 0 | BE59: 0 | BF59: 0 | BG59: 0 | BI59: 0 | BJ59: 0 | BK59: 0 | BL59: 0 | BM59: 0 | BN59: 0 | BO59: 0 | BP59: 0 | BQ59: 0 | BR59: 0 | BS59: 0 | BT59: 0 | BU59: 0 | BV59: 0
AT60: 0 | AU60: 0 | AV60: 0 | AW60: 0 | AX60: 0 | AY60: 0 | AZ60: 0 | BA60: 0 | BB60: 0 | BC60: 0 | BD60: 0 | BE60: 0 | BF60: 0 | BG60: 0 | BI60: 0 | BJ60: 0 | BK60: 0 | BL60: 0 | BM60: 0 | BN60: 0 | BO60: 0 | BP60: 0 | BQ60: 0 | BR60: 0 | BS60: 0 | BT60: 0 | BU60: 0 | BV60: 0
AT61: 0 | AU61: 0 | AV61: 0 | AW61: 0 | AX61: 0 | AY61: 0 | AZ61: 0 | BA61: 0 | BB61: 0 | BC61: 0 | BD61: 0 | BE61: 0 | BF61: 0 | BG61: 0 | BI61: 0 | BJ61: 0 | BK61: 0 | BL61: 0 | BM61: 0 | BN61: 0 | BO61: 0 | BP61: 0 | BQ61: 0 | BR61: 0 | BS61: 0 | BT61: 0 | BU61: 0 | BV61: 0
AT62: 0 | AU62: 0 | AV62: 0 | AW62: 0 | AX62: 0 | AY62: 0 | AZ62: 0 | BA62: 0 | BB62: 0 | BC62: 0 | BD62: 0 | BE62: 0 | BF62: 0 | BG62: 0 | BI62: 0 | BJ62: 0 | BK62: 0 | BL62: 0 | BM62: 0 | BN62: 0 | BO62: 0 | BP62: 0 | BQ62: 0 | BR62: 0 | BS62: 0 | BT62: 0 | BU62: 0 | BV62: 0
AT63: 0 | AU63: 0 | AV63: 0 | AW63: 0 | AX63: 0 | AY63: 0 | AZ63: 0 | BA63: 0 | BB63: 0 | BC63: 0 | BD63: 0 | BE63: 0 | BF63: 0 | BG63: 0 | BI63: 0 | BJ63: 0 | BK63: 0 | BL63: 0 | BM63: 0 | BN63: 0 | BO63: 0 | BP63: 0 | BQ63: 0 | BR63: 0 | BS63: 0 | BT63: 0 | BU63: 0 | BV63: 0
AT64: 0 | AU64: 0 | AV64: 0 | AW64: 0 | AX64: 0 | AY64: 0 | AZ64: 0 | BA64: 0 | BB64: 0 | BC64: 0 | BD64: 0 | BE64: 0 | BF64: 0 | BG64: 0 | BI64: 0 | BJ64: 0 | BK64: 0 | BL64: 0 | BM64: 0 | BN64: 0 | BO64: 0 | BP64: 0 | BQ64: 0 | BR64: 0 | BS64: 0 | BT64: 0 | BU64: 0 | BV64: 0
AT65: 0 | AU65: 0 | AV65: 0 | AW65: 0 | AX65: 0 | AY65: 0 | AZ65: 0 | BA65: 0 | BB65: 0 | BC65: 0 | BD65: 0 | BE65: 0 | BF65: 0 | BG65: 0 | BI65: 0 | BJ65: 0 | BK65: 0 | BL65: 0 | BM65: 0 | BN65: 0 | BO65: 0 | BP65: 0 | BQ65: 0 | BR65: 0 | BS65: 0 | BT65: 0 | BU65: 0 | BV65: 0
AF66: 382047.1667 | AG66: 1786652652 | AH66: 531414916.4 | AI66: 1510878.359 | AJ66: 0 | AK66: 1214863394 | AL66: 0 | AM66: -148486500.8 | AN66: 0 | AO66: 1175008.639 | AP66: 968350.2659 | AQ66: 0 | AR66: 0 | AT66: 46691051.03 | AU66: 145347709 | AV66: 38462767.51 | AW66: 141287.4943 | AX66: 0 | AY66: 23904204.5 | AZ66: 0 | BA66: 0 | BB66: 0 | BC66: 21444267.25 | BD66: 20065755.57 | BE66: 0 | BF66: 0 | BG66: 296057042.4 | BI66: 52068709.59 | BJ66: 161429613.8 | BK66: 42979342.61 | BL66: 154585.1959 | BM66: 0 | BN66: 26479169.01 | BO66: 0 | BP66: -887206.8422 | BQ66: 0 | BR66: 23700379.2 | BS66: 21077537.45 | BT66: 0 | BU66: 0 | BV66: 327002130

Sheet 2021DistRevCapForm
B2: ="Tariff Approval - "&'Model update'!$C$3 -> Tariff Approval - AusNet Services | C2: ='Model update'!$C$5&"DistRevCapForm" -> 2021DistRevCapForm
B4: DUoS
B6: Year (t) | C6: ='Model update'!C5 -> 2021
B8: Table 1- Compliance with AER Final Determination Total Annual Revenue
B9: Revenue from DUoS charges for year t | C9: =Prop2021DistTar!BG66 -> 296057042.4
B10: Total Annual Revenue for year t | C10: 296082545.5
C11: =IF(C9="","",IF(C10>=C9,"DUoS REVENUE CAP FORMULA COMPLIANT","DUoS REVENUE CAP FORMULA BREACHED")) -> DUoS REVENUE CAP FORMULA COMPLIANT

Sheet 2021DistTarRebalCont
B1: ="Tariff Approval - "&'Model update'!C3 -> Tariff Approval - AusNet Services | C1: ='Model update'!$C$5&"DistTarRebalCont" -> 2021DistTarRebalCont
B3: ='Model update'!C5&" DISTRIBUTION TARIFF REBALANCING CONTROL" -> 2021 DISTRIBUTION TARIFF REBALANCING CONTROL
B6: Distribution tariff rebalancing control
B8: ="CPI "&'Model update'!$C$5 -> CPI 2021 | C8: ='Model update'!C30 -> -0.003484320557
C16: =(1+C8)*(1-C9)*(1+0.02)*(1+C10)+SUM(C11:C13) -> 1.016445993
B20: Rebalancing control summary | C20: ="Pt-1*(Qt " &'Model update'!$C$5&")" -> Pt-1*(Qt 2021) | D20: ="Pt*(Qt " &'Model update'!$C$5&")" -> Pt*(Qt 2021)
B21: Tariff Class (Input Class Name) | C21: Existing ($) | D21: Proposed ($) | E21: Movement
B22: Small Residential | C22: =IF(B22="","",SUMIF($B$44:$B$103,$B22,$I$44:$I$103)) -> 179043666.3 | D22: =IF(B22="","",SUMIF($B$44:$B$103,$B22,$F$44:$F$103)) -> 162137308 | E22: =IF(B22="","",D22/C22) -> 0.9055741059 | F22: =IF(B22="","",IF(E22<$C$16,"COMPLIANT","BREACHED")) -> COMPLIANT
B23: Small Industrial Commercial | C23: =IF(B23="","",SUMIF($B$44:$B$103,$B23,$I$44:$I$103)) -> 66191389.99 | D23: =IF(B23="","",SUMIF($B$44:$B$103,$B23,$F$44:$F$103)) -> 60744503.85 | E23: 0.9177100504 | F23: COMPLIANT
B24: Medium Industrial Commercial | C24: =IF(B24="","",SUMIF($B$44:$B$103,$B24,$I$44:$I$103)) -> 24182574 | D24: =IF(B24="","",SUMIF($B$44:$B$103,$B24,$F$44:$F$103)) -> 21641113.05 | E24: 0.8949052756 | F24: COMPLIANT
B25: Large-1 Industrial Commercial | C25: =IF(B25="","",SUMIF($B$44:$B$103,$B25,$I$44:$I$103)) -> 15552952.92 | D25: =IF(B25="","",SUMIF($B$44:$B$103,$B25,$F$44:$F$103)) -> 13918745.17 | E25: 0.8949262076 | F25: COMPLIANT
B26: Large-2 Industrial Commercial | C26: =IF(B26="","",SUMIF($B$44:$B$103,$B26,$I$44:$I$103)) -> 19779508.71 | D26: =IF(B26="","",SUMIF($B$44:$B$103,$B26,$F$44:$F$103)) -> 17701301.61 | E26: 0.8949313084 | F26: COMPLIANT
B27: Large-3 Industrial Commercial | C27: =IF(B27="","",SUMIF($B$44:$B$103,$B27,$I$44:$I$103)) -> 5890243.674 | D27: =IF(B27="","",SUMIF($B$44:$B$103,$B27,$F$44:$F$103)) -> 5271290.641 | E27: =IF(B27="","",D27/C27) -> 0.8949189427 | F27: =IF(B27="","",IF(E27<$C$16,"COMPLIANT","BREACHED")) -> COMPLIANT
B28: Large-4 Industrial Commercial | C28: 4466534.907 | D28: 3997046.006 | E28: 0.8948874438 | F28: COMPLIANT
B29: High Voltage-1 Industrial Commercial | C29: 7632186.836 | D29: 6830472.242 | E29: 0.89495611 | F29: COMPLIANT
B30: High Voltage-2 Industrial Commercial
B31: High Voltage-3 Industrial Commercial | C31: 493709.7648 | D31: 441762.5983 | E31: 0.8947819747 | F31: COMPLIANT
B32: Extra High Voltage-1 Industrial Commercial
B33: Extra High Voltage-2 Industrial Commercial
B34: Extra High Voltage-3 Industrial Commercial
B35: Extra High Voltage-4 Industrial Commercial
C36: =IF(B36="","",SUMIF($B$44:$B$103,$B36,$I$44:$I$103)) ->  | D36: =IF(B36="","",SUMIF($B$44:$B$103,$B36,$F$44:$F$103)) -> 
B39: Check Total | C39: Ok | D39: Ok
C40: Ok | D40: Ok
F42: ="Revenue (Pt "&'Model update'!$C$5&")*(Qt " &'Model update'!$C$5&")" -> Revenue (Pt 2021)*(Qt 2021) | I42: ="Revenue (Pt-1 "&'Model update'!$C$8&")*(Qt " &'Model update'!$C$5&")" -> Revenue (Pt-1 2020)*(Qt 2021)
A43: New Tariff Test | B43: Destination tariff class | C43: Source tariff class | D43: Proposed tariff | E43: Existing tariff | F43: PropRev Total | I43: ExistRev Total
A44: =OR(EXACT(D44,Prop2021DistTar!C$6:C$65)) -> TRUE | B44: Small Residential | C44: Small Residential | D44: =IF(Prop2021DistTar!B6="","",Prop2021DistTar!B6) -> NEE11 Small Single Rate < 160MWh | E44: =IF(Prop2021DistTar!C6="","",Prop2021DistTar!C6) -> NEE11 Small Single Rate < 160MWh | F44: =Prop2021DistTar!BG6 -> 105722974.2 | I44: =Prop2021DistTar!BV6 -> 118030740.9
A45: =OR(EXACT(D45,Prop2021DistTar!C$6:C$65)) -> TRUE | B45: Small Residential | C45: Small Residential | D45: =IF(Prop2021DistTar!B7="","",Prop2021DistTar!B7) -> NGT11 Small Interval Single Rate < 160MWh | E45: =IF(Prop2021DistTar!C7="","",Prop2021DistTar!C7) -> NGT11 Small Interval Single Rate < 160MWh | F45: =Prop2021DistTar!BG7 -> 2081.579555 | I45: =Prop2021DistTar!BV7 -> 2324.222461
A46: =OR(EXACT(D46,Prop2021DistTar!C$6:C$65)) -> TRUE | B46: Small Residential | C46: Small Residential | D46: =IF(Prop2021DistTar!B8="","",Prop2021DistTar!B8) -> NSP11 Small Single Rate < 160MWh | E46: =IF(Prop2021DistTar!C8="","",Prop2021DistTar!C8) -> NSP11 Small Single Rate < 160MWh | F46: =Prop2021DistTar!BG8 -> 0 | I46: =Prop2021DistTar!BV8 -> 0
A47: =OR(EXACT(D47,Prop2021DistTar!C$6:C$65)) -> TRUE | B47: Small Residential | C47: Small Residential | D47: =IF(Prop2021DistTar!B9="","",Prop2021DistTar!B9) -> NEN11 Small Single Rate < 160MWh Embedded Network | E47: =IF(Prop2021DistTar!C9="","",Prop2021DistTar!C9) -> NEN11 Small Single Rate < 160MWh Embedded Network | F47: =Prop2021DistTar!BG9 -> 0 | I47: =Prop2021DistTar!BV9 -> 0
A48: =OR(EXACT(D48,Prop2021DistTar!C$6:C$65)) -> TRUE | B48: Small Industrial Commercial | C48: Small Industrial Commercial | D48: =IF(Prop2021DistTar!B10="","",Prop2021DistTar!B10) -> NEE12 Small Business Single Rate - new in 2001 | E48: =IF(Prop2021DistTar!C10="","",Prop2021DistTar!C10) -> NEE12 Small Business Single Rate - new in 2001 | F48: =Prop2021DistTar!BG10 -> 11493463.13 | I48: =Prop2021DistTar!BV10 -> 12836450.31
A49: =OR(EXACT(D49,Prop2021DistTar!C$6:C$65)) -> TRUE | B49: Small Industrial Commercial | C49: Small Industrial Commercial | D49: =IF(Prop2021DistTar!B11="","",Prop2021DistTar!B11) -> NSP12 Small Business Single Rate - new in 2001 | E49: =IF(Prop2021DistTar!C11="","",Prop2021DistTar!C11) -> NSP12 Small Business Single Rate - new in 2001 | F49: =Prop2021DistTar!BG11 -> 0 | I49: =Prop2021DistTar!BV11 -> 0
A50: =OR(EXACT(D50,Prop2021DistTar!C$6:C$65)) -> TRUE | B50: Small Industrial Commercial | C50: Small Industrial Commercial | D50: =IF(Prop2021DistTar!B12="","",Prop2021DistTar!B12) -> NEN12 Small Business Single Rate - Embedded Network | E50: =IF(Prop2021DistTar!C12="","",Prop2021DistTar!C12) -> NEN12 Small Business Single Rate - Embedded Network | F50: =Prop2021DistTar!BG12 -> 0 | I50: =Prop2021DistTar!BV12 -> 0
A51: =OR(EXACT(D51,Prop2021DistTar!C$6:C$65)) -> TRUE | B51: Small Residential | C51: Small Residential | D51: =IF(Prop2021DistTar!B13="","",Prop2021DistTar!B13) -> NEE20 Small Two Rate | E51: =IF(Prop2021DistTar!C13="","",Prop2021DistTar!C13) -> NEE20 Small Two Rate | F51: =Prop2021DistTar!BG13 -> 15956295.49 | I51: =Prop2021DistTar!BV13 -> 17434571.52
A52: =OR(EXACT(D52,Prop2021DistTar!C$6:C$65)) -> TRUE | B52: Small Residential | C52: Small Residential | D52: =IF(Prop2021DistTar!B14="","",Prop2021DistTar!B14) -> NSP20 Small Two Rate | E52: =IF(Prop2021DistTar!C14="","",Prop2021DistTar!C14) -> NSP20 Small Two Rate | F52: =Prop2021DistTar!BG14 -> 2726.994154 | I52: =Prop2021DistTar!BV14 -> 3044.095028
A53: =OR(EXACT(D53,Prop2021DistTar!C$6:C$65)) -> TRUE | B53: Small Residential | C53: Small Residential | D53: =IF(Prop2021DistTar!B15="","",Prop2021DistTar!B15) -> NGT26 Small Interval Multi Rate | E53: =IF(Prop2021DistTar!C15="","",Prop2021DistTar!C15) -> NGT26 Small Interval Multi Rate | F53: =Prop2021DistTar!BG15 -> 386421.3069 | I53: =Prop2021DistTar!BV15 -> 422632.1042
A54: =OR(EXACT(D54,Prop2021DistTar!C$6:C$65)) -> TRUE | B54: Small Residential | C54: Small Residential | D54: =IF(Prop2021DistTar!B16="","",Prop2021DistTar!B16) -> NEN20 Small Two Rate - Embedded Network | E54: =IF(Prop2021DistTar!C16="","",Prop2021DistTar!C16) -> NEN20 Small Two Rate - Embedded Network | F54: =Prop2021DistTar!BG16 -> 0 | I54: =Prop2021DistTar!BV16 -> 0
A55: =OR(EXACT(D55,Prop2021DistTar!C$6:C$65)) -> TRUE | B55: Small Industrial Commercial | C55: Small Industrial Commercial | D55: =IF(Prop2021DistTar!B17="","",Prop2021DistTar!B17) -> NEE21 Small Business Two Rate | E55: =IF(Prop2021DistTar!C17="","",Prop2021DistTar!C17) -> NEE21 Small Business Two Rate | F55: =Prop2021DistTar!BG17 -> 17614473.87 | I55: =Prop2021DistTar!BV17 -> 19635519.73
A56: =OR(EXACT(D56,Prop2021DistTar!C$6:C$65)) -> TRUE | B56: Small Industrial Commercial | C56: Small Industrial Commercial | D56: =IF(Prop2021DistTar!B18="","",Prop2021DistTar!B18) -> NSP21 Small Business Two Rate | E56: =IF(Prop2021DistTar!C18="","",Prop2021DistTar!C18) -> NSP21 Small Business Two Rate | F56: =Prop2021DistTar!BG18 -> 14199.90761 | I56: =Prop2021DistTar!BV18 -> 15855.59436
A57: =OR(EXACT(D57,Prop2021DistTar!C$6:C$65)) -> TRUE | B57: Small Industrial Commercial | C57: Small Industrial Commercial | D57: =IF(Prop2021DistTar!B19="","",Prop2021DistTar!B19) -> NSP27 Small Business Two Rate | E57: =IF(Prop2021DistTar!C19="","",Prop2021DistTar!C19) -> NSP27 Small Business Two Rate | F57: =Prop2021DistTar!BG19 -> 428652.3224 | I57: =Prop2021DistTar!BV19 -> 478858.9159
A58: =OR(EXACT(D58,Prop2021DistTar!C$6:C$65)) -> TRUE | B58: Small Industrial Commercial | C58: Small Industrial Commercial | D58: =IF(Prop2021DistTar!B20="","",Prop2021DistTar!B20) -> NEN21 Small Business Two Rate - Embedded Network | E58: =IF(Prop2021DistTar!C20="","",Prop2021DistTar!C20) -> NEN21 Small Business Two Rate - Embedded Network | F58: =Prop2021DistTar!BG20 -> 0 | I58: =Prop2021DistTar!BV20 -> 0
A59: =OR(EXACT(D59,Prop2021DistTar!C$6:C$65)) -> TRUE | B59: Small Residential | C59: Small Residential | D59: =IF(Prop2021DistTar!B21="","",Prop2021DistTar!B21) -> NEE23 Photovoltaic | E59: =IF(Prop2021DistTar!C21="","",Prop2021DistTar!C21) -> NEE23 Photovoltaic | F59: =Prop2021DistTar!BG21 -> 37681250.45 | I59: =Prop2021DistTar!BV21 -> 40487370.57
A60: =OR(EXACT(D60,Prop2021DistTar!C$6:C$65)) -> TRUE | B60: Small Residential | C60: Small Residential | D60: =IF(Prop2021DistTar!B22="","",Prop2021DistTar!B22) -> NSP23 Photovoltaic | E60: =IF(Prop2021DistTar!C22="","",Prop2021DistTar!C22) -> NSP23 Photovoltaic | F60: =Prop2021DistTar!BG22 -> 46630.01406 | I60: =Prop2021DistTar!BV22 -> 50046.054
A61: =OR(EXACT(D61,Prop2021DistTar!C$6:C$65)) -> TRUE | B61: Small Residential | C61: Small Residential | D61: =IF(Prop2021DistTar!B23="","",Prop2021DistTar!B23) -> NEE24 Small rate 5 day 8 to 8 | E61: =IF(Prop2021DistTar!C23="","",Prop2021DistTar!C23) -> NEE24 Small rate 5 day 8 to 8 | F61: =Prop2021DistTar!BG23 -> 289934.4528 | I61: =Prop2021DistTar!BV23 -> 323489.261
A62: =OR(EXACT(D62,Prop2021DistTar!C$6:C$65)) -> TRUE | B62: Small Industrial Commercial | C62: Small Industrial Commercial | D62: =IF(Prop2021DistTar!B24="","",Prop2021DistTar!B24) -> NEE25 Small business rate 5 day 8 to 8 | E62: =IF(Prop2021DistTar!C24="","",Prop2021DistTar!C24) -> NEE25 Small business rate 5 day 8 to 8 | F62: =Prop2021DistTar!BG24 -> 16086.62041 | I62: =Prop2021DistTar!BV24 -> 17974.08222
A63: =OR(EXACT(D63,Prop2021DistTar!C$6:C$65)) -> TRUE | B63: Small Residential | C63: Small Residential | D63: =IF(Prop2021DistTar!B25="","",Prop2021DistTar!B25) -> NEE30 Small Dedicated | E63: =IF(Prop2021DistTar!C25="","",Prop2021DistTar!C25) -> NEE30 Small Dedicated | F63: =Prop2021DistTar!BG25 -> 1532291.848 | I63: =Prop2021DistTar!BV25 -> 1712192.775
A64: =OR(EXACT(D64,Prop2021DistTar!C$6:C$65)) -> TRUE | B64: Small Residential | C64: Small Residential | D64: =IF(Prop2021DistTar!B26="","",Prop2021DistTar!B26) -> NSP30 Small Dedicated | E64: =IF(Prop2021DistTar!C26="","",Prop2021DistTar!C26) -> NSP30 Small Dedicated | F64: =Prop2021DistTar!BG26 -> 0 | I64: =Prop2021DistTar!BV26 -> 0
A65: =OR(EXACT(D65,Prop2021DistTar!C$6:C$65)) -> TRUE | B65: Small Residential | C65: Small Residential | D65: =IF(Prop2021DistTar!B27="","",Prop2021DistTar!B27) -> NEE31 Small Dedicated-afternoon boost | E65: =IF(Prop2021DistTar!C27="","",Prop2021DistTar!C27) -> NEE31 Small Dedicated-afternoon boost | F65: =Prop2021DistTar!BG27 -> 442395.6378 | I65: =Prop2021DistTar!BV27 -> 494335.7335
A66: =OR(EXACT(D66,Prop2021DistTar!C$6:C$65)) -> TRUE | B66: Small Residential | C66: Small Residential | D66: =IF(Prop2021DistTar!B28="","",Prop2021DistTar!B28) -> NSP31 Small Dedicated-afternoon boost | E66: =IF(Prop2021DistTar!C28="","",Prop2021DistTar!C28) -> NSP31 Small Dedicated-afternoon boost | F66: =Prop2021DistTar!BG28 -> 0 | I66: =Prop2021DistTar!BV28 -> 0
A67: =OR(EXACT(D67,Prop2021DistTar!C$6:C$65)) -> TRUE | B67: Small Residential | C67: Small Residential | D67: =IF(Prop2021DistTar!B29="","",Prop2021DistTar!B29) -> NEE32 Dedicated Circuit 8 to 8 | E67: =IF(Prop2021DistTar!C29="","",Prop2021DistTar!C29) -> NEE32 Dedicated Circuit 8 to 8 | F67: =Prop2021DistTar!BG29 -> 64390.42713 | I67: =Prop2021DistTar!BV29 -> 71950.27777
A68: =OR(EXACT(D68,Prop2021DistTar!C$6:C$65)) -> TRUE | B68: Small Residential | C68: Small Residential | D68: =IF(Prop2021DistTar!B30="","",Prop2021DistTar!B30) -> NSP32 Dedicated Circuit 8 to 8 | E68: =IF(Prop2021DistTar!C30="","",Prop2021DistTar!C30) -> NSP32 Dedicated Circuit 8 to 8 | F68: =Prop2021DistTar!BG30 -> 0 | I68: =Prop2021DistTar!BV30 -> 0
A69: =OR(EXACT(D69,Prop2021DistTar!C$6:C$65)) -> TRUE | B69: Medium Industrial Commercial | C69: Medium Industrial Commercial | D69: =IF(Prop2021DistTar!B31="","",Prop2021DistTar!B31) -> NEE40 Medium Single Rate - closed to new customers | E69: =IF(Prop2021DistTar!C31="","",Prop2021DistTar!C31) -> NEE40 Medium Single Rate - closed to new customers | F69: =Prop2021DistTar!BG31 -> 537617.6694 | I69: =Prop2021DistTar!BV31 -> 600694.7541
A70: =OR(EXACT(D70,Prop2021DistTar!C$6:C$65)) -> TRUE | B70: Medium Industrial Commercial | C70: Medium Industrial Commercial | D70: =IF(Prop2021DistTar!B32="","",Prop2021DistTar!B32) -> NEE51 Medium Two Rate 5Day - closed to new customers - <160MWh to NEE21 | E70: =IF(Prop2021DistTar!C32="","",Prop2021DistTar!C32) -> NEE51 Medium Two Rate 5Day - closed to new customers - <160MWh to NEE21 | F70: =Prop2021DistTar!BG32 -> 4502755.033 | I70: =Prop2021DistTar!BV32 -> 5031418.557
A71: =OR(EXACT(D71,Prop2021DistTar!C$6:C$65)) -> TRUE | B71: Medium Industrial Commercial | C71: Medium Industrial Commercial | D71: =IF(Prop2021DistTar!B33="","",Prop2021DistTar!B33) -> NEE55 Snowfields Tariff | E71: =IF(Prop2021DistTar!C33="","",Prop2021DistTar!C33) -> NEE55 Snowfields Tariff | F71: =Prop2021DistTar!BG33 -> 6133.679535 | I71: =Prop2021DistTar!BV33 -> 6853.733977
A72: =OR(EXACT(D72,Prop2021DistTar!C$6:C$65)) -> TRUE | B72: Medium Industrial Commercial | C72: Medium Industrial Commercial | D72: =IF(Prop2021DistTar!B34="","",Prop2021DistTar!B34) -> NSP55 Snowfields Tariff | E72: =IF(Prop2021DistTar!C34="","",Prop2021DistTar!C34) -> NSP55 Snowfields Tariff | F72: =Prop2021DistTar!BG34 -> 38421.29631 | I72: =Prop2021DistTar!BV34 -> 42931.22787
A73: =OR(EXACT(D73,Prop2021DistTar!C$6:C$65)) -> TRUE | B73: Medium Industrial Commercial | C73: Medium Industrial Commercial | D73: =IF(Prop2021DistTar!B35="","",Prop2021DistTar!B35) -> NSP56 Medium Demand Multi-rate | E73: =IF(Prop2021DistTar!C35="","",Prop2021DistTar!C35) -> NSP56 Medium Demand Multi-rate | F73: =Prop2021DistTar!BG35 -> 12781627.56 | I73: =Prop2021DistTar!BV35 -> 14282944.14
A74: =OR(EXACT(D74,Prop2021DistTar!C$6:C$65)) -> TRUE | B74: Medium Industrial Commercial | C74: Medium Industrial Commercial | D74: =IF(Prop2021DistTar!B36="","",Prop2021DistTar!B36) -> NEN56 Medium Demand Multi-rate - Embedded Network | E74: =IF(Prop2021DistTar!C36="","",Prop2021DistTar!C36) -> NEN56 Medium Demand Multi-rate - Embedded Network | F74: =Prop2021DistTar!BG36 -> 17493.06902 | I74: =Prop2021DistTar!BV36 -> 19548.20411
A75: =OR(EXACT(D75,Prop2021DistTar!C$6:C$65)) -> TRUE | B75: Medium Industrial Commercial | C75: Medium Industrial Commercial | D75: =IF(Prop2021DistTar!B37="","",Prop2021DistTar!B37) -> NEE60 Medium Two Rate 7Day - closed to new customers | E75: =IF(Prop2021DistTar!C37="","",Prop2021DistTar!C37) -> NEE60 Medium Two Rate 7Day - closed to new customers | F75: =Prop2021DistTar!BG37 -> 1237344.458 | I75: =Prop2021DistTar!BV37 -> 1382578.733
A76: =OR(EXACT(D76,Prop2021DistTar!C$6:C$65)) -> TRUE | B76: Medium Industrial Commercial | C76: Medium Industrial Commercial | D76: =IF(Prop2021DistTar!B38="","",Prop2021DistTar!B38) -> NEE52 Unmetered | E76: =IF(Prop2021DistTar!C38="","",Prop2021DistTar!C38) -> NEE52 Unmetered | F76: =Prop2021DistTar!BG38 -> 2519720.288 | I76: =Prop2021DistTar!BV38 -> 2815604.647
A77: =OR(EXACT(D77,Prop2021DistTar!C$6:C$65)) -> TRUE | B77: Large-1 Industrial Commercial | C77: Large-1 Industrial Commercial | D77: =IF(Prop2021DistTar!B39="","",Prop2021DistTar!B39) -> NEE74 LV Large Two Rate 5Day | E77: =IF(Prop2021DistTar!C39="","",Prop2021DistTar!C39) -> NEE74 LV Large Two Rate 5Day | F77: =Prop2021DistTar!BG39 -> 280543.5786 | I77: =Prop2021DistTar!BV39 -> 313486.6362
A78: =OR(EXACT(D78,Prop2021DistTar!C$6:C$65)) -> TRUE | B78: Large-1 Industrial Commercial | C78: Large-1 Industrial Commercial | D78: =IF(Prop2021DistTar!B40="","",Prop2021DistTar!B40) -> NSP75 Large Multi-rate <750 kVA | E78: =IF(Prop2021DistTar!C40="","",Prop2021DistTar!C40) -> NSP75 Large Multi-rate <750 kVA | F78: =Prop2021DistTar!BG40 -> 13638201.59 | I78: =Prop2021DistTar!BV40 -> 15239466.28
A79: =OR(EXACT(D79,Prop2021DistTar!C$6:C$65)) -> TRUE | B79: Large-2 Industrial Commercial | C79: Large-2 Industrial Commercial | D79: =IF(Prop2021DistTar!B41="","",Prop2021DistTar!B41) -> NSP76 Large Multi-rate >750 kVA | E79: =IF(Prop2021DistTar!C41="","",Prop2021DistTar!C41) -> NSP76 Large Multi-rate >750 kVA | F79: =Prop2021DistTar!BG41 -> 17701301.61 | I79: =Prop2021DistTar!BV41 -> 19779508.71
A80: =OR(EXACT(D80,Prop2021DistTar!C$6:C$65)) -> TRUE | B80: Large-3 Industrial Commercial | C80: Large-3 Industrial Commercial | D80: =IF(Prop2021DistTar!B42="","",Prop2021DistTar!B42) -> NSP77 Large Multi-rate >2 GWh | E80: =IF(Prop2021DistTar!C42="","",Prop2021DistTar!C42) -> NSP77 Large Multi-rate >2 GWh | F80: =Prop2021DistTar!BG42 -> 5271290.641 | I80: =Prop2021DistTar!BV42 -> 5890243.674
A81: =OR(EXACT(D81,Prop2021DistTar!C$6:C$65)) -> TRUE | B81: Large-4 Industrial Commercial | C81: Large-4 Industrial Commercial | D81: =IF(Prop2021DistTar!B43="","",Prop2021DistTar!B43) -> NSP78 Large Multi-rate >4 GWh | E81: =IF(Prop2021DistTar!C43="","",Prop2021DistTar!C43) -> NSP78 Large Multi-rate >4 GWh | F81: =Prop2021DistTar!BG43 -> 3997046.006 | I81: =Prop2021DistTar!BV43 -> 4466534.907
A82: =OR(EXACT(D82,Prop2021DistTar!C$6:C$65)) -> TRUE | B82: High Voltage-1 Industrial Commercial | C82: High Voltage-1 Industrial Commercial | D82: =IF(Prop2021DistTar!B44="","",Prop2021DistTar!B44) -> NSP81 HV Kva | E82: =IF(Prop2021DistTar!C44="","",Prop2021DistTar!C44) -> NSP81 HV Kva | F82: =Prop2021DistTar!BG44 -> 6830472.242 | I82: =Prop2021DistTar!BV44 -> 7632186.836
A83: =OR(EXACT(D83,Prop2021DistTar!C$6:C$65)) -> TRUE | B83: High Voltage-2 Industrial Commercial | C83: High Voltage-2 Industrial Commercial | D83: =IF(Prop2021DistTar!B45="","",Prop2021DistTar!B45) -> NSP82 Traction | E83: =IF(Prop2021DistTar!C45="","",Prop2021DistTar!C45) -> NSP82 Traction
A84: =OR(EXACT(D84,Prop2021DistTar!C$6:C$65)) -> TRUE | B84: High Voltage-3 Industrial Commercial | C84: High Voltage-3 Industrial Commercial | D84: =IF(Prop2021DistTar!B46="","",Prop2021DistTar!B46) -> NSP83 Small HV | E84: =IF(Prop2021DistTar!C46="","",Prop2021DistTar!C46) -> NSP83 Small HV | F84: =Prop2021DistTar!BG46 -> 441762.5983 | I84: =Prop2021DistTar!BV46 -> 493709.7648
A85: =OR(EXACT(D85,Prop2021DistTar!C$6:C$65)) -> TRUE | B85: Extra High Voltage-1 Industrial Commercial | C85: Extra High Voltage-1 Industrial Commercial | D85: =IF(Prop2021DistTar!B47="","",Prop2021DistTar!B47) -> NSP91 ST kVA | E85: =IF(Prop2021DistTar!C47="","",Prop2021DistTar!C47) -> NSP91 ST kVA
A86: =OR(EXACT(D86,Prop2021DistTar!C$6:C$65)) -> TRUE | B86: Extra High Voltage-2 Industrial Commercial | C86: Extra High Voltage-2 Industrial Commercial | D86: =IF(Prop2021DistTar!B48="","",Prop2021DistTar!B48) -> NEE93 Latrobe Generators kVA (non published) | E86: =IF(Prop2021DistTar!C48="","",Prop2021DistTar!C48) -> NEE93 Latrobe Generators kVA (non published)
A87: =OR(EXACT(D87,Prop2021DistTar!C$6:C$65)) -> TRUE | B87: Extra High Voltage-3 Industrial Commercial | C87: Extra High Voltage-3 Industrial Commercial | D87: =IF(Prop2021DistTar!B49="","",Prop2021DistTar!B49) -> NSP94 - ST kVA >25MVA <20kM | E87: =IF(Prop2021DistTar!C49="","",Prop2021DistTar!C49) -> NSP94 - ST kVA >25MVA <20kM
A88: =OR(EXACT(D88,Prop2021DistTar!C$6:C$65)) -> TRUE | B88: Extra High Voltage-4 Industrial Commercial | C88: Extra High Voltage-4 Industrial Commercial | D88: =IF(Prop2021DistTar!B50="","",Prop2021DistTar!B50) -> NSP95 - ST kVA <25MVA >20kM | E88: =IF(Prop2021DistTar!C50="","",Prop2021DistTar!C50) -> NSP95 - ST kVA <25MVA >20kM
A89: =OR(EXACT(D89,Prop2021DistTar!C$6:C$65)) -> TRUE | B89: Small Industrial Commercial | C89: Small Industrial Commercial | D89: =IF(Prop2021DistTar!B51="","",Prop2021DistTar!B51) -> NASN19 - Business >40MWh Single Rate | E89: =IF(Prop2021DistTar!C51="","",Prop2021DistTar!C51) -> NASN19 - Business >40MWh Single Rate | F89: =Prop2021DistTar!BG51 -> 3687545.177 | I89: =Prop2021DistTar!BV51 -> 3986906.759
A90: =OR(EXACT(D90,Prop2021DistTar!C$6:C$65)) -> TRUE | B90: Small Industrial Commercial | C90: Small Industrial Commercial | D90: =IF(Prop2021DistTar!B52="","",Prop2021DistTar!B52) -> NASN21 - Business >40MWh Two Rate | E90: =IF(Prop2021DistTar!C52="","",Prop2021DistTar!C52) -> NASN21 - Business >40MWh Two Rate | F90: =Prop2021DistTar!BG52 -> 27477458.52 | I90: =Prop2021DistTar!BV52 -> 29205717.34
A91: =OR(EXACT(D91,Prop2021DistTar!C$6:C$65)) -> TRUE | B91: Small Residential | C91: Small Residential | D91: =IF(Prop2021DistTar!B53="","",Prop2021DistTar!B53) -> NASN11 - Residential Single Rate | E91: =IF(Prop2021DistTar!C53="","",Prop2021DistTar!C53) -> NASN11 - Residential Single Rate | F91: =Prop2021DistTar!BG53 -> 9915.704115 | I91: =Prop2021DistTar!BV53 -> 10968.82613
A92: =OR(EXACT(D92,Prop2021DistTar!C$6:C$65)) -> TRUE | B92: Small Industrial Commercial | C92: Small Industrial Commercial | D92: =IF(Prop2021DistTar!B54="","",Prop2021DistTar!B54) -> NASN12 - Business Single Rate | E92: =IF(Prop2021DistTar!C54="","",Prop2021DistTar!C54) -> NASN12 - Business Single Rate | F92: =Prop2021DistTar!BG54 -> 12624.3105 | I92: =Prop2021DistTar!BV54 -> 14107.2659
A93: =OR(EXACT(D93,Prop2021DistTar!C$6:C$65)) -> TRUE | D93: =IF(Prop2021DistTar!B55="","",Prop2021DistTar!B55) ->  | E93: =IF(Prop2021DistTar!C55="","",Prop2021DistTar!C55) ->  | F93: =Prop2021DistTar!BG55 -> 0 | I93: =Prop2021DistTar!BV55 -> 0
A94: =OR(EXACT(D94,Prop2021DistTar!C$6:C$65)) -> TRUE | D94: =IF(Prop2021DistTar!B56="","",Prop2021DistTar!B56) ->  | E94: =IF(Prop2021DistTar!C56="","",Prop2021DistTar!C56) ->  | F94: =Prop2021DistTar!BG56 -> 0 | I94: =Prop2021DistTar!BV56 -> 0
A95: =OR(EXACT(D95,Prop2021DistTar!C$6:C$65)) -> TRUE | D95: =IF(Prop2021DistTar!B57="","",Prop2021DistTar!B57) ->  | E95: =IF(Prop2021DistTar!C57="","",Prop2021DistTar!C57) ->  | F95: =Prop2021DistTar!BG57 -> 0 | I95: =Prop2021DistTar!BV57 -> 0
A96: =OR(EXACT(D96,Prop2021DistTar!C$6:C$65)) -> TRUE | D96: =IF(Prop2021DistTar!B58="","",Prop2021DistTar!B58) ->  | E96: =IF(Prop2021DistTar!C58="","",Prop2021DistTar!C58) ->  | F96: =Prop2021DistTar!BG58 -> 0 | I96: =Prop2021DistTar!BV58 -> 0
A97: =OR(EXACT(D97,Prop2021DistTar!C$6:C$65)) -> TRUE | D97: =IF(Prop2021DistTar!B59="","",Prop2021DistTar!B59) ->  | E97: =IF(Prop2021DistTar!C59="","",Prop2021DistTar!C59) ->  | F97: =Prop2021DistTar!BG59 -> 0 | I97: =Prop2021DistTar!BV59 -> 0
A98: =OR(EXACT(D98,Prop2021DistTar!C$6:C$65)) -> TRUE | D98: =IF(Prop2021DistTar!B60="","",Prop2021DistTar!B60) ->  | E98: =IF(Prop2021DistTar!C60="","",Prop2021DistTar!C60) ->  | F98: =Prop2021DistTar!BG60 -> 0 | I98: =Prop2021DistTar!BV60 -> 0
A99: =OR(EXACT(D99,Prop2021DistTar!C$6:C$65)) -> TRUE | D99: =IF(Prop2021DistTar!B61="","",Prop2021DistTar!B61) ->  | E99: =IF(Prop2021DistTar!C61="","",Prop2021DistTar!C61) ->  | F99: =Prop2021DistTar!BG61 -> 0 | I99: =Prop2021DistTar!BV61 -> 0
A100: =OR(EXACT(D100,Prop2021DistTar!C$6:C$65)) -> TRUE | D100: =IF(Prop2021DistTar!B62="","",Prop2021DistTar!B62) ->  | E100: =IF(Prop2021DistTar!C62="","",Prop2021DistTar!C62) ->  | F100: =Prop2021DistTar!BG62 -> 0 | I100: =Prop2021DistTar!BV62 -> 0
A101: =OR(EXACT(D101,Prop2021DistTar!C$6:C$65)) -> TRUE | D101: =IF(Prop2021DistTar!B63="","",Prop2021DistTar!B63) ->  | E101: =IF(Prop2021DistTar!C63="","",Prop2021DistTar!C63) ->  | F101: =Prop2021DistTar!BG63 -> 0 | I101: =Prop2021DistTar!BV63 -> 0
A102: =OR(EXACT(D102,Prop2021DistTar!C$6:C$65)) -> TRUE | D102: =IF(Prop2021DistTar!B64="","",Prop2021DistTar!B64) ->  | E102: =IF(Prop2021DistTar!C64="","",Prop2021DistTar!C64) ->  | F102: =Prop2021DistTar!BG64 -> 0 | I102: =Prop2021DistTar!BV64 -> 0
A103: =OR(EXACT(D103,Prop2021DistTar!C$6:C$65)) -> TRUE | D103: =IF(Prop2021DistTar!B65="","",Prop2021DistTar!B65) ->  | E103: =IF(Prop2021DistTar!C65="","",Prop2021DistTar!C65) ->  | F103: =Prop2021DistTar!BG65 -> 0 | I103: =Prop2021DistTar!BV65 -> 0
F104: 296057042.4 | I104: 327002130 | BJ104: =SUM(BJ44:BJ103) -> 0

Sheet Est2020DistRev
B1: ="Tariff Approval - "&'Model update'!C3 -> Tariff Approval - AusNet Services | D1: ="Est"&'Model update'!$C$5-1&"DistRev" -> Est2020DistRev
B3: ="ESTIMATED "&'Model update'!$C$8&" Distribution Revenue" -> ESTIMATED 2020 Distribution Revenue
D4: ="Current Distribution Tariffs (Pt-1) for "&'Model update'!$C$8 -> Current Distribution Tariffs (Pt-1) for 2020 | R4: =" Estimated Distribution Quantities for "&'Model update'!$C$8&" (Qt-1)" -> Estimated Distribution Quantities for 2020 (Qt-1) | AF4: ="Estimated Revenue (Pt-1 "&'Model update'!$C$8&")*(Qt-1 " &'Model update'!$C$8&")" -> Estimated Revenue (Pt-1 2020)*(Qt-1 2020)
B5: ="Tariffs "&'Model update'!C8 -> Tariffs 2020 | D5: Current Fixed | E5: CurrentPkBlk1 | F5: CurrentPkBlk2 | G5: Current PkBlk3 | H5: Current PkBlk4 | I5: Current OPkBlk1 | J5: Current OPkBlk2 | K5: Current OPkBlk3 | L5: Current OPkBlk4 | M5: Current DemBlk1 | N5: Current DemBlk2 | O5: Current DemBlk3 | P5: Current DemBlk4 | R5: EstVol Fixed | S5: EstVol PkBlk1 | T5: EstVol PkBlk2 | U5: EstVol PkBlk3 | V5: EstVol PkBlk4 | W5: EstVol OPkBlk1 | X5: EstVol OPkBlk2 | Y5: EstVol OPkBlk3 | Z5: EstVol OPkBlk4 | AA5: EstVol DemBlk1 | AB5: EstVol DemBlk2 | AC5: EstVol DemBlk3 | AD5: EstVol DemBlk4 | AF5: EstRev Fixed | AG5: EstRev PkBlk1 | AH5: EstRev PkBlk2 | AI5: EstRev PkBlk3 | AJ5: EstRev PkBlk4 | AK5: EstRev OPkBlk1 | AL5: EstRev OPkBlk2 | AM5: EstRev OPkBlk3 | AN5: EstRev OPkBlk4 | AO5: EstRev DemBlk1 | AP5: EstRev DemBlk2 | AQ5: EstRev DemBlk3 | AR5: EstRev DemBlk4 | AS5: EstRev Total
B6: =Prop2021DistTar!C6 -> NEE11 Small Single Rate < 160MWh | D6: 118 | E6: 8.7595 | F6: 10.4789 | G6: 0 | H6: 0 | I6: 0 | J6: 0 | K6: 0 | L6: 0 | M6: 0 | N6: 0 | O6: 0 | P6: 0 | R6: 486334.6698 | S6: 1414071268 | T6: 766008897.6 | U6: 0 | V6: 0 | W6: 0 | X6: 0 | Y6: 0 | Z6: 0 | AA6: 0 | AB6: 0 | AC6: 0 | AD6: 0 | AF6: =D6*R6 -> 57387491.04 | AG6: =E6/100*S6 -> 123865572.7 | AH6: 80269306.37 | AI6: 0 | AJ6: 0 | AK6: 0 | AL6: 0 | AM6: 0 | AN6: 0 | AO6: =M6*AA6 -> 0 | AP6: 0 | AQ6: 0 | AR6: 0 | AS6: =SUM(AF6:AR6) -> 261522370.1
B7: =Prop2021DistTar!C7 -> NGT11 Small Interval Single Rate < 160MWh | D7: 118 | E7: 11.6847 | F7: 0 | G7: 0 | H7: 0 | I7: 0 | J7: 0 | K7: 0 | L7: 0 | M7: 0 | N7: 0 | O7: 0 | P7: 0 | R7: 5 | S7: 26915.60027 | T7: 0 | U7: 0 | V7: 0 | W7: 0 | X7: 0 | Y7: 0 | Z7: 0 | AA7: 0 | AB7: 0 | AC7: 0 | AD7: 0 | AF7: =D7*R7 -> 590 | AG7: =E7/100*S7 -> 3145.007144 | AH7: 0 | AI7: 0 | AJ7: 0 | AK7: 0 | AL7: 0 | AM7: 0 | AN7: 0 | AO7: =M7*AA7 -> 0 | AP7: =N7*AB7 -> 0 | AQ7: =O7*AC7 -> 0 | AR7: =P7*AD7 -> 0 | AS7: =SUM(AF7:AR7) -> 3735.007144
B8: =Prop2021DistTar!C8 -> NSP11 Small Single Rate < 160MWh | D8: 118 | E8: 38.9022 | F8: 34.0409 | G8: 29.7923 | H8: 0 | I8: 3.318 | J8: 0 | K8: 0 | L8: 0 | M8: 0 | N8: 0 | O8: 0 | P8: 0 | R8: 0 | S8: 0 | T8: 0 | U8: 0 | V8: 0 | W8: 0 | X8: 0 | Y8: 0 | Z8: 0 | AA8: 0 | AB8: 0 | AC8: 0 | AD8: 0 | AF8: 0 | AG8: 0 | AH8: 0 | AI8: 0 | AJ8: 0 | AK8: 0 | AL8: 0 | AM8: 0 | AN8: 0 | AO8: 0 | AP8: 0 | AQ8: 0 | AR8: 0 | AS8: 0
B9: =Prop2021DistTar!C9 -> NEN11 Small Single Rate < 160MWh Embedded Network | D9: 118 | E9: 5.3702 | F9: 5.902 | G9: 0 | H9: 0 | I9: 0 | J9: 0 | K9: 0 | L9: 0 | M9: 0 | N9: 0 | O9: 0 | P9: 0 | R9: 0 | S9: 0 | T9: 0 | U9: 0 | V9: 0 | W9: 0 | X9: 0 | Y9: 0 | Z9: 0 | AA9: 0 | AB9: 0 | AC9: 0 | AD9: 0 | AF9: 0 | AG9: 0 | AH9: 0 | AI9: 0 | AJ9: 0 | AK9: 0 | AL9: 0 | AM9: 0 | AN9: 0 | AO9: 0 | AP9: 0 | AQ9: 0 | AR9: 0 | AS9: 0
B10: =Prop2021DistTar!C10 -> NEE12 Small Business Single Rate - new in 2001 | D10: 118 | E10: 12.5869 | F10: 15.9109 | G10: 0 | H10: 0 | I10: 0 | J10: 0 | K10: 0 | L10: 0 | M10: 0 | N10: 0 | O10: 0 | P10: 0 | R10: 29650.26721 | S10: 55694218.28 | T10: 97730592.92 | U10: 0 | V10: 0 | W10: 0 | X10: 0 | Y10: 0 | Z10: 0 | AA10: 0 | AB10: 0 | AC10: 0 | AD10: 0 | AF10: 3498731.531 | AG10: 7010175.56 | AH10: 15549816.91 | AI10: 0 | AJ10: 0 | AK10: 0 | AL10: 0 | AM10: 0 | AN10: 0 | AO10: 0 | AP10: 0 | AQ10: 0 | AR10: 0 | AS10: 26058724
B11: =Prop2021DistTar!C11 -> NSP12 Small Business Single Rate - new in 2001 | D11: 118 | E11: 38.9022 | F11: 34.0409 | G11: 29.7923 | H11: 0 | I11: 3.318 | J11: 0 | K11: 0 | L11: 0 | M11: 0 | N11: 0 | O11: 0 | P11: 0 | R11: 0 | S11: 0 | T11: 0 | U11: 0 | V11: 0 | W11: 0 | X11: 0 | Y11: 0 | Z11: 0 | AA11: 0 | AB11: 0 | AC11: 0 | AD11: 0 | AF11: 0 | AG11: 0 | AH11: 0 | AI11: 0 | AJ11: 0 | AK11: 0 | AL11: 0 | AM11: 0 | AN11: 0 | AO11: 0 | AP11: 0 | AQ11: 0 | AR11: 0 | AS11: 0
B12: =Prop2021DistTar!C12 -> NEN12 Small Business Single Rate - Embedded Network | D12: 118 | E12: 18.3063 | F12: 21.3102 | G12: 0 | H12: 0 | I12: 0 | J12: 0 | K12: 0 | L12: 0 | M12: 0 | N12: 0 | O12: 0 | P12: 0 | R12: 0 | S12: 0 | T12: 0 | U12: 0 | V12: 0 | W12: 0 | X12: 0 | Y12: 0 | Z12: 0 | AA12: 0 | AB12: 0 | AC12: 0 | AD12: 0 | AF12: 0 | AG12: 0 | AH12: 0 | AI12: 0 | AJ12: 0 | AK12: 0 | AL12: 0 | AM12: 0 | AN12: 0 | AO12: 0 | AP12: 0 | AQ12: 0 | AR12: 0 | AS12: 0
B13: =Prop2021DistTar!C13 -> NEE20 Small Two Rate | D13: 118 | E13: 16.9796 | F13: 0 | G13: 0 | H13: 0 | I13: 3.1228 | J13: 0 | K13: 0 | L13: 0 | M13: 0 | N13: 0 | O13: 0 | P13: 0 | R13: 52457.13739 | S13: 157398623.3 | T13: 0 | U13: 0 | V13: 0 | W13: 204159796.3 | X13: 0 | Y13: 0 | Z13: 0 | AA13: 0 | AB13: 0 | AC13: 0 | AD13: 0 | AF13: 6189942.212 | AG13: 26725656.64 | AH13: 0 | AI13: 0 | AJ13: 0 | AK13: 6375502.12 | AL13: 0 | AM13: 0 | AN13: 0 | AO13: 0 | AP13: 0 | AQ13: 0 | AR13: 0 | AS13: 39291100.97
B14: =Prop2021DistTar!C14 -> NSP20 Small Two Rate | D14: 118 | E14: 38.9022 | F14: 34.0409 | G14: 29.7923 | H14: 0 | I14: 3.318 | J14: 0 | K14: 0 | L14: 0 | M14: 0 | N14: 0 | O14: 0 | P14: 0 | R14: 13.5 | S14: 2490.472948 | T14: 2269.981312 | U14: 3678.61 | V14: 0 | W14: 76639.07176 | X14: 0 | Y14: 0 | Z14: 0 | AA14: 0 | AB14: 0 | AC14: 0 | AD14: 0 | AF14: 1593 | AG14: 968.8487671 | AH14: 772.7220684 | AI14: 1095.942527 | AJ14: 0 | AK14: 2542.884401 | AL14: 0 | AM14: 0 | AN14: 0 | AO14: 0 | AP14: 0 | AQ14: 0 | AR14: 0 | AS14: 6973.397763
B15: =Prop2021DistTar!C15 -> NGT26 Small Interval Multi Rate | D15: 118 | E15: 12.229 | F15: 12.229 | G15: 8.9612 | H15: 8.9612 | I15: 3.3197 | J15: 3.3197 | K15: 0 | L15: 0 | M15: 0 | N15: 0 | O15: 0 | P15: 0 | R15: 1591.980583 | S15: 2874155.915 | T15: 0 | U15: 3484486.271 | V15: 0 | W15: 2719019.309 | X15: 0 | Y15: 0 | Z15: 0 | AA15: 0 | AB15: 0 | AC15: 0 | AD15: 0 | AF15: 187853.7088 | AG15: 351480.5268 | AH15: 0 | AI15: 312251.7837 | AJ15: 0 | AK15: 90263.28401 | AL15: 0 | AM15: 0 | AN15: 0 | AO15: 0 | AP15: 0 | AQ15: 0 | AR15: 0 | AS15: 941849.3033
B16: =Prop2021DistTar!C16 -> NEN20 Small Two Rate - Embedded Network | D16: 118 | E16: 10.0708 | F16: 0 | G16: 0 | H16: 0 | I16: 3.292 | J16: 0 | K16: 0 | L16: 0 | M16: 0 | N16: 0 | O16: 0 | P16: 0 | R16: 0 | S16: 0 | T16: 0 | U16: 0 | V16: 0 | W16: 0 | X16: 0 | Y16: 0 | Z16: 0 | AA16: 0 | AB16: 0 | AC16: 0 | AD16: 0 | AF16: 0 | AG16: 0 | AH16: 0 | AI16: 0 | AJ16: 0 | AK16: 0 | AL16: 0 | AM16: 0 | AN16: 0 | AO16: 0 | AP16: 0 | AQ16: 0 | AR16: 0 | AS16: 0
B17: =Prop2021DistTar!C17 -> NEE21 Small Business Two Rate | D17: 118 | E17: 16.2513 | F17: 0 | G17: 0 | H17: 0 | I17: 3.3664 | J17: 0 | K17: 0.5975 | L17: 0 | M17: 0 | N17: 0 | O17: 0 | P17: 0 | R17: 29598.54303 | S17: 192216126.3 | T17: 0 | U17: 0 | V17: 0 | W17: 140384316.3 | X17: 0 | Y17: -12355885.19 | Z17: 0 | AA17: 0 | AB17: 0 | AC17: 0 | AD17: 0 | AF17: 3492628.078 | AG17: 31237619.33 | AH17: 0 | AI17: 0 | AJ17: 0 | AK17: 4725897.622 | AL17: 0 | AM17: -73826.41401 | AN17: 0 | AO17: 0 | AP17: 0 | AQ17: 0 | AR17: 0 | AS17: 39382318.61
B18: =Prop2021DistTar!C18 -> NSP21 Small Business Two Rate | D18: 118 | E18: 38.9022 | F18: 34.0409 | G18: 29.7923 | H18: 0 | I18: 3.318 | J18: 0 | K18: 0.5975 | L18: 0 | M18: 0 | N18: 0 | O18: 0 | P18: 0 | R18: 20.44003765 | S18: 24188.21014 | T18: 28816.30288 | U18: 37605.93 | V18: 0 | W18: 735430.0581 | X18: 0 | Y18: -7008.71 | Z18: 0 | AA18: 0 | AB18: 0 | AC18: 0 | AD18: 0 | AF18: 2411.924442 | AG18: 9409.745884 | AH18: 9809.328847 | AI18: 11203.67148 | AJ18: 0 | AK18: 24401.56933 | AL18: 0 | AM18: -41.87704225 | AN18: 0 | AO18: 0 | AP18: 0 | AQ18: 0 | AR18: 0 | AS18: 57194.36294
B19: =Prop2021DistTar!C19 -> NSP27 Small Business Two Rate | D19: 118 | E19: 21.9828 | F19: 19.2702 | G19: 16.9009 | H19: 0 | I19: 6.0349 | J19: 0 | K19: 0.5975 | L19: 0 | M19: 0 | N19: 0 | O19: 0 | P19: 0 | R19: 173.9100565 | S19: 392649.6628 | T19: 378077.9397 | U19: 515261.03 | V19: 0 | W19: 12533889.68 | X19: 0 | Y19: -7825.92 | Z19: 0 | AA19: 0 | AB19: 0 | AC19: 0 | AD19: 0 | AF19: 20521.38666 | AG19: 86315.39006 | AH19: 72856.37514 | AI19: 87083.75142 | AJ19: 0 | AK19: 756407.7084 | AL19: 0 | AM19: -46.759872 | AN19: 0 | AO19: 0 | AP19: 0 | AQ19: 0 | AR19: 0 | AS19: 1023137.852
B20: =Prop2021DistTar!C20 -> NEN21 Small Business Two Rate - Embedded Network | D20: 118 | E20: 11.2852 | F20: 0 | G20: 0 | H20: 0 | I20: 5.1416 | J20: 0 | K20: 0 | L20: 0 | M20: 0 | N20: 0 | O20: 0 | P20: 0 | R20: 0 | S20: 0 | T20: 0 | U20: 0 | V20: 0 | W20: 0 | X20: 0 | Y20: 0 | Z20: 0 | AA20: 0 | AB20: 0 | AC20: 0 | AD20: 0 | AF20: 0 | AG20: 0 | AH20: 0 | AI20: 0 | AJ20: 0 | AK20: 0 | AL20: 0 | AM20: 0 | AN20: 0 | AO20: 0 | AP20: 0 | AQ20: 0 | AR20: 0 | AS20: 0
B21: =Prop2021DistTar!C21 -> NEE23 Photovoltaic | D21: 130 | E21: 16.9796 | F21: 0 | G21: 0 | H21: 0 | I21: 3.1228 | J21: 0 | K21: 0.5975 | L21: 0 | M21: 0 | N21: 0 | O21: 0 | P21: 0 | R21: 140653.8923 | S21: 330746139.1 | T21: 0 | U21: 0 | V21: 0 | W21: 390954214.6 | X21: 0 | Y21: -230432166.1 | Z21: 0 | AA21: 0 | AB21: 0 | AC21: 0 | AD21: 0 | AF21: 18285006 | AG21: 56159371.44 | AH21: 0 | AI21: 0 | AJ21: 0 | AK21: 12208718.21 | AL21: 0 | AM21: -1376832.192 | AN21: 0 | AO21: 0 | AP21: 0 | AQ21: 0 | AR21: 0 | AS21: 85276263.46
B22: =Prop2021DistTar!C22 -> NSP23 Photovoltaic | D22: 130 | E22: 38.9022 | F22: 34.0409 | G22: 29.7923 | H22: 0 | I22: 3.318 | J22: 0 | K22: 0.5975 | L22: 0 | M22: 0 | N22: 0 | O22: 0 | P22: 0 | R22: 215.8473046 | S22: 18445.78387 | T22: 21256.81033 | U22: 65182.33 | V22: 0 | W22: 1045973.498 | X22: 0 | Y22: -403054.4743 | Z22: 0 | AA22: 0 | AB22: 0 | AC22: 0 | AD22: 0 | AF22: 28060.14959 | AG22: 7175.815734 | AH22: 7236.009547 | AI22: 19419.3153 | AJ22: 0 | AK22: 34705.40067 | AL22: 0 | AM22: -2408.250484 | AN22: 0 | AO22: 0 | AP22: 0 | AQ22: 0 | AR22: 0 | AS22: 94188.44036
B23: =Prop2021DistTar!C23 -> NEE24 Small rate 5 day 8 to 8 | D23: 118 | E23: 7.3298 | F23: 0 | G23: 0 | H23: 0 | I23: 3.0869 | J23: 0 | K23: 0 | L23: 0 | M23: 0 | N23: 0 | O23: 0 | P23: 0 | R23: 2262.990292 | S23: 3110890.209 | T23: 0 | U23: 0 | V23: 0 | W23: 7359649.476 | X23: 0 | Y23: 0 | Z23: 0 | AA23: 0 | AB23: 0 | AC23: 0 | AD23: 0 | AF23: 267032.8544 | AG23: 228022.0305 | AH23: 0 | AI23: 0 | AJ23: 0 | AK23: 227185.0197 | AL23: 0 | AM23: 0 | AN23: 0 | AO23: 0 | AP23: 0 | AQ23: 0 | AR23: 0 | AS23: 722239.9046
B24: =Prop2021DistTar!C24 -> NEE25 Small business rate 5 day 8 to 8 | D24: 118 | E24: 15.3832 | F24: 0 | G24: 0 | H24: 0 | I24: 3.2069 | J24: 0 | K24: 0 | L24: 0 | M24: 0 | N24: 0 | O24: 0 | P24: 0 | R24: 6.5 | S24: 165241.8114 | T24: 0 | U24: 0 | V24: 0 | W24: 191330.4975 | X24: 0 | Y24: 0 | Z24: 0 | AA24: 0 | AB24: 0 | AC24: 0 | AD24: 0 | AF24: 767 | AG24: 25419.47833 | AH24: 0 | AI24: 0 | AJ24: 0 | AK24: 6135.777723 | AL24: 0 | AM24: 0 | AN24: 0 | AO24: 0 | AP24: 0 | AQ24: 0 | AR24: 0 | AS24: 32322.25606
B25: =Prop2021DistTar!C25 -> NEE30 Small Dedicated | D25: 0 | E25: 0 | F25: 0 | G25: 0 | H25: 0 | I25: 3.1141 | J25: 0 | K25: 0 | L25: 0 | M25: 0 | N25: 0 | O25: 0 | P25: 0 | R25: 87360.49788 | S25: 0 | T25: 0 | U25: 0 | V25: 0 | W25: 123271097.5 | X25: 0 | Y25: 0 | Z25: 0 | AA25: 0 | AB25: 0 | AC25: 0 | AD25: 0 | AF25: 0 | AG25: 0 | AH25: 0 | AI25: 0 | AJ25: 0 | AK25: 3838785.248 | AL25: 0 | AM25: 0 | AN25: 0 | AO25: 0 | AP25: 0 | AQ25: 0 | AR25: 0 | AS25: 3838785.248
B26: =Prop2021DistTar!C26 -> NSP30 Small Dedicated | D26: 0 | E26: 0 | F26: 0 | G26: 0 | H26: 0 | I26: 3.1141 | J26: 0 | K26: 0 | L26: 0 | M26: 0 | N26: 0 | O26: 0 | P26: 0 | R26: 0 | S26: 0 | T26: 0 | U26: 0 | V26: 0 | W26: 0 | X26: 0 | Y26: 0 | Z26: 0 | AA26: 0 | AB26: 0 | AC26: 0 | AD26: 0 | AF26: 0 | AG26: 0 | AH26: 0 | AI26: 0 | AJ26: 0 | AK26: 0 | AL26: 0 | AM26: 0 | AN26: 0 | AO26: 0 | AP26: 0 | AQ26: 0 | AR26: 0 | AS26: 0
B27: =Prop2021DistTar!C27 -> NEE31 Small Dedicated-afternoon boost | D27: 0 | E27: 0 | F27: 0 | G27: 0 | H27: 0 | I27: 3.1141 | J27: 0 | K27: 0 | L27: 0 | M27: 0 | N27: 0 | O27: 0 | P27: 0 | R27: 12927.43473 | S27: 0 | T27: 0 | U27: 0 | V27: 0 | W27: 40137760.8 | X27: 0 | Y27: 0 | Z27: 0 | AA27: 0 | AB27: 0 | AC27: 0 | AD27: 0 | AF27: 0 | AG27: 0 | AH27: 0 | AI27: 0 | AJ27: 0 | AK27: 1249930.009 | AL27: 0 | AM27: 0 | AN27: 0 | AO27: 0 | AP27: 0 | AQ27: 0 | AR27: 0 | AS27: 1249930.009
B28: =Prop2021DistTar!C28 -> NSP31 Small Dedicated-afternoon boost | D28: 0 | E28: 0 | F28: 0 | G28: 0 | H28: 0 | I28: 3.1141 | J28: 0 | K28: 0 | L28: 0 | M28: 0 | N28: 0 | O28: 0 | P28: 0 | R28: 0 | S28: 0 | T28: 0 | U28: 0 | V28: 0 | W28: 0 | X28: 0 | Y28: 0 | Z28: 0 | AA28: 0 | AB28: 0 | AC28: 0 | AD28: 0 | AF28: 0 | AG28: 0 | AH28: 0 | AI28: 0 | AJ28: 0 | AK28: 0 | AL28: 0 | AM28: 0 | AN28: 0 | AO28: 0 | AP28: 0 | AQ28: 0 | AR28: 0 | AS28: 0
B29: =Prop2021DistTar!C29 -> NEE32 Dedicated Circuit 8 to 8 | D29: 0 | E29: 0 | F29: 0 | G29: 0 | H29: 0 | I29: 3.1141 | J29: 0 | K29: 0 | L29: 0 | M29: 0 | N29: 0 | O29: 0 | P29: 0 | R29: 3712.629806 | S29: 0 | T29: 0 | U29: 0 | V29: 0 | W29: 5099926.732 | X29: 0 | Y29: 0 | Z29: 0 | AA29: 0 | AB29: 0 | AC29: 0 | AD29: 0 | AF29: 0 | AG29: 0 | AH29: 0 | AI29: 0 | AJ29: 0 | AK29: 158816.8184 | AL29: 0 | AM29: 0 | AN29: 0 | AO29: 0 | AP29: 0 | AQ29: 0 | AR29: 0 | AS29: 158816.8184
B30: =Prop2021DistTar!C30 -> NSP32 Dedicated Circuit 8 to 8 | D30: 0 | E30: 0 | F30: 0 | G30: 0 | H30: 0 | I30: 3.1141 | J30: 0 | K30: 0 | L30: 0 | M30: 0 | N30: 0 | O30: 0 | P30: 0 | R30: 0 | S30: 0 | T30: 0 | U30: 0 | V30: 0 | W30: 0 | X30: 0 | Y30: 0 | Z30: 0 | AA30: 0 | AB30: 0 | AC30: 0 | AD30: 0 | AF30: 0 | AG30: 0 | AH30: 0 | AI30: 0 | AJ30: 0 | AK30: 0 | AL30: 0 | AM30: 0 | AN30: 0 | AO30: 0 | AP30: 0 | AQ30: 0 | AR30: 0 | AS30: 0
B31: =Prop2021DistTar!C31 -> NEE40 Medium Single Rate - closed to new customers | D31: 118 | E31: 22.7386 | F31: 0 | G31: 0 | H31: 0 | I31: 0 | J31: 0 | K31: 0 | L31: 0 | M31: 0 | N31: 0 | O31: 0 | P31: 0 | R31: 245.9824212 | S31: 4322929.876 | T31: 0 | U31: 0 | V31: 0 | W31: 0 | X31: 0 | Y31: 0 | Z31: 0 | AA31: 0 | AB31: 0 | AC31: 0 | AD31: 0 | AF31: 29025.9257 | AG31: 982973.7327 | AH31: 0 | AI31: 0 | AJ31: 0 | AK31: 0 | AL31: 0 | AM31: 0 | AN31: 0 | AO31: 0 | AP31: 0 | AQ31: 0 | AR31: 0 | AS31: 1011999.658
B32: =Prop2021DistTar!C32 -> NEE51 Medium Two Rate 5Day - closed to new customers - <160MWh to NEE21 | D32: 118 | E32: 19.6475 | F32: 0 | G32: 0 | H32: 0 | I32: 4.1612 | J32: 0 | K32: 0 | L32: 0 | M32: 0 | N32: 0 | O32: 0 | P32: 0 | R32: 444.5320641 | S32: 42205412.38 | T32: 0 | U32: 0 | V32: 0 | W32: 34986342.98 | X32: 0 | Y32: 0 | Z32: 0 | AA32: 0 | AB32: 0 | AC32: 0 | AD32: 0 | AF32: 52454.78357 | AG32: 8292308.397 | AH32: 0 | AI32: 0 | AJ32: 0 | AK32: 1455851.704 | AL32: 0 | AM32: 0 | AN32: 0 | AO32: 0 | AP32: 0 | AQ32: 0 | AR32: 0 | AS32: 9800614.884
B33: =Prop2021DistTar!C33 -> NEE55 Snowfields Tariff | D33: 118 | E33: 14.6469 | F33: 0 | G33: 0 | H33: 0 | I33: 4.0962 | J33: 0 | K33: 0 | L33: 0 | M33: 0 | N33: 0 | O33: 0 | P33: 0 | R33: 1 | S33: 51898.69031 | T33: 0 | U33: 0 | V33: 0 | W33: 83673.91376 | X33: 0 | Y33: 0 | Z33: 0 | AA33: 0 | AB33: 0 | AC33: 0 | AD33: 0 | AF33: 118 | AG33: 7601.549272 | AH33: 0 | AI33: 0 | AJ33: 0 | AK33: 3427.450855 | AL33: 0 | AM33: 0 | AN33: 0 | AO33: 0 | AP33: 0 | AQ33: 0 | AR33: 0 | AS33: 11147.00013
B34: =Prop2021DistTar!C34 -> NSP55 Snowfields Tariff | D34: 118 | E34: 39.0925 | F34: 34.2073 | G34: 29.9379 | H34: 0 | I34: 2.3688 | J34: 0 | K34: 0 | L34: 0 | M34: 0 | N34: 0 | O34: 0 | P34: 0 | R34: 3.5 | S34: 31178.9507 | T34: 19019.49064 | U34: 0 | V34: 0 | W34: 630826.0063 | X34: 0 | Y34: 0 | Z34: 0 | AA34: 0 | AB34: 0 | AC34: 0 | AD34: 0 | AF34: 413 | AG34: 12188.6313 | AH34: 6506.054222 | AI34: 0 | AJ34: 0 | AK34: 14943.00644 | AL34: 0 | AM34: 0 | AN34: 0 | AO34: 0 | AP34: 0 | AQ34: 0 | AR34: 0 | AS34: 34050.69196
B35: =Prop2021DistTar!C35 -> NSP56 Medium Demand Multi-rate | D35: 2550 | E35: 11.1483 | F35: 8.1171 | G35: 0 | H35: 0 | I35: 3.8096 | J35: 0 | K35: 0 | L35: 0 | M35: 19.39 | N35: 32.32 | O35: 0 | P35: 0 | R35: 1247.25 | S35: 83039491.01 | T35: 61863926.6 | U35: 0 | V35: 0 | W35: 103971088.3 | X35: 0 | Y35: 0 | Z35: 0 | AA35: 206380.0246 | AB35: 74980.92281 | AC35: 0 | AD35: 0 | AF35: 3180487.5 | AG35: 9257491.576 | AH35: 5021556.786 | AI35: 0 | AJ35: 0 | AK35: 3960882.579 | AL35: 0 | AM35: 0 | AN35: 0 | AO35: 4001708.678 | AP35: 2423383.425 | AQ35: 0 | AR35: 0 | AS35: 27845510.54
B36: =Prop2021DistTar!C36 -> NEN56 Medium Demand Multi-rate - Embedded Network | D36: 2550 | E36: 8.9787 | F36: 6.2577 | G36: 0 | H36: 0 | I36: 3.8922 | J36: 0 | K36: 0 | L36: 0 | M36: 19.39 | N36: 32.32 | O36: 0 | P36: 0 | R36: 2 | S36: 98759.71489 | T36: 107662.3931 | U36: 0 | V36: 0 | W36: 103135.6568 | X36: 0 | Y36: 0 | Z36: 0 | AA36: 519.9733333 | AB36: 151.63 | AC36: 0 | AD36: 0 | AF36: 5100 | AG36: 8867.338521 | AH36: 6737.189574 | AI36: 0 | AJ36: 0 | AK36: 4014.246035 | AL36: 0 | AM36: 0 | AN36: 0 | AO36: 10082.28293 | AP36: 4900.6816 | AQ36: 0 | AR36: 0 | AS36: 39701.73866
B37: =Prop2021DistTar!C37 -> NEE60 Medium Two Rate 7Day - closed to new customers | D37: 118 | E37: 10.1722 | F37: 0 | G37: 0 | H37: 0 | I37: 3.9558 | J37: 0 | K37: 0 | L37: 0 | M37: 0 | N37: 0 | O37: 0 | P37: 0 | R37: 326.7883523 | S37: 15184989.1 | T37: 0 | U37: 0 | V37: 0 | W37: 4800537.319 | X37: 0 | Y37: 0 | Z37: 0 | AA37: 0 | AB37: 0 | AC37: 0 | AD37: 0 | AF37: 38561.02557 | AG37: 1544647.461 | AH37: 0 | AI37: 0 | AJ37: 0 | AK37: 189899.6553 | AL37: 0 | AM37: 0 | AN37: 0 | AO37: 0 | AP37: 0 | AQ37: 0 | AR37: 0 | AS37: 1773108.142
B38: =Prop2021DistTar!C38 -> NEE52 Unmetered | D38: 0 | E38: 16.896 | F38: 0 | G38: 0 | H38: 0 | I38: 8.566 | J38: 0 | K38: 0 | L38: 0 | M38: 0 | N38: 0 | O38: 0 | P38: 0 | R38: 89.5 | S38: 16629661.73 | T38: 0 | U38: 0 | V38: 0 | W38: 40260562.97 | X38: 0 | Y38: 0 | Z38: 0 | AA38: 0 | AB38: 0 | AC38: 0 | AD38: 0 | AF38: 0 | AG38: 2809747.645 | AH38: 0 | AI38: 0 | AJ38: 0 | AK38: 3448719.824 | AL38: 0 | AM38: 0 | AN38: =L38/100*Z38 -> 0 | AO38: 0 | AP38: 0 | AQ38: 0 | AR38: 0 | AS38: 6258467.47
B39: =Prop2021DistTar!C39 -> NEE74 LV Large Two Rate 5Day | D39: 142 | E39: 25.1793 | F39: 0 | G39: 0 | H39: 0 | I39: 7.1535 | J39: 0 | K39: 0 | L39: 0 | M39: 0 | N39: 0 | O39: 0 | P39: 0 | R39: 7 | S39: 1842568.1 | T39: 0 | U39: 0 | V39: 0 | W39: 2249990.826 | X39: 0 | Y39: 0 | Z39: 0 | AA39: 0 | AB39: 0 | AC39: 0 | AD39: 0 | AF39: 994 | AG39: 463945.7495 | AH39: 0 | AI39: 0 | AJ39: 0 | AK39: 160953.0938 | AL39: 0 | AM39: 0 | AN39: 0 | AO39: 0 | AP39: 0 | AQ39: 0 | AR39: 0 | AS39: 625892.8433
B40: =Prop2021DistTar!C40 -> NSP75 Large Multi-rate <750 kVA | D40: 5701 | E40: 3.2421 | F40: 2.1968 | G40: 0 | H40: 0 | I40: 1.253 | J40: 0 | K40: 0 | L40: 0 | M40: 47.11 | N40: 79.01 | O40: 0 | P40: 0 | R40: 802.6266667 | S40: 131395544.4 | T40: 93404404.35 | U40: 0 | V40: 0 | W40: 173257112.6 | X40: 0 | Y40: 0 | Z40: 0 | AA40: 213575.8385 | AB40: 96376.31508 | AC40: 0 | AD40: 0 | AF40: 4575774.627 | AG40: 4259974.946 | AH40: 2051907.955 | AI40: 0 | AJ40: 0 | AK40: 2170911.62 | AL40: 0 | AM40: 0 | AN40: 0 | AO40: 10061557.75 | AP40: 7614692.654 | AQ40: 0 | AR40: 0 | AS40: 30734819.55
B41: =Prop2021DistTar!C41 -> NSP76 Large Multi-rate >750 kVA | D41: 5701 | E41: 2.997 | F41: 1.9641 | G41: 0 | H41: 0 | I41: 1.1137 | J41: 0 | K41: 0 | L41: 0 | M41: 49.12 | N41: 83.07 | O41: 0 | P41: 0 | R41: 547.3233333 | S41: 190757095.2 | T41: 138250071.6 | U41: 0 | V41: 0 | W41: 244895539.8 | X41: 0 | Y41: 0 | Z41: 0 | AA41: 286003.8606 | AB41: 131113.9382 | AC41: 0 | AD41: 0 | AF41: 3120290.323 | AG41: 5716990.143 | AH41: 2715369.657 | AI41: 0 | AJ41: 0 | AK41: 2727401.627 | AL41: 0 | AM41: 0 | AN41: 0 | AO41: 14048509.63 | AP41: 10891634.84 | AQ41: 0 | AR41: 0 | AS41: 39220196.23
B42: =Prop2021DistTar!C42 -> NSP77 Large Multi-rate >2 GWh | D42: 5701 | E42: 2.9378 | F42: 1.9379 | G42: 0 | H42: 0 | I42: 1.0492 | J42: 0 | K42: 0 | L42: 0 | M42: 53.85 | N42: 89.39 | O42: 0 | P42: 0 | R42: 91.12666667 | S42: 69605861.51 | T42: 48262983.05 | U42: 0 | V42: 0 | W42: 87724318.73 | X42: 0 | Y42: 0 | Z42: 0 | AA42: 80293.26218 | AB42: 40148.86823 | AC42: 0 | AD42: 0 | AF42: 519513.1267 | AG42: 2044881 | AH42: 935288.3485 | AI42: 0 | AJ42: 0 | AK42: 920403.5521 | AL42: 0 | AM42: 0 | AN42: 0 | AO42: 4323792.169 | AP42: 3588907.331 | AQ42: 0 | AR42: 0 | AS42: 12332785.53
B43: =Prop2021DistTar!C43 -> NSP78 Large Multi-rate >4 GWh | D43: 5701 | E43: 2.6254 | F43: 1.7328 | G43: 0 | H43: 0 | I43: 0.9062 | J43: 0 | K43: 0 | L43: 0 | M43: 59.24 | N43: 98.01 | O43: 0 | P43: 0 | R43: 37.12666667 | S43: 51302006.02 | T43: 35337894.74 | U43: 0 | V43: 0 | W43: 65090403.44 | X43: 0 | Y43: 0 | Z43: 0 | AA43: 48887.92042 | AB43: 30756.77074 | AC43: 0 | AD43: 0 | AF43: 211659.1267 | AG43: 1346882.866 | AH43: 612335.0401 | AI43: 0 | AJ43: 0 | AK43: 589849.236 | AL43: 0 | AM43: 0 | AN43: 0 | AO43: 2896120.406 | AP43: 3014471.1 | AQ43: 0 | AR43: 0 | AS43: 8671317.775
B44: =Prop2021DistTar!C44 -> NSP81 HV Kva | D44: 5701 | E44: 0.572 | F44: 0 | G44: 0 | H44: 0 | I44: 0.2314 | J44: 0 | K44: 0 | L44: 0 | M44: 38.77 | N44: 63.54 | O44: 0 | P44: 0 | R44: 59.62666667 | S44: 249936973.2 | T44: 0 | U44: 0 | V44: 0 | W44: 207395236.3 | X44: 0 | Y44: 0 | Z44: 0 | AA44: 175314.33 | AB44: 77448.7894 | AC44: 0 | AD44: 0 | AF44: 339931.6267 | AG44: 1429639.487 | AH44: 0 | AI44: 0 | AJ44: 0 | AK44: 479912.5769 | AL44: 0 | AM44: 0 | AN44: 0 | AO44: 6796936.574 | AP44: 4921096.079 | AQ44: 0 | AR44: 0 | AS44: 13967516.34
B45: =Prop2021DistTar!C45 -> NSP82 Traction | D45: 5701 | E45: 0.5141 | F45: 0.5141 | G45: 0 | H45: 0 | I45: 0.438 | J45: 0 | K45: 0 | L45: 0 | M45: 35.54 | N45: 58.16 | O45: 0 | P45: 0
B46: =Prop2021DistTar!C46 -> NSP83 Small HV | D46: 5701 | E46: 9.6514 | F46: 3.3772 | G46: 0 | H46: 0 | I46: 1.0517 | J46: 0 | K46: 0 | L46: 0 | M46: 4.14 | N46: 6.84 | O46: 0 | P46: 0 | R46: 20.62666667 | S46: 7631961.122 | T46: 5084435.592 | U46: 0 | V46: 0 | W46: 10465746.72 | X46: 0 | Y46: 0 | Z46: 0 | AA46: 23283.64488 | AB46: 5606.114679 | AC46: 0 | AD46: 0 | AF46: 117592.6267 | AG46: 736591.0957 | AH46: 171711.5588 | AI46: 0 | AJ46: 0 | AK46: 110068.2583 | AL46: 0 | AM46: 0 | AN46: 0 | AO46: 96394.28979 | AP46: 38345.8244 | AQ46: 0 | AR46: 0 | AS46: 1270703.654
B47: =Prop2021DistTar!C47 -> NSP91 ST kVA | D47: 20319 | E47: 0.519 | F47: 0 | G47: 0 | H47: 0 | I47: 0.0488 | J47: 0 | K47: 0 | L47: 0 | M47: 2.59 | N47: 4.27 | O47: 0 | P47: 0
B48: =Prop2021DistTar!C48 -> NEE93 Latrobe Generators kVA (non published) | D48: 0 | E48: 1.0197 | F48: 0 | G48: 0 | H48: 0 | I48: 1.0196 | J48: 0 | K48: 0 | L48: 0 | M48: 0 | N48: 0 | O48: 0 | P48: 0
B49: =Prop2021DistTar!C49 -> NSP94 - ST kVA >25MVA <20kM | D49: 20319 | E49: 0.4827 | F49: 0 | G49: 0 | H49: 0 | I49: 0.031 | J49: 0 | K49: 0 | L49: 0 | M49: 1.93 | N49: 3.21 | O49: 0 | P49: 0
B50: =Prop2021DistTar!C50 -> NSP95 - ST kVA <25MVA >20kM | D50: 20319 | E50: 0.5601 | F50: 0 | G50: 0 | H50: 0 | I50: 0.0705 | J50: 0 | K50: 0 | L50: 0 | M50: 4.01 | N50: 6.66 | O50: 0 | P50: 0
B51: =Prop2021DistTar!C51 -> NASN19 - Business >40MWh Single Rate | D51: 118 | E51: 14.0219 | F51: 14.0219 | G51: 0 | H51: 0 | I51: 0 | J51: 0 | K51: 0 | L51: 0 | M51: 1.45 | N51: 5.8 | O51: 0 | P51: 0 | R51: 1049.940038 | S51: 50441999.39 | T51: 0 | U51: 0 | V51: 0 | W51: 0 | X51: 0 | Y51: 0 | Z51: 0 | AA51: 135724.2594 | AB51: 81936.72731 | AC51: 0 | AD51: 0 | AF51: 123892.9244 | AG51: 7072926.712 | AH51: 0 | AI51: 0 | AJ51: 0 | AK51: 0 | AL51: 0 | AM51: 0 | AN51: 0 | AO51: 196800.1762 | AP51: 475233.0184 | AQ51: 0 | AR51: 0 | AS51: 7868852.831
B52: =Prop2021DistTar!C52 -> NASN21 - Business >40MWh Two Rate | D52: 118 | E52: 14.4043 | F52: 0 | G52: 0 | H52: 0 | I52: 3.1138 | J52: 0 | K52: 0.5975 | L52: 0 | M52: 1.45 | N52: 5.8 | O52: 0 | P52: 0 | R52: 8412.626769 | S52: 281574949 | T52: 0 | U52: 0 | V52: 0 | W52: 235093715.1 | X52: 0 | Y52: -7157764.392 | Z52: 0 | AA52: 1471838.198 | AB52: 902817.435 | AC52: 0 | AD52: 0 | AF52: 992689.9588 | AG52: 40558900.38 | AH52: 0 | AI52: 0 | AJ52: 0 | AK52: 7320348.1 | AL52: 0 | AM52: -42767.64224 | AN52: 0 | AO52: 2134165.387 | AP52: 5236341.123 | AQ52: 0 | AR52: 0 | AS52: 56199677.31
B53: =Prop2021DistTar!C53 -> NASN11 - Residential Single Rate | D53: 118 | E53: 5.5306 | F53: 5.5306 | G53: 0 | H53: 0 | I53: 0 | J53: 0 | K53: 0.5975 | L53: 0 | M53: 2.41 | N53: 9.66 | O53: 0 | P53: 0 | R53: 27.14902916 | S53: 74897.964 | T53: 0 | U53: 0 | V53: 0 | W53: 0 | X53: 0 | Y53: -12690.80333 | Z53: 0 | AA53: 678.1316399 | AB53: 286.4668117 | AC53: 0 | AD53: 0 | AF53: 3203.585441 | AG53: 4142.306797 | AH53: 0 | AI53: 0 | AJ53: 0 | AK53: 0 | AL53: 0 | AM53: -75.82754992 | AN53: 0 | AO53: 1634.297252 | AP53: 2767.269401 | AQ53: 0 | AR53: 0 | AS53: 11671.63134
B54: =Prop2021DistTar!C54 -> NASN12 - Business Single Rate | D54: 118 | E54: 11.3691 | F54: 11.3691 | G54: 0 | H54: 0 | I54: 0 | J54: 0 | K54: 0.5975 | L54: 0 | M54: 2.41 | N54: 9.66 | O54: 0 | P54: 0 | R54: 4.970018823 | S54: 174756.3652 | T54: 0 | U54: 0 | V54: 0 | W54: 0 | X54: 0 | Y54: 0 | Z54: 0 | AA54: 928.1849866 | AB54: 648.9216376 | AC54: 0 | AD54: 0 | AF54: 586.4622211 | AG54: 19868.22591 | AH54: 0 | AI54: 0 | AJ54: 0 | AK54: 0 | AL54: 0 | AM54: 0 | AN54: 0 | AO54: 2236.925818 | AP54: 6268.583019 | AQ54: 0 | AR54: 0 | AS54: 28960.19697
AF55: 0 | AG55: 0 | AH55: 0 | AI55: 0 | AJ55: 0 | AK55: 0 | AL55: 0 | AM55: 0 | AN55: 0 | AO55: 0 | AP55: 0 | AQ55: 0 | AR55: 0 | AS55: 0
AF56: 0 | AG56: 0 | AH56: 0 | AI56: 0 | AJ56: 0 | AK56: 0 | AL56: 0 | AM56: 0 | AN56: 0 | AO56: 0 | AP56: 0 | AQ56: 0 | AR56: 0 | AS56: 0
AF57: 0 | AG57: 0 | AH57: 0 | AI57: 0 | AJ57: 0 | AK57: 0 | AL57: 0 | AM57: 0 | AN57: 0 | AO57: 0 | AP57: 0 | AQ57: 0 | AR57: 0 | AS57: 0
AF58: 0 | AG58: 0 | AH58: 0 | AI58: 0 | AJ58: 0 | AK58: 0 | AL58: 0 | AM58: 0 | AN58: 0 | AO58: 0 | AP58: 0 | AQ58: 0 | AR58: 0 | AS58: 0
AF59: 0 | AG59: 0 | AH59: 0 | AI59: 0 | AJ59: 0 | AK59: 0 | AL59: 0 | AM59: 0 | AN59: 0 | AO59: 0 | AP59: 0 | AQ59: 0 | AR59: 0 | AS59: 0
AF60: 0 | AG60: 0 | AH60: 0 | AI60: 0 | AJ60: 0 | AK60: 0 | AL60: 0 | AM60: 0 | AN60: 0 | AO60: 0 | AP60: 0 | AQ60: 0 | AR60: 0 | AS60: 0
AF61: 0 | AG61: 0 | AH61: 0 | AI61: 0 | AJ61: 0 | AK61: 0 | AL61: 0 | AM61: 0 | AN61: 0 | AO61: 0 | AP61: 0 | AQ61: 0 | AR61: 0 | AS61: 0
AF62: 0 | AG62: 0 | AH62: 0 | AI62: 0 | AJ62: 0 | AK62: 0 | AL62: 0 | AM62: 0 | AN62: 0 | AO62: 0 | AP62: 0 | AQ62: 0 | AR62: 0 | AS62: 0
AF63: 0 | AG63: 0 | AH63: 0 | AI63: 0 | AJ63: 0 | AK63: 0 | AL63: 0 | AM63: 0 | AN63: 0 | AO63: 0 | AP63: 0 | AQ63: 0 | AR63: 0 | AS63: 0
AF64: 0 | AG64: 0 | AH64: 0 | AI64: 0 | AJ64: 0 | AK64: 0 | AL64: 0 | AM64: 0 | AN64: 0 | AO64: 0 | AP64: 0 | AQ64: 0 | AR64: 0 | AS64: 0
AF65: 0 | AG65: 0 | AH65: 0 | AI65: 0 | AJ65: 0 | AK65: 0 | AL65: 0 | AM65: 0 | AN65: 0 | AO65: 0 | AP65: 0 | AQ65: 0 | AR65: 0 | AS65: 0
R66: 756442 | S66: 3656103300 | T66: 1264121196 | U66: 4106214.171 | V66: 0 | W66: 2464617833 | X66: 0 | Y66: -250376395.5 | Z66: 0 | AA66: 2836903.429 | AB66: 1516779.166 | AC66: 0 | AD66: 0 | AF66: 102993361.1 | AG66: 334310951.7 | AH66: 107521799.3 | AI66: 431054.4644 | AJ66: 0 | AK66: 54488114.24 | AL66: 0 | AM66: -1495998.963 | AN66: 0 | AO66: 47111866.77 | AP66: 39604146.7 | AQ66: 0 | AR66: 0 | AS66: 684965295.3

Sheet Prop2021TransTar
B1: ="Tariff Approval - "&'Model update'!C3 -> Tariff Approval - AusNet Services | D1: ="Prop"&'Model update'!$C$5&"TransTar" -> Prop2021TransTar
B3: ="PROPOSED "&'Model update'!$C$5&" TRANSMISSION TARIFFS" -> PROPOSED 2021 TRANSMISSION TARIFFS
D4: ="Proposed Transmission Tariffs (Pt) for "&'Model update'!$C$5 -> Proposed Transmission Tariffs (Pt) for 2021 | R4: ="Forecast Quantities (Qt) for "&'Model update'!$C$5 -> Forecast Quantities (Qt) for 2021 | AF4: ="Forecast Revenue (Pt "&'Model update'!$C$5&")*(Qt " &'Model update'!$C$5&")" -> Forecast Revenue (Pt 2021)*(Qt 2021)
B5: Proposed tariff | D5: =Prop2021DistTar!D5 -> PropTar Fixed | E5: =Prop2021DistTar!E5 -> PropTar PkBlk1 | F5: =Prop2021DistTar!F5 -> PropTar PkBlk2 | G5: =Prop2021DistTar!G5 -> PropTar PkBlk3 | H5: =Prop2021DistTar!H5 -> PropTar PkBlk4 | I5: =Prop2021DistTar!I5 -> PropTar OPkBlk1 | J5: =Prop2021DistTar!J5 -> PropTar OPkBlk2 | K5: =Prop2021DistTar!K5 -> PropTar OPkBlk3 | L5: =Prop2021DistTar!L5 -> PropTar OPkBlk4 | M5: =Prop2021DistTar!M5 -> PropTar DemBlk1 | N5: =Prop2021DistTar!N5 -> PropTar DemBlk2 | O5: =Prop2021DistTar!O5 -> PropTar DemBlk3 | P5: =Prop2021DistTar!P5 -> PropTar DemBlk4 | R5: =Prop2021DistTar!AF5 -> FcastVol Fixed | S5: =Prop2021DistTar!AG5 -> FcastVol PkBlk1 | T5: =Prop2021DistTar!AH5 -> FcastVol PkBlk2 | U5: =Prop2021DistTar!AI5 -> FcastVol PkBlk3 | V5: =Prop2021DistTar!AJ5 -> FcastVol PkBlk4 | W5: =Prop2021DistTar!AK5 -> FcastVol OPkBlk1 | X5: =Prop2021DistTar!AL5 -> FcastVol OPkBlk2 | Y5: =Prop2021DistTar!AM5 -> FcastVol OPkBlk3 | Z5: =Prop2021DistTar!AN5 -> FcastVol OPkBlk4 | AA5: =Prop2021DistTar!AO5 -> FcastVol DemBlk1 | AB5: =Prop2021DistTar!AP5 -> FcastVol DemBlk2 | AC5: =Prop2021DistTar!AQ5 -> FcastVol DemBlk3 | AD5: =Prop2021DistTar!AR5 -> FcastVol DemBlk4 | AF5: PropRev Fixed | AG5: PropRev PkBlk1 | AH5: PropRev PkBlk2 | AI5: PropRev PkBlk3 | AJ5: PropRev PkBlk4 | AK5: PropRev OPkBlk1 | AL5: PropRev OPkBlk2 | AM5: PropRev OPkBlk3 | AN5: PropRev OPkBlk4 | AO5: PropRev DemBlk1 | AP5: PropRev DemBlk2 | AQ5: PropRev DemBlk3 | AR5: PropRev DemBlk4 | AS5: PropRev Total
B6: =Prop2021DistTar!B6 -> NEE11 Small Single Rate < 160MWh | D6: 0 | E6: 2.1209 | F6: 2.1209 | G6: 0 | H6: 0 | I6: 0 | J6: 0 | K6: 0 | L6: 0 | M6: 0 | N6: 0 | O6: 0 | P6: 0 | R6: =Prop2021DistTar!AF6 -> 239028.3345 | S6: =Prop2021DistTar!AG6 -> 686112016.8 | T6: =Prop2021DistTar!AH6 -> 283669233.4 | U6: =Prop2021DistTar!AI6 -> 0 | V6: =Prop2021DistTar!AJ6 -> 0 | W6: =Prop2021DistTar!AK6 -> 0 | X6: =Prop2021DistTar!AL6 -> 0 | Y6: =Prop2021DistTar!AM6 -> 0 | Z6: =Prop2021DistTar!AN6 -> 0 | AA6: =Prop2021DistTar!AO6 -> 0 | AB6: =Prop2021DistTar!AP6 -> 0 | AC6: =Prop2021DistTar!AQ6 -> 0 | AD6: =Prop2021DistTar!AR6 -> 0 | AF6: =D6*R6 -> 0 | AG6: =E6/100*S6 -> 14551749.76 | AH6: 6016340.772 | AI6: 0 | AJ6: 0 | AK6: 0 | AL6: 0 | AM6: 0 | AN6: 0 | AO6: =M6*AA6 -> 0 | AP6: 0 | AQ6: 0 | AR6: 0 | AS6: =SUM(AF6:AR6) -> 20568090.54
B7: =Prop2021DistTar!B7 -> NGT11 Small Interval Single Rate < 160MWh | D7: 0 | E7: 2.1209 | F7: 0 | G7: 0 | H7: 0 | I7: 0 | J7: 0 | K7: 0 | L7: 0 | M7: 0 | N7: 0 | O7: 0 | P7: 0 | R7: =Prop2021DistTar!AF7 -> 4 | S7: =Prop2021DistTar!AG7 -> 15851.69034 | T7: =Prop2021DistTar!AH7 -> 0 | U7: =Prop2021DistTar!AI7 -> 0 | V7: =Prop2021DistTar!AJ7 -> 0 | W7: =Prop2021DistTar!AK7 -> 0 | X7: =Prop2021DistTar!AL7 -> 0 | Y7: =Prop2021DistTar!AM7 -> 0 | Z7: =Prop2021DistTar!AN7 -> 0 | AA7: =Prop2021DistTar!AO7 -> 0 | AB7: =Prop2021DistTar!AP7 -> 0 | AC7: =Prop2021DistTar!AQ7 -> 0 | AD7: =Prop2021DistTar!AR7 -> 0 | AF7: =D7*R7 -> 0 | AG7: =E7/100*S7 -> 336.1985004 | AH7: 0 | AI7: 0 | AJ7: 0 | AK7: 0 | AL7: 0 | AM7: 0 | AN7: 0 | AO7: =M7*AA7 -> 0 | AP7: =N7*AB7 -> 0 | AQ7: =O7*AC7 -> 0 | AR7: =P7*AD7 -> 0 | AS7: =SUM(AF7:AR7) -> 336.1985004
B8: =Prop2021DistTar!B8 -> NSP11 Small Single Rate < 160MWh | D8: 0 | E8: 2.1209 | F8: 2.1209 | G8: 2.1209 | H8: 0 | I8: 0.5915 | J8: 0 | K8: 0 | L8: 0 | M8: 0 | N8: 0 | O8: 0 | P8: 0 | R8: =Prop2021DistTar!AF8 -> 0 | S8: =Prop2021DistTar!AG8 -> 0 | T8: =Prop2021DistTar!AH8 -> 0 | U8: =Prop2021DistTar!AI8 -> 0 | V8: =Prop2021DistTar!AJ8 -> 0 | W8: =Prop2021DistTar!AK8 -> 0 | X8: =Prop2021DistTar!AL8 -> 0 | Y8: =Prop2021DistTar!AM8 -> 0 | Z8: =Prop2021DistTar!AN8 -> 0 | AA8: =Prop2021DistTar!AO8 -> 0 | AB8: =Prop2021DistTar!AP8 -> 0 | AC8: =Prop2021DistTar!AQ8 -> 0 | AD8: =Prop2021DistTar!AR8 -> 0 | AF8: 0 | AG8: 0 | AH8: 0 | AI8: 0 | AJ8: 0 | AK8: 0 | AL8: 0 | AM8: 0 | AN8: 0 | AO8: 0 | AP8: 0 | AQ8: 0 | AR8: 0 | AS8: 0
B9: =Prop2021DistTar!B9 -> NEN11 Small Single Rate < 160MWh Embedded Network | D9: 0 | E9: 2.1209 | F9: 2.1209 | G9: 0 | H9: 0 | I9: 0 | J9: 0 | K9: 0 | L9: 0 | M9: 0 | N9: 0 | O9: 0 | P9: 0 | R9: =Prop2021DistTar!AF9 -> 0 | S9: =Prop2021DistTar!AG9 -> 0 | T9: =Prop2021DistTar!AH9 -> 0 | U9: =Prop2021DistTar!AI9 -> 0 | V9: =Prop2021DistTar!AJ9 -> 0 | W9: =Prop2021DistTar!AK9 -> 0 | X9: =Prop2021DistTar!AL9 -> 0 | Y9: =Prop2021DistTar!AM9 -> 0 | Z9: =Prop2021DistTar!AN9 -> 0 | AA9: =Prop2021DistTar!AO9 -> 0 | AB9: =Prop2021DistTar!AP9 -> 0 | AC9: =Prop2021DistTar!AQ9 -> 0 | AD9: =Prop2021DistTar!AR9 -> 0 | AF9: 0 | AG9: 0 | AH9: 0 | AI9: 0 | AJ9: 0 | AK9: 0 | AL9: 0 | AM9: 0 | AN9: 0 | AO9: 0 | AP9: 0 | AQ9: 0 | AR9: 0 | AS9: 0
B10: =Prop2021DistTar!B10 -> NEE12 Small Business Single Rate - new in 2001 | D10: 0 | E10: 2.1209 | F10: 2.1209 | G10: 0 | H10: 0 | I10: 0 | J10: 0 | K10: 0 | L10: 0 | M10: 0 | N10: 0 | O10: 0 | P10: 0 | R10: =Prop2021DistTar!AF10 -> 14834.62602 | S10: =Prop2021DistTar!AG10 -> 29916679.02 | T10: =Prop2021DistTar!AH10 -> 46008597.66 | U10: =Prop2021DistTar!AI10 -> 0 | V10: =Prop2021DistTar!AJ10 -> 0 | W10: =Prop2021DistTar!AK10 -> 0 | X10: =Prop2021DistTar!AL10 -> 0 | Y10: =Prop2021DistTar!AM10 -> 0 | Z10: =Prop2021DistTar!AN10 -> 0 | AA10: =Prop2021DistTar!AO10 -> 0 | AB10: =Prop2021DistTar!AP10 -> 0 | AC10: =Prop2021DistTar!AQ10 -> 0 | AD10: =Prop2021DistTar!AR10 -> 0 | AF10: 0 | AG10: 634502.8454 | AH10: 975796.3477 | AI10: 0 | AJ10: 0 | AK10: 0 | AL10: 0 | AM10: 0 | AN10: 0 | AO10: 0 | AP10: 0 | AQ10: 0 | AR10: 0 | AS10: 1610299.193
B11: =Prop2021DistTar!B11 -> NSP12 Small Business Single Rate - new in 2001 | D11: 0 | E11: 2.1209 | F11: 2.1209 | G11: 2.1209 | H11: 0 | I11: 0.5915 | J11: 0 | K11: 0 | L11: 0 | M11: 0 | N11: 0 | O11: 0 | P11: 0 | R11: =Prop2021DistTar!AF11 -> 0 | S11: =Prop2021DistTar!AG11 -> 0 | T11: =Prop2021DistTar!AH11 -> 0 | U11: =Prop2021DistTar!AI11 -> 0 | V11: =Prop2021DistTar!AJ11 -> 0 | W11: =Prop2021DistTar!AK11 -> 0 | X11: =Prop2021DistTar!AL11 -> 0 | Y11: =Prop2021DistTar!AM11 -> 0 | Z11: =Prop2021DistTar!AN11 -> 0 | AA11: =Prop2021DistTar!AO11 -> 0 | AB11: =Prop2021DistTar!AP11 -> 0 | AC11: =Prop2021DistTar!AQ11 -> 0 | AD11: =Prop2021DistTar!AR11 -> 0 | AF11: 0 | AG11: 0 | AH11: 0 | AI11: 0 | AJ11: 0 | AK11: 0 | AL11: 0 | AM11: 0 | AN11: 0 | AO11: 0 | AP11: 0 | AQ11: 0 | AR11: 0 | AS11: 0
B12: =Prop2021DistTar!B12 -> NEN12 Small Business Single Rate - Embedded Network | D12: 0 | E12: 2.1209 | F12: 2.1209 | G12: 0 | H12: 0 | I12: 0 | J12: 0 | K12: 0 | L12: 0 | M12: 0 | N12: 0 | O12: 0 | P12: 0 | R12: =Prop2021DistTar!AF12 -> 0 | S12: =Prop2021DistTar!AG12 -> 0 | T12: =Prop2021DistTar!AH12 -> 0 | U12: =Prop2021DistTar!AI12 -> 0 | V12: =Prop2021DistTar!AJ12 -> 0 | W12: =Prop2021DistTar!AK12 -> 0 | X12: =Prop2021DistTar!AL12 -> 0 | Y12: =Prop2021DistTar!AM12 -> 0 | Z12: =Prop2021DistTar!AN12 -> 0 | AA12: =Prop2021DistTar!AO12 -> 0 | AB12: =Prop2021DistTar!AP12 -> 0 | AC12: =Prop2021DistTar!AQ12 -> 0 | AD12: =Prop2021DistTar!AR12 -> 0 | AF12: 0 | AG12: 0 | AH12: 0 | AI12: 0 | AJ12: 0 | AK12: 0 | AL12: 0 | AM12: 0 | AN12: 0 | AO12: 0 | AP12: 0 | AQ12: 0 | AR12: 0 | AS12: 0
B13: =Prop2021DistTar!B13 -> NEE20 Small Two Rate | D13: 0 | E13: 2.1209 | F13: 0 | G13: 0 | H13: 0 | I13: 0.5915 | J13: 0 | K13: 0 | L13: 0 | M13: 0 | N13: 0 | O13: 0 | P13: 0 | R13: =Prop2021DistTar!AF13 -> 25675.15816 | S13: =Prop2021DistTar!AG13 -> 68100453.35 | T13: =Prop2021DistTar!AH13 -> 0 | U13: =Prop2021DistTar!AI13 -> 0 | V13: =Prop2021DistTar!AJ13 -> 0 | W13: =Prop2021DistTar!AK13 -> 90999048.34 | X13: =Prop2021DistTar!AL13 -> 0 | Y13: =Prop2021DistTar!AM13 -> 0 | Z13: =Prop2021DistTar!AN13 -> 0 | AA13: =Prop2021DistTar!AO13 -> 0 | AB13: =Prop2021DistTar!AP13 -> 0 | AC13: =Prop2021DistTar!AQ13 -> 0 | AD13: =Prop2021DistTar!AR13 -> 0 | AF13: 0 | AG13: 1444342.515 | AH13: 0 | AI13: 0 | AJ13: 0 | AK13: 538259.3709 | AL13: 0 | AM13: 0 | AN13: 0 | AO13: 0 | AP13: 0 | AQ13: 0 | AR13: 0 | AS13: 1982601.886
B14: =Prop2021DistTar!B14 -> NSP20 Small Two Rate | D14: 0 | E14: 2.1209 | F14: 2.1209 | G14: 2.1209 | H14: 0 | I14: 0.5915 | J14: 0 | K14: 0 | L14: 0 | M14: 0 | N14: 0 | O14: 0 | P14: 0 | R14: =Prop2021DistTar!AF14 -> 7 | S14: =Prop2021DistTar!AG14 -> 1224.099089 | T14: =Prop2021DistTar!AH14 -> 935.2246949 | U14: =Prop2021DistTar!AI14 -> 295.5317039 | V14: =Prop2021DistTar!AJ14 -> 0 | W14: =Prop2021DistTar!AK14 -> 40249.81788 | X14: =Prop2021DistTar!AL14 -> 0 | Y14: =Prop2021DistTar!AM14 -> 0 | Z14: =Prop2021DistTar!AN14 -> 0 | AA14: =Prop2021DistTar!AO14 -> 0 | AB14: =Prop2021DistTar!AP14 -> 0 | AC14: =Prop2021DistTar!AQ14 -> 0 | AD14: =Prop2021DistTar!AR14 -> 0 | AF14: 0 | AG14: 25.96191759 | AH14: 19.83518055 | AI14: 6.267931907 | AJ14: 0 | AK14: 238.0776728 | AL14: 0 | AM14: 0 | AN14: 0 | AO14: 0 | AP14: 0 | AQ14: 0 | AR14: 0 | AS14: 290.1427028
B15: =Prop2021DistTar!B15 -> NGT26 Small Interval Multi Rate | D15: 0 | E15: 2.1209 | F15: 2.1209 | G15: 2.1209 | H15: 2.1209 | I15: 0.5915 | J15: 0.5915 | K15: 0 | L15: 0 | M15: 0 | N15: 0 | O15: 0 | P15: 0 | R15: =Prop2021DistTar!AF15 -> 778.3385935 | S15: =Prop2021DistTar!AG15 -> 1323806.292 | T15: =Prop2021DistTar!AH15 -> 0 | U15: =Prop2021DistTar!AI15 -> 1378430.228 | V15: =Prop2021DistTar!AJ15 -> 0 | W15: =Prop2021DistTar!AK15 -> 1366870.175 | X15: =Prop2021DistTar!AL15 -> 0 | Y15: =Prop2021DistTar!AM15 -> 0 | Z15: =Prop2021DistTar!AN15 -> 0 | AA15: =Prop2021DistTar!AO15 -> 0 | AB15: =Prop2021DistTar!AP15 -> 0 | AC15: =Prop2021DistTar!AQ15 -> 0 | AD15: =Prop2021DistTar!AR15 -> 0 | AF15: 0 | AG15: 28076.60764 | AH15: 0 | AI15: 29235.12671 | AJ15: 0 | AK15: 8085.037085 | AL15: 0 | AM15: 0 | AN15: 0 | AO15: 0 | AP15: 0 | AQ15: 0 | AR15: 0 | AS15: 65396.77143
B16: =Prop2021DistTar!B16 -> NEN20 Small Two Rate - Embedded Network | D16: 0 | E16: 2.1209 | F16: 0 | G16: 0 | H16: 0 | I16: 0.5915 | J16: 0 | K16: 0 | L16: 0 | M16: 0 | N16: 0 | O16: 0 | P16: 0 | R16: =Prop2021DistTar!AF16 -> 0 | S16: =Prop2021DistTar!AG16 -> 0 | T16: =Prop2021DistTar!AH16 -> 0 | U16: =Prop2021DistTar!AI16 -> 0 | V16: =Prop2021DistTar!AJ16 -> 0 | W16: =Prop2021DistTar!AK16 -> 0 | X16: =Prop2021DistTar!AL16 -> 0 | Y16: =Prop2021DistTar!AM16 -> 0 | Z16: =Prop2021DistTar!AN16 -> 0 | AA16: =Prop2021DistTar!AO16 -> 0 | AB16: =Prop2021DistTar!AP16 -> 0 | AC16: =Prop2021DistTar!AQ16 -> 0 | AD16: =Prop2021DistTar!AR16 -> 0 | AF16: 0 | AG16: 0 | AH16: 0 | AI16: 0 | AJ16: 0 | AK16: 0 | AL16: 0 | AM16: 0 | AN16: 0 | AO16: 0 | AP16: 0 | AQ16: 0 | AR16: 0 | AS16: 0
B17: =Prop2021DistTar!B17 -> NEE21 Small Business Two Rate | D17: 0 | E17: 2.1209 | F17: 0 | G17: 0 | H17: 0 | I17: 0.5915 | J17: 0 | K17: 0 | L17: 0 | M17: 0 | N17: 0 | O17: 0 | P17: 0 | R17: =Prop2021DistTar!AF17 -> 14772.51818 | S17: =Prop2021DistTar!AG17 -> 95606928.02 | T17: =Prop2021DistTar!AH17 -> 0 | U17: =Prop2021DistTar!AI17 -> 0 | V17: =Prop2021DistTar!AJ17 -> 0 | W17: =Prop2021DistTar!AK17 -> 71167541.72 | X17: =Prop2021DistTar!AL17 -> 0 | Y17: =Prop2021DistTar!AM17 -> -6826817.572 | Z17: =Prop2021DistTar!AN17 -> 0 | AA17: =Prop2021DistTar!AO17 -> 0 | AB17: =Prop2021DistTar!AP17 -> 0 | AC17: =Prop2021DistTar!AQ17 -> 0 | AD17: =Prop2021DistTar!AR17 -> 0 | AF17: 0 | AG17: 2027727.336 | AH17: 0 | AI17: 0 | AJ17: 0 | AK17: 420956.0093 | AL17: 0 | AM17: 0 | AN17: 0 | AO17: 0 | AP17: 0 | AQ17: 0 | AR17: 0 | AS17: 2448683.346
B18: =Prop2021DistTar!B18 -> NSP21 Small Business Two Rate | D18: 0 | E18: 2.1209 | F18: 2.1209 | G18: 2.1209 | H18: 0 | I18: 0.5915 | J18: 0 | K18: 0 | L18: 0 | M18: 0 | N18: 0 | O18: 0 | P18: 0 | R18: =Prop2021DistTar!AF18 -> 12.38757058 | S18: =Prop2021DistTar!AG18 -> 3155.707254 | T18: =Prop2021DistTar!AH18 -> 11732.08998 | U18: =Prop2021DistTar!AI18 -> 5294.728203 | V18: =Prop2021DistTar!AJ18 -> 0 | W18: =Prop2021DistTar!AK18 -> 229094.7831 | X18: =Prop2021DistTar!AL18 -> 0 | Y18: =Prop2021DistTar!AM18 -> -1050 | Z18: =Prop2021DistTar!AN18 -> 0 | AA18: =Prop2021DistTar!AO18 -> 0 | AB18: =Prop2021DistTar!AP18 -> 0 | AC18: =Prop2021DistTar!AQ18 -> 0 | AD18: =Prop2021DistTar!AR18 -> 0 | AF18: 0 | AG18: 66.92939516 | AH18: 248.8258963 | AI18: 112.2958905 | AJ18: 0 | AK18: 1355.095642 | AL18: 0 | AM18: 0 | AN18: 0 | AO18: 0 | AP18: 0 | AQ18: 0 | AR18: 0 | AS18: 1783.146824
B19: =Prop2021DistTar!B19 -> NSP27 Small Business Two Rate | D19: 0 | E19: 2.1209 | F19: 2.1209 | G19: 2.1209 | H19: 0 | I19: 0.5915 | J19: 0 | K19: 0 | L19: 0 | M19: 0 | N19: 0 | O19: 0 | P19: 0 | R19: =Prop2021DistTar!AF19 -> 111.8313559 | S19: =Prop2021DistTar!AG19 -> 26116.11276 | T19: =Prop2021DistTar!AH19 -> 26228.72567 | U19: =Prop2021DistTar!AI19 -> 65430.57892 | V19: =Prop2021DistTar!AJ19 -> 0 | W19: =Prop2021DistTar!AK19 -> 7355360.386 | X19: =Prop2021DistTar!AL19 -> 0 | Y19: =Prop2021DistTar!AM19 -> -13316.4 | Z19: =Prop2021DistTar!AN19 -> 0 | AA19: =Prop2021DistTar!AO19 -> 0 | AB19: =Prop2021DistTar!AP19 -> 0 | AC19: =Prop2021DistTar!AQ19 -> 0 | AD19: =Prop2021DistTar!AR19 -> 0 | AF19: 0 | AG19: 553.8966354 | AH19: 556.2850428 | AI19: 1387.717148 | AJ19: 0 | AK19: 43506.95668 | AL19: 0 | AM19: 0 | AN19: 0 | AO19: 0 | AP19: 0 | AQ19: 0 | AR19: 0 | AS19: 46004.85551
B20: =Prop2021DistTar!B20 -> NEN21 Small Business Two Rate - Embedded Network | D20: 0 | E20: 2.1209 | F20: 0 | G20: 0 | H20: 0 | I20: 0.5915 | J20: 0 | K20: 0 | L20: 0 | M20: 0 | N20: 0 | O20: 0 | P20: 0 | R20: =Prop2021DistTar!AF20 -> 0 | S20: =Prop2021DistTar!AG20 -> 0 | T20: =Prop2021DistTar!AH20 -> 0 | U20: =Prop2021DistTar!AI20 -> 0 | V20: =Prop2021DistTar!AJ20 -> 0 | W20: =Prop2021DistTar!AK20 -> 0 | X20: =Prop2021DistTar!AL20 -> 0 | Y20: =Prop2021DistTar!AM20 -> 0 | Z20: =Prop2021DistTar!AN20 -> 0 | AA20: =Prop2021DistTar!AO20 -> 0 | AB20: =Prop2021DistTar!AP20 -> 0 | AC20: =Prop2021DistTar!AQ20 -> 0 | AD20: =Prop2021DistTar!AR20 -> 0 | AF20: 0 | AG20: 0 | AH20: 0 | AI20: 0 | AJ20: 0 | AK20: 0 | AL20: 0 | AM20: 0 | AN20: 0 | AO20: 0 | AP20: 0 | AQ20: 0 | AR20: 0 | AS20: 0
B21: =Prop2021DistTar!B21 -> NEE23 Photovoltaic | D21: 0 | E21: 2.1209 | F21: 0 | G21: 0 | H21: 0 | I21: 0.5915 | J21: 0 | K21: 0 | L21: 0 | M21: 0 | N21: 0 | O21: 0 | P21: 0 | R21: =Prop2021DistTar!AF21 -> 78747.11053 | S21: =Prop2021DistTar!AG21 -> 148727012 | T21: =Prop2021DistTar!AH21 -> 0 | U21: =Prop2021DistTar!AI21 -> 0 | V21: =Prop2021DistTar!AJ21 -> 0 | W21: =Prop2021DistTar!AK21 -> 186285788.9 | X21: =Prop2021DistTar!AL21 -> 0 | Y21: =Prop2021DistTar!AM21 -> -137295086.9 | Z21: =Prop2021DistTar!AN21 -> 0 | AA21: =Prop2021DistTar!AO21 -> 0 | AB21: =Prop2021DistTar!AP21 -> 0 | AC21: =Prop2021DistTar!AQ21 -> 0 | AD21: =Prop2021DistTar!AR21 -> 0 | AF21: 0 | AG21: 3154351.198 | AH21: 0 | AI21: 0 | AJ21: 0 | AK21: 1101880.441 | AL21: 0 | AM21: 0 | AN21: 0 | AO21: 0 | AP21: 0 | AQ21: 0 | AR21: 0 | AS21: 4256231.639
B22: =Prop2021DistTar!B22 -> NSP23 Photovoltaic | D22: 0 | E22: 2.1209 | F22: 2.1209 | G22: 2.1209 | H22: 0 | I22: 0.5915 | J22: 0 | K22: 0 | L22: 0 | M22: 0 | N22: 0 | O22: 0 | P22: 0 | R22: =Prop2021DistTar!AF22 -> 153.588696 | S22: =Prop2021DistTar!AG22 -> 1470.608659 | T22: =Prop2021DistTar!AH22 -> 1503.732715 | U22: =Prop2021DistTar!AI22 -> 36097.96162 | V22: =Prop2021DistTar!AJ22 -> 0 | W22: =Prop2021DistTar!AK22 -> 613592.2774 | X22: =Prop2021DistTar!AL22 -> 0 | Y22: =Prop2021DistTar!AM22 -> -354454.3172 | Z22: =Prop2021DistTar!AN22 -> 0 | AA22: =Prop2021DistTar!AO22 -> 0 | AB22: =Prop2021DistTar!AP22 -> 0 | AC22: =Prop2021DistTar!AQ22 -> 0 | AD22: =Prop2021DistTar!AR22 -> 0 | AF22: 0 | AG22: 31.19013905 | AH22: 31.89266716 | AI22: 765.601668 | AJ22: 0 | AK22: 3629.398321 | AL22: 0 | AM22: 0 | AN22: 0 | AO22: 0 | AP22: 0 | AQ22: 0 | AR22: 0 | AS22: 4458.082795
B23: =Prop2021DistTar!B23 -> NEE24 Small rate 5 day 8 to 8 | D23: 0 | E23: 2.1209 | F23: 0 | G23: 0 | H23: 0 | I23: 0.5915 | J23: 0 | K23: 0 | L23: 0 | M23: 0 | N23: 0 | O23: 0 | P23: 0 | R23: =Prop2021DistTar!AF23 -> 1100.169297 | S23: =Prop2021DistTar!AG23 -> 1290491.094 | T23: =Prop2021DistTar!AH23 -> 0 | U23: =Prop2021DistTar!AI23 -> 0 | V23: =Prop2021DistTar!AJ23 -> 0 | W23: =Prop2021DistTar!AK23 -> 3209655.895 | X23: =Prop2021DistTar!AL23 -> 0 | Y23: =Prop2021DistTar!AM23 -> 0 | Z23: =Prop2021DistTar!AN23 -> 0 | AA23: =Prop2021DistTar!AO23 -> 0 | AB23: =Prop2021DistTar!AP23 -> 0 | AC23: =Prop2021DistTar!AQ23 -> 0 | AD23: =Prop2021DistTar!AR23 -> 0 | AF23: 0 | AG23: 27370.0256 | AH23: 0 | AI23: 0 | AJ23: 0 | AK23: 18985.11462 | AL23: 0 | AM23: 0 | AN23: 0 | AO23: 0 | AP23: 0 | AQ23: 0 | AR23: 0 | AS23: 46355.14022
B24: =Prop2021DistTar!B24 -> NEE25 Small business rate 5 day 8 to 8 | D24: 0 | E24: 2.1209 | F24: 0 | G24: 0 | H24: 0 | I24: 0.5915 | J24: 0 | K24: 0 | L24: 0 | M24: 0 | N24: 0 | O24: 0 | P24: 0 | R24: =Prop2021DistTar!AF24 -> 3.5 | S24: =Prop2021DistTar!AG24 -> 93117.10304 | T24: =Prop2021DistTar!AH24 -> 0 | U24: =Prop2021DistTar!AI24 -> 0 | V24: =Prop2021DistTar!AJ24 -> 0 | W24: =Prop2021DistTar!AK24 -> 100928.9976 | X24: =Prop2021DistTar!AL24 -> 0 | Y24: =Prop2021DistTar!AM24 -> 0 | Z24: =Prop2021DistTar!AN24 -> 0 | AA24: =Prop2021DistTar!AO24 -> 0 | AB24: =Prop2021DistTar!AP24 -> 0 | AC24: =Prop2021DistTar!AQ24 -> 0 | AD24: =Prop2021DistTar!AR24 -> 0 | AF24: 0 | AG24: 1974.920638 | AH24: 0 | AI24: 0 | AJ24: 0 | AK24: 596.9950207 | AL24: 0 | AM24: 0 | AN24: 0 | AO24: 0 | AP24: 0 | AQ24: 0 | AR24: 0 | AS24: 2571.915659
B25: =Prop2021DistTar!B25 -> NEE30 Small Dedicated | D25: 0 | E25: 0 | F25: 0 | G25: 0 | H25: 0 | I25: 0.5915 | J25: 0 | K25: 0 | L25: 0 | M25: 0 | N25: 0 | O25: 0 | P25: 0 | R25: =Prop2021DistTar!AF25 -> 42479.55853 | S25: =Prop2021DistTar!AG25 -> 0 | T25: =Prop2021DistTar!AH25 -> 0 | U25: =Prop2021DistTar!AI25 -> 0 | V25: =Prop2021DistTar!AJ25 -> 0 | W25: =Prop2021DistTar!AK25 -> 54981945.82 | X25: =Prop2021DistTar!AL25 -> 0 | Y25: =Prop2021DistTar!AM25 -> 0 | Z25: =Prop2021DistTar!AN25 -> 0 | AA25: =Prop2021DistTar!AO25 -> 0 | AB25: =Prop2021DistTar!AP25 -> 0 | AC25: =Prop2021DistTar!AQ25 -> 0 | AD25: =Prop2021DistTar!AR25 -> 0 | AF25: 0 | AG25: 0 | AH25: 0 | AI25: 0 | AJ25: 0 | AK25: 325218.2095 | AL25: 0 | AM25: 0 | AN25: 0 | AO25: 0 | AP25: 0 | AQ25: 0 | AR25: 0 | AS25: 325218.2095
B26: =Prop2021DistTar!B26 -> NSP30 Small Dedicated | D26: 0 | E26: 0 | F26: 0 | G26: 0 | H26: 0 | I26: 0.5915 | J26: 0 | K26: 0 | L26: 0 | M26: 0 | N26: 0 | O26: 0 | P26: 0 | R26: =Prop2021DistTar!AF26 -> 0 | S26: =Prop2021DistTar!AG26 -> 0 | T26: =Prop2021DistTar!AH26 -> 0 | U26: =Prop2021DistTar!AI26 -> 0 | V26: =Prop2021DistTar!AJ26 -> 0 | W26: =Prop2021DistTar!AK26 -> 0 | X26: =Prop2021DistTar!AL26 -> 0 | Y26: =Prop2021DistTar!AM26 -> 0 | Z26: =Prop2021DistTar!AN26 -> 0 | AA26: =Prop2021DistTar!AO26 -> 0 | AB26: =Prop2021DistTar!AP26 -> 0 | AC26: =Prop2021DistTar!AQ26 -> 0 | AD26: =Prop2021DistTar!AR26 -> 0 | AF26: 0 | AG26: 0 | AH26: 0 | AI26: 0 | AJ26: 0 | AK26: 0 | AL26: 0 | AM26: 0 | AN26: 0 | AO26: 0 | AP26: 0 | AQ26: 0 | AR26: 0 | AS26: 0
B27: =Prop2021DistTar!B27 -> NEE31 Small Dedicated-afternoon boost | D27: 0 | E27: 0 | F27: 0 | G27: 0 | H27: 0 | I27: 0.5915 | J27: 0 | K27: 0 | L27: 0 | M27: 0 | N27: 0 | O27: 0 | P27: 0 | R27: =Prop2021DistTar!AF27 -> 6284.002625 | S27: =Prop2021DistTar!AG27 -> 0 | T27: =Prop2021DistTar!AH27 -> 0 | U27: =Prop2021DistTar!AI27 -> 0 | V27: =Prop2021DistTar!AJ27 -> 0 | W27: =Prop2021DistTar!AK27 -> 15874112.38 | X27: =Prop2021DistTar!AL27 -> 0 | Y27: =Prop2021DistTar!AM27 -> 0 | Z27: =Prop2021DistTar!AN27 -> 0 | AA27: =Prop2021DistTar!AO27 -> 0 | AB27: =Prop2021DistTar!AP27 -> 0 | AC27: =Prop2021DistTar!AQ27 -> 0 | AD27: =Prop2021DistTar!AR27 -> 0 | AF27: 0 | AG27: 0 | AH27: 0 | AI27: 0 | AJ27: 0 | AK27: 93895.37471 | AL27: 0 | AM27: 0 | AN27: 0 | AO27: 0 | AP27: 0 | AQ27: 0 | AR27: 0 | AS27: 93895.37471
B28: =Prop2021DistTar!B28 -> NSP31 Small Dedicated-afternoon boost | D28: 0 | E28: 0 | F28: 0 | G28: 0 | H28: 0 | I28: 0.5915 | J28: 0 | K28: 0 | L28: 0 | M28: 0 | N28: 0 | O28: 0 | P28: 0 | R28: =Prop2021DistTar!AF28 -> 0 | S28: =Prop2021DistTar!AG28 -> 0 | T28: =Prop2021DistTar!AH28 -> 0 | U28: =Prop2021DistTar!AI28 -> 0 | V28: =Prop2021DistTar!AJ28 -> 0 | W28: =Prop2021DistTar!AK28 -> 0 | X28: =Prop2021DistTar!AL28 -> 0 | Y28: =Prop2021DistTar!AM28 -> 0 | Z28: =Prop2021DistTar!AN28 -> 0 | AA28: =Prop2021DistTar!AO28 -> 0 | AB28: =Prop2021DistTar!AP28 -> 0 | AC28: =Prop2021DistTar!AQ28 -> 0 | AD28: =Prop2021DistTar!AR28 -> 0 | AF28: 0 | AG28: 0 | AH28: 0 | AI28: 0 | AJ28: 0 | AK28: 0 | AL28: 0 | AM28: 0 | AN28: 0 | AO28: 0 | AP28: 0 | AQ28: 0 | AR28: 0 | AS28: 0
B29: =Prop2021DistTar!B29 -> NEE32 Dedicated Circuit 8 to 8 | D29: 0 | E29: 0 | F29: 0 | G29: 0 | H29: 0 | I29: 0.5915 | J29: 0 | K29: 0 | L29: 0 | M29: 0 | N29: 0 | O29: 0 | P29: 0 | R29: =Prop2021DistTar!AF29 -> 1823.930886 | S29: =Prop2021DistTar!AG29 -> 0 | T29: =Prop2021DistTar!AH29 -> 0 | U29: =Prop2021DistTar!AI29 -> 0 | V29: =Prop2021DistTar!AJ29 -> 0 | W29: =Prop2021DistTar!AK29 -> 2310467.8 | X29: =Prop2021DistTar!AL29 -> 0 | Y29: =Prop2021DistTar!AM29 -> 0 | Z29: =Prop2021DistTar!AN29 -> 0 | AA29: =Prop2021DistTar!AO29 -> 0 | AB29: =Prop2021DistTar!AP29 -> 0 | AC29: =Prop2021DistTar!AQ29 -> 0 | AD29: =Prop2021DistTar!AR29 -> 0 | AF29: 0 | AG29: 0 | AH29: 0 | AI29: 0 | AJ29: 0 | AK29: 13666.41704 | AL29: 0 | AM29: 0 | AN29: 0 | AO29: 0 | AP29: 0 | AQ29: 0 | AR29: 0 | AS29: 13666.41704
B30: =Prop2021DistTar!B30 -> NSP32 Dedicated Circuit 8 to 8 | D30: 0 | E30: 0 | F30: 0 | G30: 0 | H30: 0 | I30: 0.5915 | J30: 0 | K30: 0 | L30: 0 | M30: 0 | N30: 0 | O30: 0 | P30: 0 | R30: =Prop2021DistTar!AF30 -> 0 | S30: =Prop2021DistTar!AG30 -> 0 | T30: =Prop2021DistTar!AH30 -> 0 | U30: =Prop2021DistTar!AI30 -> 0 | V30: =Prop2021DistTar!AJ30 -> 0 | W30: =Prop2021DistTar!AK30 -> 0 | X30: =Prop2021DistTar!AL30 -> 0 | Y30: =Prop2021DistTar!AM30 -> 0 | Z30: =Prop2021DistTar!AN30 -> 0 | AA30: =Prop2021DistTar!AO30 -> 0 | AB30: =Prop2021DistTar!AP30 -> 0 | AC30: =Prop2021DistTar!AQ30 -> 0 | AD30: =Prop2021DistTar!AR30 -> 0 | AF30: 0 | AG30: 0 | AH30: 0 | AI30: 0 | AJ30: 0 | AK30: 0 | AL30: 0 | AM30: 0 | AN30: 0 | AO30: 0 | AP30: 0 | AQ30: 0 | AR30: 0 | AS30: 0
B31: =Prop2021DistTar!B31 -> NEE40 Medium Single Rate - closed to new customers | D31: 0 | E31: 2.1209 | F31: 0 | G31: 0 | H31: 0 | I31: 0 | J31: 0 | K31: 0 | L31: 0 | M31: 0 | N31: 0 | O31: 0 | P31: 0 | R31: =Prop2021DistTar!AF31 -> 118.2170397 | S31: =Prop2021DistTar!AG31 -> 2580392.564 | T31: =Prop2021DistTar!AH31 -> 0 | U31: =Prop2021DistTar!AI31 -> 0 | V31: =Prop2021DistTar!AJ31 -> 0 | W31: =Prop2021DistTar!AK31 -> 0 | X31: =Prop2021DistTar!AL31 -> 0 | Y31: =Prop2021DistTar!AM31 -> 0 | Z31: =Prop2021DistTar!AN31 -> 0 | AA31: =Prop2021DistTar!AO31 -> 0 | AB31: =Prop2021DistTar!AP31 -> 0 | AC31: =Prop2021DistTar!AQ31 -> 0 | AD31: =Prop2021DistTar!AR31 -> 0 | AF31: 0 | AG31: 54727.54588 | AH31: 0 | AI31: 0 | AJ31: 0 | AK31: 0 | AL31: 0 | AM31: 0 | AN31: 0 | AO31: 0 | AP31: 0 | AQ31: 0 | AR31: 0 | AS31: 54727.54588
B32: =Prop2021DistTar!B32 -> NEE51 Medium Two Rate 5Day - closed to new customers - <160MWh to NEE21 | D32: 0 | E32: 2.1209 | F32: 0 | G32: 0 | H32: 0 | I32: 0.5915 | J32: 0 | K32: 0 | L32: 0 | M32: 0 | N32: 0 | O32: 0 | P32: 0 | R32: =Prop2021DistTar!AF32 -> 189.9351202 | S32: =Prop2021DistTar!AG32 -> 21635948.95 | T32: =Prop2021DistTar!AH32 -> 0 | U32: =Prop2021DistTar!AI32 -> 0 | V32: =Prop2021DistTar!AJ32 -> 0 | W32: =Prop2021DistTar!AK32 -> 18217897.32 | X32: =Prop2021DistTar!AL32 -> 0 | Y32: =Prop2021DistTar!AM32 -> 0 | Z32: =Prop2021DistTar!AN32 -> 0 | AA32: =Prop2021DistTar!AO32 -> 0 | AB32: =Prop2021DistTar!AP32 -> 0 | AC32: =Prop2021DistTar!AQ32 -> 0 | AD32: =Prop2021DistTar!AR32 -> 0 | AF32: 0 | AG32: 458876.8412 | AH32: 0 | AI32: 0 | AJ32: 0 | AK32: 107758.8627 | AL32: 0 | AM32: 0 | AN32: 0 | AO32: 0 | AP32: 0 | AQ32: 0 | AR32: 0 | AS32: 566635.7039
B33: =Prop2021DistTar!B33 -> NEE55 Snowfields Tariff | D33: 0 | E33: 2.1209 | F33: 0 | G33: 0 | H33: 0 | I33: 0.5915 | J33: 0 | K33: 0 | L33: 0 | M33: 0 | N33: 0 | O33: 0 | P33: 0 | R33: =Prop2021DistTar!AF33 -> 0.5 | S33: =Prop2021DistTar!AG33 -> 36029.74523 | T33: =Prop2021DistTar!AH33 -> 0 | U33: =Prop2021DistTar!AI33 -> 0 | V33: =Prop2021DistTar!AJ33 -> 0 | W33: =Prop2021DistTar!AK33 -> 37046.36548 | X33: =Prop2021DistTar!AL33 -> 0 | Y33: =Prop2021DistTar!AM33 -> 0 | Z33: =Prop2021DistTar!AN33 -> 0 | AA33: =Prop2021DistTar!AO33 -> 0 | AB33: =Prop2021DistTar!AP33 -> 0 | AC33: =Prop2021DistTar!AQ33 -> 0 | AD33: =Prop2021DistTar!AR33 -> 0 | AF33: 0 | AG33: 764.1548666 | AH33: 0 | AI33: 0 | AJ33: 0 | AK33: 219.1292518 | AL33: 0 | AM33: 0 | AN33: 0 | AO33: 0 | AP33: 0 | AQ33: 0 | AR33: 0 | AS33: 983.2841184
B34: =Prop2021DistTar!B34 -> NSP55 Snowfields Tariff | D34: 0 | E34: 2.1209 | F34: 2.1209 | G34: 2.1209 | H34: 0 | I34: 0.5915 | J34: 0 | K34: 0 | L34: 0 | M34: 0 | N34: 0 | O34: 0 | P34: 0 | R34: =Prop2021DistTar!AF34 -> 3.5 | S34: =Prop2021DistTar!AG34 -> 9550.226913 | T34: =Prop2021DistTar!AH34 -> 54117.95251 | U34: =Prop2021DistTar!AI34 -> 25329.33022 | V34: =Prop2021DistTar!AJ34 -> 0 | W34: =Prop2021DistTar!AK34 -> 535690.8771 | X34: =Prop2021DistTar!AL34 -> 0 | Y34: =Prop2021DistTar!AM34 -> 0 | Z34: =Prop2021DistTar!AN34 -> 0 | AA34: =Prop2021DistTar!AO34 -> 0 | AB34: =Prop2021DistTar!AP34 -> 0 | AC34: =Prop2021DistTar!AQ34 -> 0 | AD34: =Prop2021DistTar!AR34 -> 0 | AF34: 0 | AG34: 202.5507626 | AH34: 1147.787655 | AI34: 537.2097645 | AJ34: 0 | AK34: 3168.611538 | AL34: 0 | AM34: 0 | AN34: 0 | AO34: 0 | AP34: 0 | AQ34: 0 | AR34: 0 | AS34: 5056.15972
B35: =Prop2021DistTar!B35 -> NSP56 Medium Demand Multi-rate | D35: 0 | E35: 2.1209 | F35: 2.1209 | G35: 0 | H35: 0 | I35: 0.5915 | J35: 0 | K35: 0 | L35: 0 | M35: 0 | N35: 0 | O35: 0 | P35: 0 | R35: =Prop2021DistTar!AF35 -> 635.90625 | S35: =Prop2021DistTar!AG35 -> 42307312.42 | T35: =Prop2021DistTar!AH35 -> 32269925.85 | U35: =Prop2021DistTar!AI35 -> 0 | V35: =Prop2021DistTar!AJ35 -> 0 | W35: =Prop2021DistTar!AK35 -> 53760873.8 | X35: =Prop2021DistTar!AL35 -> 0 | Y35: =Prop2021DistTar!AM35 -> 0 | Z35: =Prop2021DistTar!AN35 -> 0 | AA35: =Prop2021DistTar!AO35 -> 106189.7327 | AB35: =Prop2021DistTar!AP35 -> 37696.83715 | AC35: =Prop2021DistTar!AQ35 -> 0 | AD35: =Prop2021DistTar!AR35 -> 0 | AF35: =D35*R35 -> 0 | AG35: =E35/100*S35 -> 897295.7892 | AH35: 684412.8573 | AI35: 0 | AJ35: 0 | AK35: 317995.5685 | AL35: 0 | AM35: 0 | AN35: 0 | AO35: =M35*AA35 -> 0 | AP35: =N35*AB35 -> 0 | AQ35: =O35*AC35 -> 0 | AR35: =P35*AD35 -> 0 | AS35: =SUM(AF35:AR35) -> 1899704.215
B36: =Prop2021DistTar!B36 -> NEN56 Medium Demand Multi-rate - Embedded Network | D36: 0 | E36: 2.1209 | F36: 2.1209 | G36: 0 | H36: 0 | I36: 0.5915 | J36: 0 | K36: 0 | L36: 0 | M36: 0 | N36: 0 | O36: 0 | P36: 0 | R36: =Prop2021DistTar!AF36 -> 1 | S36: =Prop2021DistTar!AG36 -> 48857.90064 | T36: =Prop2021DistTar!AH36 -> 52671.60783 | U36: =Prop2021DistTar!AI36 -> 0 | V36: =Prop2021DistTar!AJ36 -> 0 | W36: =Prop2021DistTar!AK36 -> 48862.91001 | X36: =Prop2021DistTar!AL36 -> 0 | Y36: =Prop2021DistTar!AM36 -> 0 | Z36: =Prop2021DistTar!AN36 -> 0 | AA36: =Prop2021DistTar!AO36 -> 260 | AB36: =Prop2021DistTar!AP36 -> 73.395 | AC36: =Prop2021DistTar!AQ36 -> 0 | AD36: =Prop2021DistTar!AR36 -> 0 | AF36: 0 | AG36: 1036.227215 | AH36: 1117.11213 | AI36: 0 | AJ36: 0 | AK36: 289.0241127 | AL36: 0 | AM36: 0 | AN36: 0 | AO36: 0 | AP36: 0 | AQ36: 0 | AR36: 0 | AS36: 2442.363458
B37: =Prop2021DistTar!B37 -> NEE60 Medium Two Rate 7Day - closed to new customers | D37: 0 | E37: 2.1209 | F37: 0 | G37: 0 | H37: 0 | I37: 0.5915 | J37: 0 | K37: 0 | L37: 0 | M37: 0 | N37: 0 | O37: 0 | P37: 0 | R37: =Prop2021DistTar!AF37 -> 151.6656605 | S37: =Prop2021DistTar!AG37 -> 11912095.65 | T37: =Prop2021DistTar!AH37 -> 0 | U37: =Prop2021DistTar!AI37 -> 0 | V37: =Prop2021DistTar!AJ37 -> 0 | W37: =Prop2021DistTar!AK37 -> 3866727.129 | X37: =Prop2021DistTar!AL37 -> 0 | Y37: =Prop2021DistTar!AM37 -> 0 | Z37: =Prop2021DistTar!AN37 -> 0 | AA37: =Prop2021DistTar!AO37 -> 0 | AB37: =Prop2021DistTar!AP37 -> 0 | AC37: =Prop2021DistTar!AQ37 -> 0 | AD37: =Prop2021DistTar!AR37 -> 0 | AF37: 0 | AG37: 252643.6366 | AH37: 0 | AI37: 0 | AJ37: 0 | AK37: 22871.69097 | AL37: 0 | AM37: 0 | AN37: 0 | AO37: 0 | AP37: 0 | AQ37: 0 | AR37: 0 | AS37: 275515.3276
B38: =Prop2021DistTar!B38 -> NEE52 Unmetered | D38: 0 | E38: 2.1209 | F38: 0 | G38: 0 | H38: 0 | I38: 0.5915 | J38: 0 | K38: 0 | L38: 0 | M38: 0 | N38: 0 | O38: 0 | P38: 0 | R38: =Prop2021DistTar!AF38 -> 44.5 | S38: =Prop2021DistTar!AG38 -> 7313424.244 | T38: =Prop2021DistTar!AH38 -> 0 | U38: =Prop2021DistTar!AI38 -> 0 | V38: =Prop2021DistTar!AJ38 -> 0 | W38: =Prop2021DistTar!AK38 -> 18444180.33 | X38: =Prop2021DistTar!AL38 -> 0 | Y38: =Prop2021DistTar!AM38 -> 0 | Z38: =Prop2021DistTar!AN38 -> 0 | AA38: =Prop2021DistTar!AO38 -> 0 | AB38: =Prop2021DistTar!AP38 -> 0 | AC38: =Prop2021DistTar!AQ38 -> 0 | AD38: =Prop2021DistTar!AR38 -> 0 | AF38: 0 | AG38: 155110.4148 | AH38: 0 | AI38: 0 | AJ38: 0 | AK38: 109097.3266 | AL38: 0 | AM38: 0 | AN38: 0 | AO38: 0 | AP38: 0 | AQ38: 0 | AR38: 0 | AS38: 264207.7414
B39: =Prop2021DistTar!B39 -> NEE74 LV Large Two Rate 5Day | D39: 0 | E39: 2.1209 | F39: 0 | G39: 0 | H39: 0 | I39: 0.5915 | J39: 0 | K39: 0 | L39: 0 | M39: 0 | N39: 0 | O39: 0 | P39: 0 | R39: =Prop2021DistTar!AF39 -> 3.5 | S39: =Prop2021DistTar!AG39 -> 941231.6583 | T39: =Prop2021DistTar!AH39 -> 0 | U39: =Prop2021DistTar!AI39 -> 0 | V39: =Prop2021DistTar!AJ39 -> 0 | W39: =Prop2021DistTar!AK39 -> 1062334.427 | X39: =Prop2021DistTar!AL39 -> 0 | Y39: =Prop2021DistTar!AM39 -> 0 | Z39: =Prop2021DistTar!AN39 -> 0 | AA39: =Prop2021DistTar!AO39 -> 0 | AB39: =Prop2021DistTar!AP39 -> 0 | AC39: =Prop2021DistTar!AQ39 -> 0 | AD39: =Prop2021DistTar!AR39 -> 0 | AF39: 0 | AG39: 19962.58224 | AH39: 0 | AI39: 0 | AJ39: 0 | AK39: 6283.708137 | AL39: 0 | AM39: 0 | AN39: 0 | AO39: 0 | AP39: 0 | AQ39: 0 | AR39: 0 | AS39: 26246.29038
B40: =Prop2021DistTar!B40 -> NSP75 Large Multi-rate <750 kVA | D40: 0 | E40: 2.1209 | F40: 2.1209 | G40: 0 | H40: 0 | I40: 0.5915 | J40: 0 | K40: 0 | L40: 0 | M40: 0 | N40: 0 | O40: 0 | P40: 0 | R40: =Prop2021DistTar!AF40 -> 399.7375 | S40: =Prop2021DistTar!AG40 -> 65066965.82 | T40: =Prop2021DistTar!AH40 -> 46895776.11 | U40: =Prop2021DistTar!AI40 -> 0 | V40: =Prop2021DistTar!AJ40 -> 0 | W40: =Prop2021DistTar!AK40 -> 87211176.76 | X40: =Prop2021DistTar!AL40 -> 0 | Y40: =Prop2021DistTar!AM40 -> 0 | Z40: =Prop2021DistTar!AN40 -> 0 | AA40: =Prop2021DistTar!AO40 -> 106150.6633 | AB40: =Prop2021DistTar!AP40 -> 47175.12337 | AC40: =Prop2021DistTar!AQ40 -> 0 | AD40: =Prop2021DistTar!AR40 -> 0 | AF40: 0 | AG40: 1380005.278 | AH40: 994612.5155 | AI40: 0 | AJ40: 0 | AK40: 515854.1105 | AL40: 0 | AM40: 0 | AN40: 0 | AO40: 0 | AP40: 0 | AQ40: 0 | AR40: 0 | AS40: 2890471.904
B41: =Prop2021DistTar!B41 -> NSP76 Large Multi-rate >750 kVA | D41: 0 | E41: 2.1209 | F41: 2.1209 | G41: 0 | H41: 0 | I41: 0.5915 | J41: 0 | K41: 0 | L41: 0 | M41: 0 | N41: 0 | O41: 0 | P41: 0 | R41: =Prop2021DistTar!AF41 -> 276.04375 | S41: =Prop2021DistTar!AG41 -> 96539748.78 | T41: =Prop2021DistTar!AH41 -> 70796917.76 | U41: =Prop2021DistTar!AI41 -> 0 | V41: =Prop2021DistTar!AJ41 -> 0 | W41: =Prop2021DistTar!AK41 -> 125406478.9 | X41: =Prop2021DistTar!AL41 -> 0 | Y41: =Prop2021DistTar!AM41 -> 0 | Z41: =Prop2021DistTar!AN41 -> 0 | AA41: =Prop2021DistTar!AO41 -> 145281.4198 | AB41: =Prop2021DistTar!AP41 -> 64874.07558 | AC41: =Prop2021DistTar!AQ41 -> 0 | AD41: =Prop2021DistTar!AR41 -> 0 | AF41: 0 | AG41: 2047511.532 | AH41: 1501531.829 | AI41: 0 | AJ41: 0 | AK41: 741779.3226 | AL41: 0 | AM41: 0 | AN41: 0 | AO41: 0 | AP41: 0 | AQ41: 0 | AR41: 0 | AS41: 4290822.683
B42: =Prop2021DistTar!B42 -> NSP77 Large Multi-rate >2 GWh | D42: 0 | E42: 2.1209 | F42: 2.1209 | G42: 0 | H42: 0 | I42: 0.5915 | J42: 0 | K42: 0 | L42: 0 | M42: 0 | N42: 0 | O42: 0 | P42: 0 | R42: =Prop2021DistTar!AF42 -> 42.2375 | S42: =Prop2021DistTar!AG42 -> 32246242.09 | T42: =Prop2021DistTar!AH42 -> 22577275.47 | U42: =Prop2021DistTar!AI42 -> 0 | V42: =Prop2021DistTar!AJ42 -> 0 | W42: =Prop2021DistTar!AK42 -> 41375655.65 | X42: =Prop2021DistTar!AL42 -> 0 | Y42: =Prop2021DistTar!AM42 -> 0 | Z42: =Prop2021DistTar!AN42 -> 0 | AA42: =Prop2021DistTar!AO42 -> 39295.95982 | AB42: =Prop2021DistTar!AP42 -> 19178.78678 | AC42: =Prop2021DistTar!AQ42 -> 0 | AD42: =Prop2021DistTar!AR42 -> 0 | AF42: 0 | AG42: 683910.5486 | AH42: 478841.4354 | AI42: 0 | AJ42: 0 | AK42: 244737.0032 | AL42: 0 | AM42: 0 | AN42: 0 | AO42: 0 | AP42: 0 | AQ42: 0 | AR42: 0 | AS42: 1407488.987
B43: =Prop2021DistTar!B43 -> NSP78 Large Multi-rate >4 GWh | D43: 0 | E43: 2.1209 | F43: 2.1209 | G43: 0 | H43: 0 | I43: 0.5915 | J43: 0 | K43: 0 | L43: 0 | M43: 0 | N43: 0 | O43: 0 | P43: 0 | R43: =Prop2021DistTar!AF43 -> 17.7375 | S43: =Prop2021DistTar!AG43 -> 25893028.55 | T43: =Prop2021DistTar!AH43 -> 17970261.11 | U43: =Prop2021DistTar!AI43 -> 0 | V43: =Prop2021DistTar!AJ43 -> 0 | W43: =Prop2021DistTar!AK43 -> 33397961.12 | X43: =Prop2021DistTar!AL43 -> 0 | Y43: =Prop2021DistTar!AM43 -> 0 | Z43: =Prop2021DistTar!AN43 -> 0 | AA43: =Prop2021DistTar!AO43 -> 25171.59926 | AB43: =Prop2021DistTar!AP43 -> 16125.0005 | AC43: =Prop2021DistTar!AQ43 -> 0 | AD43: =Prop2021DistTar!AR43 -> 0 | AF43: 0 | AG43: 549165.2424 | AH43: 381131.268 | AI43: 0 | AJ43: 0 | AK43: 197548.94 | AL43: 0 | AM43: 0 | AN43: 0 | AO43: 0 | AP43: 0 | AQ43: 0 | AR43: 0 | AS43: 1127845.45
B44: =Prop2021DistTar!B44 -> NSP81 HV Kva | D44: 0 | E44: 2.1209 | F44: 0 | G44: 0 | H44: 0 | I44: 0.5915 | J44: 0 | K44: 0 | L44: 0 | M44: 0 | N44: 0 | O44: 0 | P44: 0 | R44: =Prop2021DistTar!AF44 -> 30.2375 | S44: =Prop2021DistTar!AG44 -> 124298431.6 | T44: =Prop2021DistTar!AH44 -> 0 | U44: =Prop2021DistTar!AI44 -> 0 | V44: =Prop2021DistTar!AJ44 -> 0 | W44: =Prop2021DistTar!AK44 -> 105890467.8 | X44: =Prop2021DistTar!AL44 -> 0 | Y44: =Prop2021DistTar!AM44 -> 0 | Z44: =Prop2021DistTar!AN44 -> 0 | AA44: =Prop2021DistTar!AO44 -> 97969.5 | AB44: =Prop2021DistTar!AP44 -> 42579.59966 | AC44: =Prop2021DistTar!AQ44 -> 0 | AD44: =Prop2021DistTar!AR44 -> 0 | AF44: 0 | AG44: 2636245.435 | AH44: 0 | AI44: 0 | AJ44: 0 | AK44: 626342.1173 | AL44: 0 | AM44: 0 | AN44: 0 | AO44: 0 | AP44: 0 | AQ44: 0 | AR44: 0 | AS44: 3262587.553
B45: =Prop2021DistTar!B45 -> NSP82 Traction | D45: 0 | E45: 2.1209 | F45: 2.1209 | G45: 0 | H45: 0 | I45: 0.5915 | J45: 0 | K45: 0 | L45: 0 | M45: 0 | N45: 0 | O45: 0 | P45: 0
B46: =Prop2021DistTar!B46 -> NSP83 Small HV | D46: 0 | E46: 2.1209 | F46: 2.1209 | G46: 0 | H46: 0 | I46: 0.5915 | J46: 0 | K46: 0 | L46: 0 | M46: 0 | N46: 0 | O46: 0 | P46: 0 | R46: =Prop2021DistTar!AF46 -> 10.2375 | S46: =Prop2021DistTar!AG46 -> 2797789.1 | T46: =Prop2021DistTar!AH46 -> 1951495.497 | U46: =Prop2021DistTar!AI46 -> 0 | V46: =Prop2021DistTar!AJ46 -> 0 | W46: =Prop2021DistTar!AK46 -> 2416770.473 | X46: =Prop2021DistTar!AL46 -> 0 | Y46: =Prop2021DistTar!AM46 -> 0 | Z46: =Prop2021DistTar!AN46 -> 0 | AA46: =Prop2021DistTar!AO46 -> 12870.8125 | AB46: =Prop2021DistTar!AP46 -> 3028.028555 | AC46: =Prop2021DistTar!AQ46 -> 0 | AD46: =Prop2021DistTar!AR46 -> 0 | AF46: 0 | AG46: 59338.30902 | AH46: 41389.26801 | AI46: 0 | AJ46: 0 | AK46: 14295.19735 | AL46: 0 | AM46: 0 | AN46: 0 | AO46: 0 | AP46: 0 | AQ46: 0 | AR46: 0 | AS46: 115022.7744
B47: =Prop2021DistTar!B47 -> NSP91 ST kVA | D47: 0 | E47: 2.1209 | F47: 0 | G47: 0 | H47: 0 | I47: 0.5915 | J47: 0 | K47: 0 | L47: 0 | M47: 0 | N47: 0 | O47: 0 | P47: 0
B48: =Prop2021DistTar!B48 -> NEE93 Latrobe Generators kVA (non published) | D48: 0 | E48: 1.3639 | F48: 0 | G48: 0 | H48: 0 | I48: 1.3639 | J48: 0 | K48: 0 | L48: 0 | M48: 0 | N48: 0 | O48: 0 | P48: 0
B49: =Prop2021DistTar!B49 -> NSP94 - ST kVA >25MVA <20kM | D49: 0 | E49: 2.1209 | F49: 0 | G49: 0 | H49: 0 | I49: 0.5915 | J49: 0 | K49: 0 | L49: 0 | M49: 0 | N49: 0 | O49: 0 | P49: 0
B50: =Prop2021DistTar!B50 -> NSP95 - ST kVA <25MVA >20kM | D50: 0 | E50: 2.1209 | F50: 0 | G50: 0 | H50: 0 | I50: 0.5915 | J50: 0 | K50: 0 | L50: 0 | M50: 0 | N50: 0 | O50: 0 | P50: 0
B51: =Prop2021DistTar!B51 -> NASN19 - Business >40MWh Single Rate | D51: 0 | E51: 2.1209 | F51: 2.1209 | G51: 0 | H51: 0 | I51: 0 | J51: 0 | K51: 0 | L51: 0 | M51: 0 | N51: 0 | O51: 0 | P51: 0 | R51: =Prop2021DistTar!AF51 -> 538.8875706 | S51: =Prop2021DistTar!AG51 -> 25110693.91 | T51: =Prop2021DistTar!AH51 -> 0 | U51: =Prop2021DistTar!AI51 -> 0 | V51: =Prop2021DistTar!AJ51 -> 0 | W51: =Prop2021DistTar!AK51 -> 0 | X51: =Prop2021DistTar!AL51 -> 0 | Y51: =Prop2021DistTar!AM51 -> 0 | Z51: =Prop2021DistTar!AN51 -> 0 | AA51: =Prop2021DistTar!AO51 -> 46042.52516 | AB51: =Prop2021DistTar!AP51 -> 57855.16803 | AC51: =Prop2021DistTar!AQ51 -> 0 | AD51: =Prop2021DistTar!AR51 -> 0 | AF51: 0 | AG51: 532572.7071 | AH51: 0 | AI51: 0 | AJ51: 0 | AK51: 0 | AL51: 0 | AM51: 0 | AN51: 0 | AO51: 0 | AP51: 0 | AQ51: 0 | AR51: 0 | AS51: 532572.7071
B52: =Prop2021DistTar!B52 -> NASN21 - Business >40MWh Two Rate | D52: 0 | E52: 2.1209 | F52: 0 | G52: 0 | H52: 0 | I52: 0.5915 | J52: 0 | K52: 0 | L52: 0 | M52: 0 | N52: 0 | O52: 0 | P52: 0 | R52: =Prop2021DistTar!AF52 -> 4310.612692 | S52: =Prop2021DistTar!AG52 -> 142345744.6 | T52: =Prop2021DistTar!AH52 -> 0 | U52: =Prop2021DistTar!AI52 -> 0 | V52: =Prop2021DistTar!AJ52 -> 0 | W52: =Prop2021DistTar!AK52 -> 121263382.5 | X52: =Prop2021DistTar!AL52 -> 0 | Y52: =Prop2021DistTar!AM52 -> -3978461.303 | Z52: =Prop2021DistTar!AN52 -> 0 | AA52: =Prop2021DistTar!AO52 -> 494986.7639 | AB52: =Prop2021DistTar!AP52 -> 641947.975 | AC52: =Prop2021DistTar!AQ52 -> 0 | AD52: =Prop2021DistTar!AR52 -> 0 | AF52: 0 | AG52: 3019010.896 | AH52: 0 | AI52: 0 | AJ52: 0 | AK52: 717272.9076 | AL52: 0 | AM52: 0 | AN52: 0 | AO52: 0 | AP52: 0 | AQ52: 0 | AR52: 0 | AS52: 3736283.804
B53: =Prop2021DistTar!B53 -> NASN11 - Residential Single Rate | D53: 0 | E53: 2.1209 | F53: 2.1209 | G53: 0 | H53: 0 | I53: 0 | J53: 0 | K53: 0 | L53: 0 | M53: 0 | N53: 0 | O53: 0 | P53: 0 | R53: =Prop2021DistTar!AF53 -> 19.96692967 | S53: =Prop2021DistTar!AG53 -> 80493.51087 | T53: =Prop2021DistTar!AH53 -> 0 | U53: =Prop2021DistTar!AI53 -> 0 | V53: =Prop2021DistTar!AJ53 -> 0 | W53: =Prop2021DistTar!AK53 -> 0 | X53: =Prop2021DistTar!AL53 -> 0 | Y53: =Prop2021DistTar!AM53 -> -17314.27667 | Z53: =Prop2021DistTar!AN53 -> 0 | AA53: =Prop2021DistTar!AO53 -> 253.9415106 | AB53: =Prop2021DistTar!AP53 -> 378.096074 | AC53: =Prop2021DistTar!AQ53 -> 0 | AD53: =Prop2021DistTar!AR53 -> 0 | AF53: 0 | AG53: 1707.186872 | AH53: 0 | AI53: 0 | AJ53: 0 | AK53: 0 | AL53: 0 | AM53: 0 | AN53: 0 | AO53: 0 | AP53: 0 | AQ53: 0 | AR53: 0 | AS53: 1707.186872
B54: =Prop2021DistTar!B54 -> NASN12 - Business Single Rate | D54: 0 | E54: 2.1209 | F54: 2.1209 | G54: 0 | H54: 0 | I54: 0 | J54: 0 | K54: 0 | L54: 0 | M54: 0 | N54: 0 | O54: 0 | P54: 0 | R54: =Prop2021DistTar!AF54 -> 3.443785292 | S54: =Prop2021DistTar!AG54 -> 64170.78729 | T54: =Prop2021DistTar!AH54 -> 0 | U54: =Prop2021DistTar!AI54 -> 0 | V54: =Prop2021DistTar!AJ54 -> 0 | W54: =Prop2021DistTar!AK54 -> 0 | X54: =Prop2021DistTar!AL54 -> 0 | Y54: =Prop2021DistTar!AM54 -> 0 | Z54: =Prop2021DistTar!AN54 -> 0 | AA54: =Prop2021DistTar!AO54 -> 301.883003 | AB54: =Prop2021DistTar!AP54 -> 587.7557165 | AC54: =Prop2021DistTar!AQ54 -> 0 | AD54: =Prop2021DistTar!AR54 -> 0 | AF54: 0 | AG54: 1360.998228 | AH54: 0 | AI54: 0 | AJ54: 0 | AK54: 0 | AL54: 0 | AM54: 0 | AN54: 0 | AO54: 0 | AP54: 0 | AQ54: 0 | AR54: 0 | AS54: 1360.998228
AF55: 0 | AG55: =E55/100*S55 -> 0 | AH55: 0 | AI55: 0 | AJ55: 0 | AK55: 0 | AL55: 0 | AM55: 0 | AN55: 0 | AO55: 0 | AP55: 0 | AQ55: 0 | AR55: 0 | AS55: 0
AF56: 0 | AG56: 0 | AH56: 0 | AI56: 0 | AJ56: 0 | AK56: 0 | AL56: 0 | AM56: 0 | AN56: 0 | AO56: 0 | AP56: 0 | AQ56: 0 | AR56: 0 | AS56: 0
AF57: 0 | AG57: 0 | AH57: 0 | AI57: 0 | AJ57: 0 | AK57: 0 | AL57: 0 | AM57: 0 | AN57: 0 | AO57: 0 | AP57: 0 | AQ57: 0 | AR57: 0 | AS57: 0
AF58: 0 | AG58: 0 | AH58: 0 | AI58: 0 | AJ58: 0 | AK58: 0 | AL58: 0 | AM58: 0 | AN58: 0 | AO58: 0 | AP58: 0 | AQ58: 0 | AR58: 0 | AS58: 0
AF59: 0 | AG59: 0 | AH59: 0 | AI59: 0 | AJ59: 0 | AK59: 0 | AL59: 0 | AM59: 0 | AN59: 0 | AO59: 0 | AP59: 0 | AQ59: 0 | AR59: 0 | AS59: 0
AF60: 0 | AG60: 0 | AH60: 0 | AI60: 0 | AJ60: 0 | AK60: 0 | AL60: 0 | AM60: 0 | AN60: 0 | AO60: 0 | AP60: 0 | AQ60: 0 | AR60: 0 | AS60: 0
AF61: 0 | AG61: 0 | AH61: 0 | AI61: 0 | AJ61: 0 | AK61: 0 | AL61: 0 | AM61: 0 | AN61: 0 | AO61: 0 | AP61: 0 | AQ61: 0 | AR61: 0 | AS61: 0
AF62: 0 | AG62: 0 | AH62: 0 | AI62: 0 | AJ62: 0 | AK62: 0 | AL62: 0 | AM62: 0 | AN62: 0 | AO62: 0 | AP62: 0 | AQ62: 0 | AR62: 0 | AS62: 0
AF63: 0 | AG63: 0 | AH63: 0 | AI63: 0 | AJ63: 0 | AK63: 0 | AL63: 0 | AM63: 0 | AN63: 0 | AO63: 0 | AP63: 0 | AQ63: 0 | AR63: 0 | AS63: 0
AF64: 0 | AG64: 0 | AH64: 0 | AI64: 0 | AJ64: 0 | AK64: 0 | AL64: 0 | AM64: 0 | AN64: 0 | AO64: 0 | AP64: 0 | AQ64: 0 | AR64: 0 | AS64: 0
AF65: 0 | AG65: 0 | AH65: 0 | AI65: 0 | AJ65: 0 | AK65: 0 | AL65: 0 | AM65: 0 | AN65: 0 | AO65: 0 | AP65: 0 | AQ65: 0 | AR65: 0 | AS65: 0
R66: 432634.6587 | S66: 1786652652 | T66: 531414916.4 | U66: 1510878.359 | V66: 0 | W66: 1214863394 | X66: 0 | Y66: -148486500.8 | Z66: 0 | AA66: 1175008.639 | AB66: 968350.2659 | AC66: 0 | AD66: 0 | AF66: 0 | AG66: 37525076.67 | AH66: 11270778.96 | AI66: 32044.21911 | AJ66: 0 | AK66: 7561443.597 | AL66: 0 | AM66: 0 | AN66: 0 | AO66: 0 | AP66: 0 | AQ66: 0 | AR66: 0 | AS66: 56389343.45

Sheet 2021TransRevCont
B2: ="Tariff Approval - "&'Model update'!$C$3 -> Tariff Approval - AusNet Services | C2: ='Model update'!$C$5&"TransRevCont" -> 2021TransRevCont
B4: Designated pricing proposal charges (DPPC)
B6: Year (t) | C6: ='Model update'!C5 -> 2021
B8: Table 1- Compliance with DPPC Revenue Formula
B9: Revenue from designated pricing proposal charges for year t | C9: =Prop2021TransTar!AS66 -> 56389343.45
B10: Total DPPC related payments for year t | C10: =C19 -> 56389370.44
C11: =IF(C9="","",IF(C10>=C9,"DPPC REVENUE FORMULA COMPLIANT","DPPC REVENUE FORMULA BREACHED")) -> DPPC REVENUE FORMULA COMPLIANT
B14: Table 3 - Transmission charges for year t
B15: AEMO (TCt) | C15: 54313840.99
B16: Transmission connection (TCt) | C16: 4551670.352
B17: Embedded generators (Gt) | C17: 407717.795
B18: Inter-network (Dt) | C18: 2883858.7
B19: TC + G - D | C19: =C15+C16+C17-C18 -> 56389370.44

Sheet Prop2021JSTar
B1: ="Tariff Approval - "&'Model update'!C3 -> Tariff Approval - AusNet Services | D1: ="Prop"&'Model update'!$C$5&"JSTar" -> Prop2021JSTar
B3: ="PROPOSED "&'Model update'!$C$5&" JURISDICTIONAL SCHEME TARIFFS" -> PROPOSED 2021 JURISDICTIONAL SCHEME TARIFFS
D4: ="Proposed Jurisdictional scheme Tariffs (Pt) for "&'Model update'!$C$5 -> Proposed Jurisdictional scheme Tariffs (Pt) for 2021 | R4: ="Forecast Quantities (Qt) for "&'Model update'!$C$5 -> Forecast Quantities (Qt) for 2021 | AF4: ="Forecast Revenue (Pt "&'Model update'!$C$5&")*(Qt " &'Model update'!$C$5&")" -> Forecast Revenue (Pt 2021)*(Qt 2021)
B5: Proposed tariff | D5: =Prop2021DistTar!D5 -> PropTar Fixed | E5: =Prop2021DistTar!E5 -> PropTar PkBlk1 | F5: =Prop2021DistTar!F5 -> PropTar PkBlk2 | G5: =Prop2021DistTar!G5 -> PropTar PkBlk3 | H5: =Prop2021DistTar!H5 -> PropTar PkBlk4 | I5: =Prop2021DistTar!I5 -> PropTar OPkBlk1 | J5: =Prop2021DistTar!J5 -> PropTar OPkBlk2 | K5: =Prop2021DistTar!K5 -> PropTar OPkBlk3 | L5: =Prop2021DistTar!L5 -> PropTar OPkBlk4 | M5: =Prop2021DistTar!M5 -> PropTar DemBlk1 | N5: =Prop2021DistTar!N5 -> PropTar DemBlk2 | O5: =Prop2021DistTar!O5 -> PropTar DemBlk3 | P5: =Prop2021DistTar!P5 -> PropTar DemBlk4 | R5: =Prop2021DistTar!AF5 -> FcastVol Fixed | S5: =Prop2021DistTar!AG5 -> FcastVol PkBlk1 | T5: =Prop2021DistTar!AH5 -> FcastVol PkBlk2 | U5: =Prop2021DistTar!AI5 -> FcastVol PkBlk3 | V5: =Prop2021DistTar!AJ5 -> FcastVol PkBlk4 | W5: =Prop2021DistTar!AK5 -> FcastVol OPkBlk1 | X5: =Prop2021DistTar!AL5 -> FcastVol OPkBlk2 | Y5: =Prop2021DistTar!AM5 -> FcastVol OPkBlk3 | Z5: =Prop2021DistTar!AN5 -> FcastVol OPkBlk4 | AA5: =Prop2021DistTar!AO5 -> FcastVol DemBlk1 | AB5: =Prop2021DistTar!AP5 -> FcastVol DemBlk2 | AC5: =Prop2021DistTar!AQ5 -> FcastVol DemBlk3 | AD5: =Prop2021DistTar!AR5 -> FcastVol DemBlk4 | AF5: PropRev Fixed | AG5: PropRev PkBlk1 | AH5: PropRev PkBlk2 | AI5: PropRev PkBlk3 | AJ5: PropRev PkBlk4 | AK5: PropRev OPkBlk1 | AL5: PropRev OPkBlk2 | AM5: PropRev OPkBlk3 | AN5: PropRev OPkBlk4 | AO5: PropRev DemBlk1 | AP5: PropRev DemBlk2 | AQ5: PropRev DemBlk3 | AR5: PropRev DemBlk4 | AS5: PropRev Total
B6: =Prop2021DistTar!B6 -> NEE11 Small Single Rate < 160MWh | D6: 0 | E6: 0.5751 | F6: 0.5751 | G6: 0 | H6: 0 | I6: 0 | J6: 0 | K6: 0 | L6: 0 | M6: 0 | N6: 0 | O6: 0 | P6: 0 | R6: =Prop2021DistTar!AF6 -> 239028.3345 | S6: =Prop2021DistTar!AG6 -> 686112016.8 | T6: =Prop2021DistTar!AH6 -> 283669233.4 | U6: =Prop2021DistTar!AI6 -> 0 | V6: =Prop2021DistTar!AJ6 -> 0 | W6: =Prop2021DistTar!AK6 -> 0 | X6: =Prop2021DistTar!AL6 -> 0 | Y6: =Prop2021DistTar!AM6 -> 0 | Z6: =Prop2021DistTar!AN6 -> 0 | AA6: =Prop2021DistTar!AO6 -> 0 | AB6: =Prop2021DistTar!AP6 -> 0 | AC6: =Prop2021DistTar!AQ6 -> 0 | AD6: =Prop2021DistTar!AR6 -> 0 | AF6: =D6*R6 -> 0 | AG6: =E6/100*S6 -> 3945830.208 | AH6: 1631381.761 | AI6: 0 | AJ6: 0 | AK6: 0 | AL6: 0 | AM6: 0 | AN6: 0 | AO6: =M6*AA6 -> 0 | AP6: 0 | AQ6: 0 | AR6: 0 | AS6: =SUM(AF6:AR6) -> 5577211.97
B7: =Prop2021DistTar!B7 -> NGT11 Small Interval Single Rate < 160MWh | D7: 0 | E7: 0.5751 | F7: 0 | G7: 0 | H7: 0 | I7: 0 | J7: 0 | K7: 0 | L7: 0 | M7: 0 | N7: 0 | O7: 0 | P7: 0 | R7: =Prop2021DistTar!AF7 -> 4 | S7: =Prop2021DistTar!AG7 -> 15851.69034 | T7: =Prop2021DistTar!AH7 -> 0 | U7: =Prop2021DistTar!AI7 -> 0 | V7: =Prop2021DistTar!AJ7 -> 0 | W7: =Prop2021DistTar!AK7 -> 0 | X7: =Prop2021DistTar!AL7 -> 0 | Y7: =Prop2021DistTar!AM7 -> 0 | Z7: =Prop2021DistTar!AN7 -> 0 | AA7: =Prop2021DistTar!AO7 -> 0 | AB7: =Prop2021DistTar!AP7 -> 0 | AC7: =Prop2021DistTar!AQ7 -> 0 | AD7: =Prop2021DistTar!AR7 -> 0 | AF7: =D7*R7 -> 0 | AG7: =E7/100*S7 -> 91.16307113 | AH7: 0 | AI7: 0 | AJ7: 0 | AK7: 0 | AL7: 0 | AM7: 0 | AN7: 0 | AO7: =M7*AA7 -> 0 | AP7: =N7*AB7 -> 0 | AQ7: =O7*AC7 -> 0 | AR7: =P7*AD7 -> 0 | AS7: =SUM(AF7:AR7) -> 91.16307113
B8: =Prop2021DistTar!B8 -> NSP11 Small Single Rate < 160MWh | D8: 0 | E8: 0.5751 | F8: 0.5751 | G8: 0.5751 | H8: 0 | I8: 0.4828 | J8: 0 | K8: 0 | L8: 0 | M8: 0 | N8: 0 | O8: 0 | P8: 0 | R8: =Prop2021DistTar!AF8 -> 0 | S8: =Prop2021DistTar!AG8 -> 0 | T8: =Prop2021DistTar!AH8 -> 0 | U8: =Prop2021DistTar!AI8 -> 0 | V8: =Prop2021DistTar!AJ8 -> 0 | W8: =Prop2021DistTar!AK8 -> 0 | X8: =Prop2021DistTar!AL8 -> 0 | Y8: =Prop2021DistTar!AM8 -> 0 | Z8: =Prop2021DistTar!AN8 -> 0 | AA8: =Prop2021DistTar!AO8 -> 0 | AB8: =Prop2021DistTar!AP8 -> 0 | AC8: =Prop2021DistTar!AQ8 -> 0 | AD8: =Prop2021DistTar!AR8 -> 0 | AF8: 0 | AG8: 0 | AH8: 0 | AI8: 0 | AJ8: 0 | AK8: 0 | AL8: 0 | AM8: 0 | AN8: 0 | AO8: 0 | AP8: 0 | AQ8: 0 | AR8: 0 | AS8: 0
B9: =Prop2021DistTar!B9 -> NEN11 Small Single Rate < 160MWh Embedded Network | D9: 0 | E9: 0.5751 | F9: 0.5751 | G9: 0 | H9: 0 | I9: 0 | J9: 0 | K9: 0 | L9: 0 | M9: 0 | N9: 0 | O9: 0 | P9: 0 | R9: =Prop2021DistTar!AF9 -> 0 | S9: =Prop2021DistTar!AG9 -> 0 | T9: =Prop2021DistTar!AH9 -> 0 | U9: =Prop2021DistTar!AI9 -> 0 | V9: =Prop2021DistTar!AJ9 -> 0 | W9: =Prop2021DistTar!AK9 -> 0 | X9: =Prop2021DistTar!AL9 -> 0 | Y9: =Prop2021DistTar!AM9 -> 0 | Z9: =Prop2021DistTar!AN9 -> 0 | AA9: =Prop2021DistTar!AO9 -> 0 | AB9: =Prop2021DistTar!AP9 -> 0 | AC9: =Prop2021DistTar!AQ9 -> 0 | AD9: =Prop2021DistTar!AR9 -> 0 | AF9: 0 | AG9: 0 | AH9: 0 | AI9: 0 | AJ9: 0 | AK9: 0 | AL9: 0 | AM9: 0 | AN9: 0 | AO9: 0 | AP9: 0 | AQ9: 0 | AR9: 0 | AS9: 0
B10: =Prop2021DistTar!B10 -> NEE12 Small Business Single Rate - new in 2001 | D10: 0 | E10: 0.5751 | F10: 0.5751 | G10: 0 | H10: 0 | I10: 0 | J10: 0 | K10: 0 | L10: 0 | M10: 0 | N10: 0 | O10: 0 | P10: 0 | R10: =Prop2021DistTar!AF10 -> 14834.62602 | S10: =Prop2021DistTar!AG10 -> 29916679.02 | T10: =Prop2021DistTar!AH10 -> 46008597.66 | U10: =Prop2021DistTar!AI10 -> 0 | V10: =Prop2021DistTar!AJ10 -> 0 | W10: =Prop2021DistTar!AK10 -> 0 | X10: =Prop2021DistTar!AL10 -> 0 | Y10: =Prop2021DistTar!AM10 -> 0 | Z10: =Prop2021DistTar!AN10 -> 0 | AA10: =Prop2021DistTar!AO10 -> 0 | AB10: =Prop2021DistTar!AP10 -> 0 | AC10: =Prop2021DistTar!AQ10 -> 0 | AD10: =Prop2021DistTar!AR10 -> 0 | AF10: 0 | AG10: 172050.8211 | AH10: 264595.4451 | AI10: 0 | AJ10: 0 | AK10: 0 | AL10: 0 | AM10: 0 | AN10: 0 | AO10: 0 | AP10: 0 | AQ10: 0 | AR10: 0 | AS10: 436646.2662
B11: =Prop2021DistTar!B11 -> NSP12 Small Business Single Rate - new in 2001 | D11: 0 | E11: 0.5751 | F11: 0.5751 | G11: 0.5751 | H11: 0 | I11: 0.4828 | J11: 0 | K11: 0 | L11: 0 | M11: 0 | N11: 0 | O11: 0 | P11: 0 | R11: =Prop2021DistTar!AF11 -> 0 | S11: =Prop2021DistTar!AG11 -> 0 | T11: =Prop2021DistTar!AH11 -> 0 | U11: =Prop2021DistTar!AI11 -> 0 | V11: =Prop2021DistTar!AJ11 -> 0 | W11: =Prop2021DistTar!AK11 -> 0 | X11: =Prop2021DistTar!AL11 -> 0 | Y11: =Prop2021DistTar!AM11 -> 0 | Z11: =Prop2021DistTar!AN11 -> 0 | AA11: =Prop2021DistTar!AO11 -> 0 | AB11: =Prop2021DistTar!AP11 -> 0 | AC11: =Prop2021DistTar!AQ11 -> 0 | AD11: =Prop2021DistTar!AR11 -> 0 | AF11: 0 | AG11: 0 | AH11: 0 | AI11: 0 | AJ11: 0 | AK11: 0 | AL11: 0 | AM11: 0 | AN11: 0 | AO11: 0 | AP11: 0 | AQ11: 0 | AR11: 0 | AS11: 0
B12: =Prop2021DistTar!B12 -> NEN12 Small Business Single Rate - Embedded Network | D12: 0 | E12: 0.5751 | F12: 0.5751 | G12: 0 | H12: 0 | I12: 0 | J12: 0 | K12: 0 | L12: 0 | M12: 0 | N12: 0 | O12: 0 | P12: 0 | R12: =Prop2021DistTar!AF12 -> 0 | S12: =Prop2021DistTar!AG12 -> 0 | T12: =Prop2021DistTar!AH12 -> 0 | U12: =Prop2021DistTar!AI12 -> 0 | V12: =Prop2021DistTar!AJ12 -> 0 | W12: =Prop2021DistTar!AK12 -> 0 | X12: =Prop2021DistTar!AL12 -> 0 | Y12: =Prop2021DistTar!AM12 -> 0 | Z12: =Prop2021DistTar!AN12 -> 0 | AA12: =Prop2021DistTar!AO12 -> 0 | AB12: =Prop2021DistTar!AP12 -> 0 | AC12: =Prop2021DistTar!AQ12 -> 0 | AD12: =Prop2021DistTar!AR12 -> 0 | AF12: 0 | AG12: 0 | AH12: 0 | AI12: 0 | AJ12: 0 | AK12: 0 | AL12: 0 | AM12: 0 | AN12: 0 | AO12: 0 | AP12: 0 | AQ12: 0 | AR12: 0 | AS12: 0
B13: =Prop2021DistTar!B13 -> NEE20 Small Two Rate | D13: 0 | E13: 0.5751 | F13: 0 | G13: 0 | H13: 0 | I13: 0.4828 | J13: 0 | K13: 0 | L13: 0 | M13: 0 | N13: 0 | O13: 0 | P13: 0 | R13: =Prop2021DistTar!AF13 -> 25675.15816 | S13: =Prop2021DistTar!AG13 -> 68100453.35 | T13: =Prop2021DistTar!AH13 -> 0 | U13: =Prop2021DistTar!AI13 -> 0 | V13: =Prop2021DistTar!AJ13 -> 0 | W13: =Prop2021DistTar!AK13 -> 90999048.34 | X13: =Prop2021DistTar!AL13 -> 0 | Y13: =Prop2021DistTar!AM13 -> 0 | Z13: =Prop2021DistTar!AN13 -> 0 | AA13: =Prop2021DistTar!AO13 -> 0 | AB13: =Prop2021DistTar!AP13 -> 0 | AC13: =Prop2021DistTar!AQ13 -> 0 | AD13: =Prop2021DistTar!AR13 -> 0 | AF13: 0 | AG13: 391645.7072 | AH13: 0 | AI13: 0 | AJ13: 0 | AK13: 439343.4054 | AL13: 0 | AM13: 0 | AN13: 0 | AO13: 0 | AP13: 0 | AQ13: 0 | AR13: 0 | AS13: 830989.1126
B14: =Prop2021DistTar!B14 -> NSP20 Small Two Rate | D14: 0 | E14: 0.5751 | F14: 0.5751 | G14: 0.5751 | H14: 0 | I14: 0.4828 | J14: 0 | K14: 0 | L14: 0 | M14: 0 | N14: 0 | O14: 0 | P14: 0 | R14: =Prop2021DistTar!AF14 -> 7 | S14: =Prop2021DistTar!AG14 -> 1224.099089 | T14: =Prop2021DistTar!AH14 -> 935.2246949 | U14: =Prop2021DistTar!AI14 -> 295.5317039 | V14: =Prop2021DistTar!AJ14 -> 0 | W14: =Prop2021DistTar!AK14 -> 40249.81788 | X14: =Prop2021DistTar!AL14 -> 0 | Y14: =Prop2021DistTar!AM14 -> 0 | Z14: =Prop2021DistTar!AN14 -> 0 | AA14: =Prop2021DistTar!AO14 -> 0 | AB14: =Prop2021DistTar!AP14 -> 0 | AC14: =Prop2021DistTar!AQ14 -> 0 | AD14: =Prop2021DistTar!AR14 -> 0 | AF14: 0 | AG14: 7.039793863 | AH14: 5.37847722 | AI14: 1.699602829 | AJ14: 0 | AK14: 194.3261207 | AL14: 0 | AM14: 0 | AN14: 0 | AO14: 0 | AP14: 0 | AQ14: 0 | AR14: 0 | AS14: 208.4439947
B15: =Prop2021DistTar!B15 -> NGT26 Small Interval Multi Rate | D15: 0 | E15: 0.5751 | F15: 0.5751 | G15: 0.5751 | H15: 0.5751 | I15: 0.4828 | J15: 0.4828 | K15: 0 | L15: 0 | M15: 0 | N15: 0 | O15: 0 | P15: 0 | R15: =Prop2021DistTar!AF15 -> 778.3385935 | S15: =Prop2021DistTar!AG15 -> 1323806.292 | T15: =Prop2021DistTar!AH15 -> 0 | U15: =Prop2021DistTar!AI15 -> 1378430.228 | V15: =Prop2021DistTar!AJ15 -> 0 | W15: =Prop2021DistTar!AK15 -> 1366870.175 | X15: =Prop2021DistTar!AL15 -> 0 | Y15: =Prop2021DistTar!AM15 -> 0 | Z15: =Prop2021DistTar!AN15 -> 0 | AA15: =Prop2021DistTar!AO15 -> 0 | AB15: =Prop2021DistTar!AP15 -> 0 | AC15: =Prop2021DistTar!AQ15 -> 0 | AD15: =Prop2021DistTar!AR15 -> 0 | AF15: 0 | AG15: 7613.209983 | AH15: 0 | AI15: 7927.352242 | AJ15: 0 | AK15: 6599.249205 | AL15: 0 | AM15: 0 | AN15: 0 | AO15: 0 | AP15: 0 | AQ15: 0 | AR15: 0 | AS15: 22139.81143
B16: =Prop2021DistTar!B16 -> NEN20 Small Two Rate - Embedded Network | D16: 0 | E16: 0.5751 | F16: 0 | G16: 0 | H16: 0 | I16: 0.4828 | J16: 0 | K16: 0 | L16: 0 | M16: 0 | N16: 0 | O16: 0 | P16: 0 | R16: =Prop2021DistTar!AF16 -> 0 | S16: =Prop2021DistTar!AG16 -> 0 | T16: =Prop2021DistTar!AH16 -> 0 | U16: =Prop2021DistTar!AI16 -> 0 | V16: =Prop2021DistTar!AJ16 -> 0 | W16: =Prop2021DistTar!AK16 -> 0 | X16: =Prop2021DistTar!AL16 -> 0 | Y16: =Prop2021DistTar!AM16 -> 0 | Z16: =Prop2021DistTar!AN16 -> 0 | AA16: =Prop2021DistTar!AO16 -> 0 | AB16: =Prop2021DistTar!AP16 -> 0 | AC16: =Prop2021DistTar!AQ16 -> 0 | AD16: =Prop2021DistTar!AR16 -> 0 | AF16: 0 | AG16: 0 | AH16: 0 | AI16: 0 | AJ16: 0 | AK16: 0 | AL16: 0 | AM16: 0 | AN16: 0 | AO16: 0 | AP16: 0 | AQ16: 0 | AR16: 0 | AS16: 0
B17: =Prop2021DistTar!B17 -> NEE21 Small Business Two Rate | D17: 0 | E17: 0.5751 | F17: 0 | G17: 0 | H17: 0 | I17: 0.4828 | J17: 0 | K17: 0 | L17: 0 | M17: 0 | N17: 0 | O17: 0 | P17: 0 | R17: =Prop2021DistTar!AF17 -> 14772.51818 | S17: =Prop2021DistTar!AG17 -> 95606928.02 | T17: =Prop2021DistTar!AH17 -> 0 | U17: =Prop2021DistTar!AI17 -> 0 | V17: =Prop2021DistTar!AJ17 -> 0 | W17: =Prop2021DistTar!AK17 -> 71167541.72 | X17: =Prop2021DistTar!AL17 -> 0 | Y17: =Prop2021DistTar!AM17 -> -6826817.572 | Z17: =Prop2021DistTar!AN17 -> 0 | AA17: =Prop2021DistTar!AO17 -> 0 | AB17: =Prop2021DistTar!AP17 -> 0 | AC17: =Prop2021DistTar!AQ17 -> 0 | AD17: =Prop2021DistTar!AR17 -> 0 | AF17: 0 | AG17: 549835.443 | AH17: 0 | AI17: 0 | AJ17: 0 | AK17: 343596.8914 | AL17: 0 | AM17: 0 | AN17: 0 | AO17: 0 | AP17: 0 | AQ17: 0 | AR17: 0 | AS17: 893432.3344
B18: =Prop2021DistTar!B18 -> NSP21 Small Business Two Rate | D18: 0 | E18: 0.5751 | F18: 0.5751 | G18: 0.5751 | H18: 0 | I18: 0.4828 | J18: 0 | K18: 0 | L18: 0 | M18: 0 | N18: 0 | O18: 0 | P18: 0 | R18: =Prop2021DistTar!AF18 -> 12.38757058 | S18: =Prop2021DistTar!AG18 -> 3155.707254 | T18: =Prop2021DistTar!AH18 -> 11732.08998 | U18: =Prop2021DistTar!AI18 -> 5294.728203 | V18: =Prop2021DistTar!AJ18 -> 0 | W18: =Prop2021DistTar!AK18 -> 229094.7831 | X18: =Prop2021DistTar!AL18 -> 0 | Y18: =Prop2021DistTar!AM18 -> -1050 | Z18: =Prop2021DistTar!AN18 -> 0 | AA18: =Prop2021DistTar!AO18 -> 0 | AB18: =Prop2021DistTar!AP18 -> 0 | AC18: =Prop2021DistTar!AQ18 -> 0 | AD18: =Prop2021DistTar!AR18 -> 0 | AF18: 0 | AG18: 18.14847242 | AH18: 67.47124946 | AI18: 30.4499819 | AJ18: 0 | AK18: 1106.069613 | AL18: 0 | AM18: 0 | AN18: 0 | AO18: 0 | AP18: 0 | AQ18: 0 | AR18: 0 | AS18: 1222.139317
B19: =Prop2021DistTar!B19 -> NSP27 Small Business Two Rate | D19: 0 | E19: 0.5751 | F19: 0.5751 | G19: 0.5751 | H19: 0 | I19: 0.4828 | J19: 0 | K19: 0 | L19: 0 | M19: 0 | N19: 0 | O19: 0 | P19: 0 | R19: =Prop2021DistTar!AF19 -> 111.8313559 | S19: =Prop2021DistTar!AG19 -> 26116.11276 | T19: =Prop2021DistTar!AH19 -> 26228.72567 | U19: =Prop2021DistTar!AI19 -> 65430.57892 | V19: =Prop2021DistTar!AJ19 -> 0 | W19: =Prop2021DistTar!AK19 -> 7355360.386 | X19: =Prop2021DistTar!AL19 -> 0 | Y19: =Prop2021DistTar!AM19 -> -13316.4 | Z19: =Prop2021DistTar!AN19 -> 0 | AA19: =Prop2021DistTar!AO19 -> 0 | AB19: =Prop2021DistTar!AP19 -> 0 | AC19: =Prop2021DistTar!AQ19 -> 0 | AD19: =Prop2021DistTar!AR19 -> 0 | AF19: 0 | AG19: 150.1937645 | AH19: 150.8414014 | AI19: 376.2912593 | AJ19: 0 | AK19: 35511.67994 | AL19: 0 | AM19: 0 | AN19: 0 | AO19: 0 | AP19: 0 | AQ19: 0 | AR19: 0 | AS19: 36189.00637
B20: =Prop2021DistTar!B20 -> NEN21 Small Business Two Rate - Embedded Network | D20: 0 | E20: 0.5751 | F20: 0 | G20: 0 | H20: 0 | I20: 0.4828 | J20: 0 | K20: 0 | L20: 0 | M20: 0 | N20: 0 | O20: 0 | P20: 0 | R20: =Prop2021DistTar!AF20 -> 0 | S20: =Prop2021DistTar!AG20 -> 0 | T20: =Prop2021DistTar!AH20 -> 0 | U20: =Prop2021DistTar!AI20 -> 0 | V20: =Prop2021DistTar!AJ20 -> 0 | W20: =Prop2021DistTar!AK20 -> 0 | X20: =Prop2021DistTar!AL20 -> 0 | Y20: =Prop2021DistTar!AM20 -> 0 | Z20: =Prop2021DistTar!AN20 -> 0 | AA20: =Prop2021DistTar!AO20 -> 0 | AB20: =Prop2021DistTar!AP20 -> 0 | AC20: =Prop2021DistTar!AQ20 -> 0 | AD20: =Prop2021DistTar!AR20 -> 0 | AF20: 0 | AG20: 0 | AH20: 0 | AI20: 0 | AJ20: 0 | AK20: 0 | AL20: 0 | AM20: 0 | AN20: 0 | AO20: 0 | AP20: 0 | AQ20: 0 | AR20: 0 | AS20: 0
B21: =Prop2021DistTar!B21 -> NEE23 Photovoltaic | D21: 0 | E21: 0.5751 | F21: 0 | G21: 0 | H21: 0 | I21: 0.4828 | J21: 0 | K21: 0 | L21: 0 | M21: 0 | N21: 0 | O21: 0 | P21: 0 | R21: =Prop2021DistTar!AF21 -> 78747.11053 | S21: =Prop2021DistTar!AG21 -> 148727012 | T21: =Prop2021DistTar!AH21 -> 0 | U21: =Prop2021DistTar!AI21 -> 0 | V21: =Prop2021DistTar!AJ21 -> 0 | W21: =Prop2021DistTar!AK21 -> 186285788.9 | X21: =Prop2021DistTar!AL21 -> 0 | Y21: =Prop2021DistTar!AM21 -> -137295086.9 | Z21: =Prop2021DistTar!AN21 -> 0 | AA21: =Prop2021DistTar!AO21 -> 0 | AB21: =Prop2021DistTar!AP21 -> 0 | AC21: =Prop2021DistTar!AQ21 -> 0 | AD21: =Prop2021DistTar!AR21 -> 0 | AF21: 0 | AG21: 855329.0461 | AH21: 0 | AI21: 0 | AJ21: 0 | AK21: 899387.7886 | AL21: 0 | AM21: 0 | AN21: 0 | AO21: 0 | AP21: 0 | AQ21: 0 | AR21: 0 | AS21: 1754716.835
B22: =Prop2021DistTar!B22 -> NSP23 Photovoltaic | D22: 0 | E22: 0.5751 | F22: 0.5751 | G22: 0.5751 | H22: 0 | I22: 0.4828 | J22: 0 | K22: 0 | L22: 0 | M22: 0 | N22: 0 | O22: 0 | P22: 0 | R22: =Prop2021DistTar!AF22 -> 153.588696 | S22: =Prop2021DistTar!AG22 -> 1470.608659 | T22: =Prop2021DistTar!AH22 -> 1503.732715 | U22: =Prop2021DistTar!AI22 -> 36097.96162 | V22: =Prop2021DistTar!AJ22 -> 0 | W22: =Prop2021DistTar!AK22 -> 613592.2774 | X22: =Prop2021DistTar!AL22 -> 0 | Y22: =Prop2021DistTar!AM22 -> -354454.3172 | Z22: =Prop2021DistTar!AN22 -> 0 | AA22: =Prop2021DistTar!AO22 -> 0 | AB22: =Prop2021DistTar!AP22 -> 0 | AC22: =Prop2021DistTar!AQ22 -> 0 | AD22: =Prop2021DistTar!AR22 -> 0 | AF22: 0 | AG22: 8.457470398 | AH22: 8.647966846 | AI22: 207.5993773 | AJ22: 0 | AK22: 2962.423515 | AL22: 0 | AM22: 0 | AN22: 0 | AO22: 0 | AP22: 0 | AQ22: 0 | AR22: 0 | AS22: 3187.12833
B23: =Prop2021DistTar!B23 -> NEE24 Small rate 5 day 8 to 8 | D23: 0 | E23: 0.5751 | F23: 0 | G23: 0 | H23: 0 | I23: 0.4828 | J23: 0 | K23: 0 | L23: 0 | M23: 0 | N23: 0 | O23: 0 | P23: 0 | R23: =Prop2021DistTar!AF23 -> 1100.169297 | S23: =Prop2021DistTar!AG23 -> 1290491.094 | T23: =Prop2021DistTar!AH23 -> 0 | U23: =Prop2021DistTar!AI23 -> 0 | V23: =Prop2021DistTar!AJ23 -> 0 | W23: =Prop2021DistTar!AK23 -> 3209655.895 | X23: =Prop2021DistTar!AL23 -> 0 | Y23: =Prop2021DistTar!AM23 -> 0 | Z23: =Prop2021DistTar!AN23 -> 0 | AA23: =Prop2021DistTar!AO23 -> 0 | AB23: =Prop2021DistTar!AP23 -> 0 | AC23: =Prop2021DistTar!AQ23 -> 0 | AD23: =Prop2021DistTar!AR23 -> 0 | AF23: 0 | AG23: 7421.614279 | AH23: 0 | AI23: 0 | AJ23: 0 | AK23: 15496.21866 | AL23: 0 | AM23: 0 | AN23: 0 | AO23: 0 | AP23: 0 | AQ23: 0 | AR23: 0 | AS23: 22917.83294
B24: =Prop2021DistTar!B24 -> NEE25 Small business rate 5 day 8 to 8 | D24: 0 | E24: 0.5751 | F24: 0 | G24: 0 | H24: 0 | I24: 0.4828 | J24: 0 | K24: 0 | L24: 0 | M24: 0 | N24: 0 | O24: 0 | P24: 0 | R24: =Prop2021DistTar!AF24 -> 3.5 | S24: =Prop2021DistTar!AG24 -> 93117.10304 | T24: =Prop2021DistTar!AH24 -> 0 | U24: =Prop2021DistTar!AI24 -> 0 | V24: =Prop2021DistTar!AJ24 -> 0 | W24: =Prop2021DistTar!AK24 -> 100928.9976 | X24: =Prop2021DistTar!AL24 -> 0 | Y24: =Prop2021DistTar!AM24 -> 0 | Z24: =Prop2021DistTar!AN24 -> 0 | AA24: =Prop2021DistTar!AO24 -> 0 | AB24: =Prop2021DistTar!AP24 -> 0 | AC24: =Prop2021DistTar!AQ24 -> 0 | AD24: =Prop2021DistTar!AR24 -> 0 | AF24: 0 | AG24: 535.5164596 | AH24: 0 | AI24: 0 | AJ24: 0 | AK24: 487.2852003 | AL24: 0 | AM24: 0 | AN24: 0 | AO24: 0 | AP24: 0 | AQ24: 0 | AR24: 0 | AS24: 1022.80166
B25: =Prop2021DistTar!B25 -> NEE30 Small Dedicated | D25: 0 | E25: 0 | F25: 0 | G25: 0 | H25: 0 | I25: 0.4828 | J25: 0 | K25: 0 | L25: 0 | M25: 0 | N25: 0 | O25: 0 | P25: 0 | R25: =Prop2021DistTar!AF25 -> 42479.55853 | S25: =Prop2021DistTar!AG25 -> 0 | T25: =Prop2021DistTar!AH25 -> 0 | U25: =Prop2021DistTar!AI25 -> 0 | V25: =Prop2021DistTar!AJ25 -> 0 | W25: =Prop2021DistTar!AK25 -> 54981945.82 | X25: =Prop2021DistTar!AL25 -> 0 | Y25: =Prop2021DistTar!AM25 -> 0 | Z25: =Prop2021DistTar!AN25 -> 0 | AA25: =Prop2021DistTar!AO25 -> 0 | AB25: =Prop2021DistTar!AP25 -> 0 | AC25: =Prop2021DistTar!AQ25 -> 0 | AD25: =Prop2021DistTar!AR25 -> 0 | AF25: 0 | AG25: 0 | AH25: 0 | AI25: 0 | AJ25: 0 | AK25: 265452.8344 | AL25: 0 | AM25: 0 | AN25: 0 | AO25: 0 | AP25: 0 | AQ25: 0 | AR25: 0 | AS25: 265452.8344
B26: =Prop2021DistTar!B26 -> NSP30 Small Dedicated | D26: 0 | E26: 0 | F26: 0 | G26: 0 | H26: 0 | I26: 0.4828 | J26: 0 | K26: 0 | L26: 0 | M26: 0 | N26: 0 | O26: 0 | P26: 0 | R26: =Prop2021DistTar!AF26 -> 0 | S26: =Prop2021DistTar!AG26 -> 0 | T26: =Prop2021DistTar!AH26 -> 0 | U26: =Prop2021DistTar!AI26 -> 0 | V26: =Prop2021DistTar!AJ26 -> 0 | W26: =Prop2021DistTar!AK26 -> 0 | X26: =Prop2021DistTar!AL26 -> 0 | Y26: =Prop2021DistTar!AM26 -> 0 | Z26: =Prop2021DistTar!AN26 -> 0 | AA26: =Prop2021DistTar!AO26 -> 0 | AB26: =Prop2021DistTar!AP26 -> 0 | AC26: =Prop2021DistTar!AQ26 -> 0 | AD26: =Prop2021DistTar!AR26 -> 0 | AF26: 0 | AG26: 0 | AH26: 0 | AI26: 0 | AJ26: 0 | AK26: 0 | AL26: 0 | AM26: 0 | AN26: 0 | AO26: 0 | AP26: 0 | AQ26: 0 | AR26: 0 | AS26: 0
B27: =Prop2021DistTar!B27 -> NEE31 Small Dedicated-afternoon boost | D27: 0 | E27: 0 | F27: 0 | G27: 0 | H27: 0 | I27: 0.4828 | J27: 0 | K27: 0 | L27: 0 | M27: 0 | N27: 0 | O27: 0 | P27: 0 | R27: =Prop2021DistTar!AF27 -> 6284.002625 | S27: =Prop2021DistTar!AG27 -> 0 | T27: =Prop2021DistTar!AH27 -> 0 | U27: =Prop2021DistTar!AI27 -> 0 | V27: =Prop2021DistTar!AJ27 -> 0 | W27: =Prop2021DistTar!AK27 -> 15874112.38 | X27: =Prop2021DistTar!AL27 -> 0 | Y27: =Prop2021DistTar!AM27 -> 0 | Z27: =Prop2021DistTar!AN27 -> 0 | AA27: =Prop2021DistTar!AO27 -> 0 | AB27: =Prop2021DistTar!AP27 -> 0 | AC27: =Prop2021DistTar!AQ27 -> 0 | AD27: =Prop2021DistTar!AR27 -> 0 | AF27: 0 | AG27: 0 | AH27: 0 | AI27: 0 | AJ27: 0 | AK27: 76640.21455 | AL27: 0 | AM27: 0 | AN27: 0 | AO27: 0 | AP27: 0 | AQ27: 0 | AR27: 0 | AS27: 76640.21455
B28: =Prop2021DistTar!B28 -> NSP31 Small Dedicated-afternoon boost | D28: 0 | E28: 0 | F28: 0 | G28: 0 | H28: 0 | I28: 0.4828 | J28: 0 | K28: 0 | L28: 0 | M28: 0 | N28: 0 | O28: 0 | P28: 0 | R28: =Prop2021DistTar!AF28 -> 0 | S28: =Prop2021DistTar!AG28 -> 0 | T28: =Prop2021DistTar!AH28 -> 0 | U28: =Prop2021DistTar!AI28 -> 0 | V28: =Prop2021DistTar!AJ28 -> 0 | W28: =Prop2021DistTar!AK28 -> 0 | X28: =Prop2021DistTar!AL28 -> 0 | Y28: =Prop2021DistTar!AM28 -> 0 | Z28: =Prop2021DistTar!AN28 -> 0 | AA28: =Prop2021DistTar!AO28 -> 0 | AB28: =Prop2021DistTar!AP28 -> 0 | AC28: =Prop2021DistTar!AQ28 -> 0 | AD28: =Prop2021DistTar!AR28 -> 0 | AF28: 0 | AG28: 0 | AH28: 0 | AI28: 0 | AJ28: 0 | AK28: 0 | AL28: 0 | AM28: 0 | AN28: 0 | AO28: 0 | AP28: 0 | AQ28: 0 | AR28: 0 | AS28: 0
B29: =Prop2021DistTar!B29 -> NEE32 Dedicated Circuit 8 to 8 | D29: 0 | E29: 0 | F29: 0 | G29: 0 | H29: 0 | I29: 0.4828 | J29: 0 | K29: 0 | L29: 0 | M29: 0 | N29: 0 | O29: 0 | P29: 0 | R29: =Prop2021DistTar!AF29 -> 1823.930886 | S29: =Prop2021DistTar!AG29 -> 0 | T29: =Prop2021DistTar!AH29 -> 0 | U29: =Prop2021DistTar!AI29 -> 0 | V29: =Prop2021DistTar!AJ29 -> 0 | W29: =Prop2021DistTar!AK29 -> 2310467.8 | X29: =Prop2021DistTar!AL29 -> 0 | Y29: =Prop2021DistTar!AM29 -> 0 | Z29: =Prop2021DistTar!AN29 -> 0 | AA29: =Prop2021DistTar!AO29 -> 0 | AB29: =Prop2021DistTar!AP29 -> 0 | AC29: =Prop2021DistTar!AQ29 -> 0 | AD29: =Prop2021DistTar!AR29 -> 0 | AF29: 0 | AG29: 0 | AH29: 0 | AI29: 0 | AJ29: 0 | AK29: 11154.93854 | AL29: 0 | AM29: 0 | AN29: 0 | AO29: 0 | AP29: 0 | AQ29: 0 | AR29: 0 | AS29: 11154.93854
B30: =Prop2021DistTar!B30 -> NSP32 Dedicated Circuit 8 to 8 | D30: 0 | E30: 0 | F30: 0 | G30: 0 | H30: 0 | I30: 0.4828 | J30: 0 | K30: 0 | L30: 0 | M30: 0 | N30: 0 | O30: 0 | P30: 0 | R30: =Prop2021DistTar!AF30 -> 0 | S30: =Prop2021DistTar!AG30 -> 0 | T30: =Prop2021DistTar!AH30 -> 0 | U30: =Prop2021DistTar!AI30 -> 0 | V30: =Prop2021DistTar!AJ30 -> 0 | W30: =Prop2021DistTar!AK30 -> 0 | X30: =Prop2021DistTar!AL30 -> 0 | Y30: =Prop2021DistTar!AM30 -> 0 | Z30: =Prop2021DistTar!AN30 -> 0 | AA30: =Prop2021DistTar!AO30 -> 0 | AB30: =Prop2021DistTar!AP30 -> 0 | AC30: =Prop2021DistTar!AQ30 -> 0 | AD30: =Prop2021DistTar!AR30 -> 0 | AF30: 0 | AG30: 0 | AH30: 0 | AI30: 0 | AJ30: 0 | AK30: 0 | AL30: 0 | AM30: 0 | AN30: 0 | AO30: 0 | AP30: 0 | AQ30: 0 | AR30: 0 | AS30: 0
B31: =Prop2021DistTar!B31 -> NEE40 Medium Single Rate - closed to new customers | D31: 0 | E31: 0.5751 | F31: 0 | G31: 0 | H31: 0 | I31: 0 | J31: 0 | K31: 0 | L31: 0 | M31: 0 | N31: 0 | O31: 0 | P31: 0 | R31: =Prop2021DistTar!AF31 -> 118.2170397 | S31: =Prop2021DistTar!AG31 -> 2580392.564 | T31: =Prop2021DistTar!AH31 -> 0 | U31: =Prop2021DistTar!AI31 -> 0 | V31: =Prop2021DistTar!AJ31 -> 0 | W31: =Prop2021DistTar!AK31 -> 0 | X31: =Prop2021DistTar!AL31 -> 0 | Y31: =Prop2021DistTar!AM31 -> 0 | Z31: =Prop2021DistTar!AN31 -> 0 | AA31: =Prop2021DistTar!AO31 -> 0 | AB31: =Prop2021DistTar!AP31 -> 0 | AC31: =Prop2021DistTar!AQ31 -> 0 | AD31: =Prop2021DistTar!AR31 -> 0 | AF31: 0 | AG31: 14839.83763 | AH31: 0 | AI31: 0 | AJ31: 0 | AK31: 0 | AL31: 0 | AM31: 0 | AN31: 0 | AO31: 0 | AP31: 0 | AQ31: 0 | AR31: 0 | AS31: 14839.83763
B32: =Prop2021DistTar!B32 -> NEE51 Medium Two Rate 5Day - closed to new customers - <160MWh to NEE21 | D32: 0 | E32: 0.5751 | F32: 0 | G32: 0 | H32: 0 | I32: 0.4828 | J32: 0 | K32: 0 | L32: 0 | M32: 0 | N32: 0 | O32: 0 | P32: 0 | R32: =Prop2021DistTar!AF32 -> 189.9351202 | S32: =Prop2021DistTar!AG32 -> 21635948.95 | T32: =Prop2021DistTar!AH32 -> 0 | U32: =Prop2021DistTar!AI32 -> 0 | V32: =Prop2021DistTar!AJ32 -> 0 | W32: =Prop2021DistTar!AK32 -> 18217897.32 | X32: =Prop2021DistTar!AL32 -> 0 | Y32: =Prop2021DistTar!AM32 -> 0 | Z32: =Prop2021DistTar!AN32 -> 0 | AA32: =Prop2021DistTar!AO32 -> 0 | AB32: =Prop2021DistTar!AP32 -> 0 | AC32: =Prop2021DistTar!AQ32 -> 0 | AD32: =Prop2021DistTar!AR32 -> 0 | AF32: 0 | AG32: 124428.3424 | AH32: 0 | AI32: 0 | AJ32: 0 | AK32: 87956.00828 | AL32: 0 | AM32: 0 | AN32: 0 | AO32: 0 | AP32: 0 | AQ32: 0 | AR32: 0 | AS32: 212384.3507
B33: =Prop2021DistTar!B33 -> NEE55 Snowfields Tariff | D33: 232 | E33: 0 | F33: 0 | G33: 0 | H33: 0 | I33: 0 | J33: 0 | K33: 0 | L33: 0 | M33: 0 | N33: 0 | O33: 0 | P33: 0 | R33: =Prop2021DistTar!AF33 -> 0.5 | S33: =Prop2021DistTar!AG33 -> 36029.74523 | T33: =Prop2021DistTar!AH33 -> 0 | U33: =Prop2021DistTar!AI33 -> 0 | V33: =Prop2021DistTar!AJ33 -> 0 | W33: =Prop2021DistTar!AK33 -> 37046.36548 | X33: =Prop2021DistTar!AL33 -> 0 | Y33: =Prop2021DistTar!AM33 -> 0 | Z33: =Prop2021DistTar!AN33 -> 0 | AA33: =Prop2021DistTar!AO33 -> 0 | AB33: =Prop2021DistTar!AP33 -> 0 | AC33: =Prop2021DistTar!AQ33 -> 0 | AD33: =Prop2021DistTar!AR33 -> 0 | AF33: =D33*R33 -> 116 | AG33: =E33/100*S33 -> 0 | AH33: 0 | AI33: 0 | AJ33: 0 | AK33: 0 | AL33: 0 | AM33: 0 | AN33: 0 | AO33: =M33*AA33 -> 0 | AP33: =N33*AB33 -> 0 | AQ33: =O33*AC33 -> 0 | AR33: =P33*AD33 -> 0 | AS33: =SUM(AF33:AR33) -> 116
B34: =Prop2021DistTar!B34 -> NSP55 Snowfields Tariff | D34: 232 | E34: 0 | F34: 0 | G34: 0 | H34: 0 | I34: 0 | J34: 0 | K34: 0 | L34: 0 | M34: 0 | N34: 0 | O34: 0 | P34: 0 | R34: =Prop2021DistTar!AF34 -> 3.5 | S34: =Prop2021DistTar!AG34 -> 9550.226913 | T34: =Prop2021DistTar!AH34 -> 54117.95251 | U34: =Prop2021DistTar!AI34 -> 25329.33022 | V34: =Prop2021DistTar!AJ34 -> 0 | W34: =Prop2021DistTar!AK34 -> 535690.8771 | X34: =Prop2021DistTar!AL34 -> 0 | Y34: =Prop2021DistTar!AM34 -> 0 | Z34: =Prop2021DistTar!AN34 -> 0 | AA34: =Prop2021DistTar!AO34 -> 0 | AB34: =Prop2021DistTar!AP34 -> 0 | AC34: =Prop2021DistTar!AQ34 -> 0 | AD34: =Prop2021DistTar!AR34 -> 0 | AF34: 812 | AG34: 0 | AH34: 0 | AI34: 0 | AJ34: 0 | AK34: 0 | AL34: 0 | AM34: 0 | AN34: 0 | AO34: 0 | AP34: 0 | AQ34: 0 | AR34: 0 | AS34: 812
B35: =Prop2021DistTar!B35 -> NSP56 Medium Demand Multi-rate | D35: 270 | E35: 0 | F35: 0 | G35: 0 | H35: 0 | I35: 0 | J35: 0 | K35: 0 | L35: 0 | M35: 0 | N35: 0 | O35: 0 | P35: 0 | R35: =Prop2021DistTar!AF35 -> 635.90625 | S35: =Prop2021DistTar!AG35 -> 42307312.42 | T35: =Prop2021DistTar!AH35 -> 32269925.85 | U35: =Prop2021DistTar!AI35 -> 0 | V35: =Prop2021DistTar!AJ35 -> 0 | W35: =Prop2021DistTar!AK35 -> 53760873.8 | X35: =Prop2021DistTar!AL35 -> 0 | Y35: =Prop2021DistTar!AM35 -> 0 | Z35: =Prop2021DistTar!AN35 -> 0 | AA35: =Prop2021DistTar!AO35 -> 106189.7327 | AB35: =Prop2021DistTar!AP35 -> 37696.83715 | AC35: =Prop2021DistTar!AQ35 -> 0 | AD35: =Prop2021DistTar!AR35 -> 0 | AF35: =D35*R35 -> 171694.6875 | AG35: =E35/100*S35 -> 0 | AH35: =F35/100*T35 -> 0 | AI35: =G35/100*U35 -> 0 | AJ35: =H35/100*V35 -> 0 | AK35: =I35/100*W35 -> 0 | AL35: =J35/100*X35 -> 0 | AM35: =K35/100*Y35 -> 0 | AN35: =L35/100*Z35 -> 0 | AO35: =M35*AA35 -> 0 | AP35: =N35*AB35 -> 0 | AQ35: =O35*AC35 -> 0 | AR35: =P35*AD35 -> 0 | AS35: =SUM(AF35:AR35) -> 171694.6875
B36: =Prop2021DistTar!B36 -> NEN56 Medium Demand Multi-rate - Embedded Network | D36: 270 | E36: 0 | F36: 0 | G36: 0 | H36: 0 | I36: 0 | J36: 0 | K36: 0 | L36: 0 | M36: 0 | N36: 0 | O36: 0 | P36: 0 | R36: =Prop2021DistTar!AF36 -> 1 | S36: =Prop2021DistTar!AG36 -> 48857.90064 | T36: =Prop2021DistTar!AH36 -> 52671.60783 | U36: =Prop2021DistTar!AI36 -> 0 | V36: =Prop2021DistTar!AJ36 -> 0 | W36: =Prop2021DistTar!AK36 -> 48862.91001 | X36: =Prop2021DistTar!AL36 -> 0 | Y36: =Prop2021DistTar!AM36 -> 0 | Z36: =Prop2021DistTar!AN36 -> 0 | AA36: =Prop2021DistTar!AO36 -> 260 | AB36: =Prop2021DistTar!AP36 -> 73.395 | AC36: =Prop2021DistTar!AQ36 -> 0 | AD36: =Prop2021DistTar!AR36 -> 0 | AF36: 270 | AG36: 0 | AH36: 0 | AI36: 0 | AJ36: 0 | AK36: 0 | AL36: 0 | AM36: 0 | AN36: 0 | AO36: 0 | AP36: 0 | AQ36: 0 | AR36: 0 | AS36: 270
B37: =Prop2021DistTar!B37 -> NEE60 Medium Two Rate 7Day - closed to new customers | D37: 232 | E37: 0 | F37: 0 | G37: 0 | H37: 0 | I37: 0 | J37: 0 | K37: 0 | L37: 0 | M37: 0 | N37: 0 | O37: 0 | P37: 0 | R37: =Prop2021DistTar!AF37 -> 151.6656605 | S37: =Prop2021DistTar!AG37 -> 11912095.65 | T37: =Prop2021DistTar!AH37 -> 0 | U37: =Prop2021DistTar!AI37 -> 0 | V37: =Prop2021DistTar!AJ37 -> 0 | W37: =Prop2021DistTar!AK37 -> 3866727.129 | X37: =Prop2021DistTar!AL37 -> 0 | Y37: =Prop2021DistTar!AM37 -> 0 | Z37: =Prop2021DistTar!AN37 -> 0 | AA37: =Prop2021DistTar!AO37 -> 0 | AB37: =Prop2021DistTar!AP37 -> 0 | AC37: =Prop2021DistTar!AQ37 -> 0 | AD37: =Prop2021DistTar!AR37 -> 0 | AF37: 35186.43324 | AG37: 0 | AH37: 0 | AI37: 0 | AJ37: 0 | AK37: 0 | AL37: 0 | AM37: 0 | AN37: 0 | AO37: 0 | AP37: 0 | AQ37: 0 | AR37: 0 | AS37: 35186.43324
B38: =Prop2021DistTar!B38 -> NEE52 Unmetered | D38: 0 | E38: 0.5751 | F38: 0 | G38: 0 | H38: 0 | I38: 0.4828 | J38: 0 | K38: 0 | L38: 0 | M38: 0 | N38: 0 | O38: 0 | P38: 0 | R38: =Prop2021DistTar!AF38 -> 44.5 | S38: =Prop2021DistTar!AG38 -> 7313424.244 | T38: =Prop2021DistTar!AH38 -> 0 | U38: =Prop2021DistTar!AI38 -> 0 | V38: =Prop2021DistTar!AJ38 -> 0 | W38: =Prop2021DistTar!AK38 -> 18444180.33 | X38: =Prop2021DistTar!AL38 -> 0 | Y38: =Prop2021DistTar!AM38 -> 0 | Z38: =Prop2021DistTar!AN38 -> 0 | AA38: =Prop2021DistTar!AO38 -> 0 | AB38: =Prop2021DistTar!AP38 -> 0 | AC38: =Prop2021DistTar!AQ38 -> 0 | AD38: =Prop2021DistTar!AR38 -> 0 | AF38: 0 | AG38: 42059.50283 | AH38: 0 | AI38: 0 | AJ38: 0 | AK38: 89048.50262 | AL38: 0 | AM38: 0 | AN38: =L38/100*Z38 -> 0 | AO38: 0 | AP38: 0 | AQ38: 0 | AR38: 0 | AS38: 131108.0054
B39: =Prop2021DistTar!B39 -> NEE74 LV Large Two Rate 5Day | D39: 270 | E39: 0 | F39: 0 | G39: 0 | H39: 0 | I39: 0 | J39: 0 | K39: 0 | L39: 0 | M39: 0 | N39: 0 | O39: 0 | P39: 0 | R39: =Prop2021DistTar!AF39 -> 3.5 | S39: =Prop2021DistTar!AG39 -> 941231.6583 | T39: =Prop2021DistTar!AH39 -> 0 | U39: =Prop2021DistTar!AI39 -> 0 | V39: =Prop2021DistTar!AJ39 -> 0 | W39: =Prop2021DistTar!AK39 -> 1062334.427 | X39: =Prop2021DistTar!AL39 -> 0 | Y39: =Prop2021DistTar!AM39 -> 0 | Z39: =Prop2021DistTar!AN39 -> 0 | AA39: =Prop2021DistTar!AO39 -> 0 | AB39: =Prop2021DistTar!AP39 -> 0 | AC39: =Prop2021DistTar!AQ39 -> 0 | AD39: =Prop2021DistTar!AR39 -> 0 | AF39: 945 | AG39: 0 | AH39: 0 | AI39: 0 | AJ39: 0 | AK39: 0 | AL39: 0 | AM39: 0 | AN39: 0 | AO39: 0 | AP39: 0 | AQ39: 0 | AR39: 0 | AS39: 945
B40: =Prop2021DistTar!B40 -> NSP75 Large Multi-rate <750 kVA | D40: 270 | E40: 0 | F40: 0 | G40: 0 | H40: 0 | I40: 0 | J40: 0 | K40: 0 | L40: 0 | M40: 0 | N40: 0 | O40: 0 | P40: 0 | R40: =Prop2021DistTar!AF40 -> 399.7375 | S40: =Prop2021DistTar!AG40 -> 65066965.82 | T40: =Prop2021DistTar!AH40 -> 46895776.11 | U40: =Prop2021DistTar!AI40 -> 0 | V40: =Prop2021DistTar!AJ40 -> 0 | W40: =Prop2021DistTar!AK40 -> 87211176.76 | X40: =Prop2021DistTar!AL40 -> 0 | Y40: =Prop2021DistTar!AM40 -> 0 | Z40: =Prop2021DistTar!AN40 -> 0 | AA40: =Prop2021DistTar!AO40 -> 106150.6633 | AB40: =Prop2021DistTar!AP40 -> 47175.12337 | AC40: =Prop2021DistTar!AQ40 -> 0 | AD40: =Prop2021DistTar!AR40 -> 0 | AF40: 107929.125 | AG40: 0 | AH40: 0 | AI40: 0 | AJ40: 0 | AK40: 0 | AL40: 0 | AM40: 0 | AN40: 0 | AO40: 0 | AP40: 0 | AQ40: 0 | AR40: 0 | AS40: 107929.125
B41: =Prop2021DistTar!B41 -> NSP76 Large Multi-rate >750 kVA | D41: 270 | E41: 0 | F41: 0 | G41: 0 | H41: 0 | I41: 0 | J41: 0 | K41: 0 | L41: 0 | M41: 0 | N41: 0 | O41: 0 | P41: 0 | R41: =Prop2021DistTar!AF41 -> 276.04375 | S41: =Prop2021DistTar!AG41 -> 96539748.78 | T41: =Prop2021DistTar!AH41 -> 70796917.76 | U41: =Prop2021DistTar!AI41 -> 0 | V41: =Prop2021DistTar!AJ41 -> 0 | W41: =Prop2021DistTar!AK41 -> 125406478.9 | X41: =Prop2021DistTar!AL41 -> 0 | Y41: =Prop2021DistTar!AM41 -> 0 | Z41: =Prop2021DistTar!AN41 -> 0 | AA41: =Prop2021DistTar!AO41 -> 145281.4198 | AB41: =Prop2021DistTar!AP41 -> 64874.07558 | AC41: =Prop2021DistTar!AQ41 -> 0 | AD41: =Prop2021DistTar!AR41 -> 0 | AF41: 74531.8125 | AG41: 0 | AH41: 0 | AI41: 0 | AJ41: 0 | AK41: 0 | AL41: 0 | AM41: 0 | AN41: 0 | AO41: 0 | AP41: 0 | AQ41: 0 | AR41: 0 | AS41: 74531.8125
B42: =Prop2021DistTar!B42 -> NSP77 Large Multi-rate >2 GWh | D42: 270 | E42: 0 | F42: 0 | G42: 0 | H42: 0 | I42: 0 | J42: 0 | K42: 0 | L42: 0 | M42: 0 | N42: 0 | O42: 0 | P42: 0 | R42: =Prop2021DistTar!AF42 -> 42.2375 | S42: =Prop2021DistTar!AG42 -> 32246242.09 | T42: =Prop2021DistTar!AH42 -> 22577275.47 | U42: =Prop2021DistTar!AI42 -> 0 | V42: =Prop2021DistTar!AJ42 -> 0 | W42: =Prop2021DistTar!AK42 -> 41375655.65 | X42: =Prop2021DistTar!AL42 -> 0 | Y42: =Prop2021DistTar!AM42 -> 0 | Z42: =Prop2021DistTar!AN42 -> 0 | AA42: =Prop2021DistTar!AO42 -> 39295.95982 | AB42: =Prop2021DistTar!AP42 -> 19178.78678 | AC42: =Prop2021DistTar!AQ42 -> 0 | AD42: =Prop2021DistTar!AR42 -> 0 | AF42: 11404.125 | AG42: 0 | AH42: 0 | AI42: 0 | AJ42: 0 | AK42: 0 | AL42: 0 | AM42: 0 | AN42: 0 | AO42: 0 | AP42: 0 | AQ42: 0 | AR42: 0 | AS42: 11404.125
B43: =Prop2021DistTar!B43 -> NSP78 Large Multi-rate >4 GWh | D43: 270 | E43: 0 | F43: 0 | G43: 0 | H43: 0 | I43: 0 | J43: 0 | K43: 0 | L43: 0 | M43: 0 | N43: 0 | O43: 0 | P43: 0 | R43: =Prop2021DistTar!AF43 -> 17.7375 | S43: =Prop2021DistTar!AG43 -> 25893028.55 | T43: =Prop2021DistTar!AH43 -> 17970261.11 | U43: =Prop2021DistTar!AI43 -> 0 | V43: =Prop2021DistTar!AJ43 -> 0 | W43: =Prop2021DistTar!AK43 -> 33397961.12 | X43: =Prop2021DistTar!AL43 -> 0 | Y43: =Prop2021DistTar!AM43 -> 0 | Z43: =Prop2021DistTar!AN43 -> 0 | AA43: =Prop2021DistTar!AO43 -> 25171.59926 | AB43: =Prop2021DistTar!AP43 -> 16125.0005 | AC43: =Prop2021DistTar!AQ43 -> 0 | AD43: =Prop2021DistTar!AR43 -> 0 | AF43: 4789.125 | AG43: 0 | AH43: 0 | AI43: 0 | AJ43: 0 | AK43: 0 | AL43: 0 | AM43: 0 | AN43: 0 | AO43: 0 | AP43: 0 | AQ43: 0 | AR43: 0 | AS43: 4789.125
B44: =Prop2021DistTar!B44 -> NSP81 HV Kva | D44: 270 | E44: 0 | F44: 0 | G44: 0 | H44: 0 | I44: 0 | J44: 0 | K44: 0 | L44: 0 | M44: 0 | N44: 0 | O44: 0 | P44: 0 | R44: =Prop2021DistTar!AF44 -> 30.2375 | S44: =Prop2021DistTar!AG44 -> 124298431.6 | T44: =Prop2021DistTar!AH44 -> 0 | U44: =Prop2021DistTar!AI44 -> 0 | V44: =Prop2021DistTar!AJ44 -> 0 | W44: =Prop2021DistTar!AK44 -> 105890467.8 | X44: =Prop2021DistTar!AL44 -> 0 | Y44: =Prop2021DistTar!AM44 -> 0 | Z44: =Prop2021DistTar!AN44 -> 0 | AA44: =Prop2021DistTar!AO44 -> 97969.5 | AB44: =Prop2021DistTar!AP44 -> 42579.59966 | AC44: =Prop2021DistTar!AQ44 -> 0 | AD44: =Prop2021DistTar!AR44 -> 0 | AF44: 8164.125 | AG44: 0 | AH44: 0 | AI44: 0 | AJ44: 0 | AK44: 0 | AL44: 0 | AM44: 0 | AN44: 0 | AO44: 0 | AP44: 0 | AQ44: 0 | AR44: 0 | AS44: 8164.125
B45: =Prop2021DistTar!B45 -> NSP82 Traction | D45: 270 | E45: 0 | F45: 0 | G45: 0 | H45: 0 | I45: 0 | J45: 0 | K45: 0 | L45: 0 | M45: 0 | N45: 0 | O45: 0 | P45: 0
B46: =Prop2021DistTar!B46 -> NSP83 Small HV | D46: 270 | E46: 0 | F46: 0 | G46: 0 | H46: 0 | I46: 0 | J46: 0 | K46: 0 | L46: 0 | M46: 0 | N46: 0 | O46: 0 | P46: 0 | R46: =Prop2021DistTar!AF46 -> 10.2375 | S46: =Prop2021DistTar!AG46 -> 2797789.1 | T46: =Prop2021DistTar!AH46 -> 1951495.497 | U46: =Prop2021DistTar!AI46 -> 0 | V46: =Prop2021DistTar!AJ46 -> 0 | W46: =Prop2021DistTar!AK46 -> 2416770.473 | X46: =Prop2021DistTar!AL46 -> 0 | Y46: =Prop2021DistTar!AM46 -> 0 | Z46: =Prop2021DistTar!AN46 -> 0 | AA46: =Prop2021DistTar!AO46 -> 12870.8125 | AB46: =Prop2021DistTar!AP46 -> 3028.028555 | AC46: =Prop2021DistTar!AQ46 -> 0 | AD46: =Prop2021DistTar!AR46 -> 0 | AF46: 2764.125 | AG46: 0 | AH46: 0 | AI46: 0 | AJ46: 0 | AK46: 0 | AL46: 0 | AM46: 0 | AN46: 0 | AO46: 0 | AP46: 0 | AQ46: 0 | AR46: 0 | AS46: 2764.125
B47: =Prop2021DistTar!B47 -> NSP91 ST kVA | D47: 270 | E47: 0 | F47: 0 | G47: 0 | H47: 0 | I47: 0 | J47: 0 | K47: 0 | L47: 0 | M47: 0 | N47: 0 | O47: 0 | P47: 0
B48: =Prop2021DistTar!B48 -> NEE93 Latrobe Generators kVA (non published) | D48: 0 | E48: 0 | F48: 0 | G48: 0 | H48: 0 | I48: 0 | J48: 0 | K48: 0 | L48: 0 | M48: 0 | N48: 0 | O48: 0 | P48: 0
B49: =Prop2021DistTar!B49 -> NSP94 - ST kVA >25MVA <20kM | D49: 270 | E49: 0 | F49: 0 | G49: 0 | H49: 0 | I49: 0 | J49: 0 | K49: 0 | L49: 0 | M49: 0 | N49: 0 | O49: 0 | P49: 0
B50: =Prop2021DistTar!B50 -> NSP95 - ST kVA <25MVA >20kM | D50: 270 | E50: 0 | F50: 0 | G50: 0 | H50: 0 | I50: 0 | J50: 0 | K50: 0 | L50: 0 | M50: 0 | N50: 0 | O50: 0 | P50: 0
B51: =Prop2021DistTar!B51 -> NASN19 - Business >40MWh Single Rate | D51: 0 | E51: 0.5751 | F51: 0.5751 | G51: 0 | H51: 0 | I51: 0 | J51: 0 | K51: 0 | L51: 0 | M51: 0 | N51: 0 | O51: 0 | P51: 0 | R51: =Prop2021DistTar!AF51 -> 538.8875706 | S51: =Prop2021DistTar!AG51 -> 25110693.91 | T51: =Prop2021DistTar!AH51 -> 0 | U51: =Prop2021DistTar!AI51 -> 0 | V51: =Prop2021DistTar!AJ51 -> 0 | W51: =Prop2021DistTar!AK51 -> 0 | X51: =Prop2021DistTar!AL51 -> 0 | Y51: =Prop2021DistTar!AM51 -> 0 | Z51: =Prop2021DistTar!AN51 -> 0 | AA51: =Prop2021DistTar!AO51 -> 46042.52516 | AB51: =Prop2021DistTar!AP51 -> 57855.16803 | AC51: =Prop2021DistTar!AQ51 -> 0 | AD51: =Prop2021DistTar!AR51 -> 0 | AF51: 0 | AG51: 144411.6007 | AH51: 0 | AI51: 0 | AJ51: 0 | AK51: 0 | AL51: 0 | AM51: 0 | AN51: 0 | AO51: 0 | AP51: 0 | AQ51: 0 | AR51: 0 | AS51: 144411.6007
B52: =Prop2021DistTar!B52 -> NASN21 - Business >40MWh Two Rate | D52: 0 | E52: 0.5751 | F52: 0 | G52: 0 | H52: 0 | I52: 0.4828 | J52: 0 | K52: 0 | L52: 0 | M52: 0 | N52: 0 | O52: 0 | P52: 0 | R52: =Prop2021DistTar!AF52 -> 4310.612692 | S52: =Prop2021DistTar!AG52 -> 142345744.6 | T52: =Prop2021DistTar!AH52 -> 0 | U52: =Prop2021DistTar!AI52 -> 0 | V52: =Prop2021DistTar!AJ52 -> 0 | W52: =Prop2021DistTar!AK52 -> 121263382.5 | X52: =Prop2021DistTar!AL52 -> 0 | Y52: =Prop2021DistTar!AM52 -> -3978461.303 | Z52: =Prop2021DistTar!AN52 -> 0 | AA52: =Prop2021DistTar!AO52 -> 494986.7639 | AB52: =Prop2021DistTar!AP52 -> 641947.975 | AC52: =Prop2021DistTar!AQ52 -> 0 | AD52: =Prop2021DistTar!AR52 -> 0 | AF52: 0 | AG52: 818630.377 | AH52: 0 | AI52: 0 | AJ52: 0 | AK52: 585459.6108 | AL52: 0 | AM52: 0 | AN52: 0 | AO52: 0 | AP52: 0 | AQ52: 0 | AR52: 0 | AS52: 1404089.988
B53: =Prop2021DistTar!B53 -> NASN11 - Residential Single Rate | D53: 0 | E53: 0.5751 | F53: 0.5751 | G53: 0 | H53: 0 | I53: 0 | J53: 0 | K53: 0 | L53: 0 | M53: 0 | N53: 0 | O53: 0 | P53: 0 | R53: =Prop2021DistTar!AF53 -> 19.96692967 | S53: =Prop2021DistTar!AG53 -> 80493.51087 | T53: =Prop2021DistTar!AH53 -> 0 | U53: =Prop2021DistTar!AI53 -> 0 | V53: =Prop2021DistTar!AJ53 -> 0 | W53: =Prop2021DistTar!AK53 -> 0 | X53: =Prop2021DistTar!AL53 -> 0 | Y53: =Prop2021DistTar!AM53 -> -17314.27667 | Z53: =Prop2021DistTar!AN53 -> 0 | AA53: =Prop2021DistTar!AO53 -> 253.9415106 | AB53: =Prop2021DistTar!AP53 -> 378.096074 | AC53: =Prop2021DistTar!AQ53 -> 0 | AD53: =Prop2021DistTar!AR53 -> 0 | AF53: 0 | AG53: 462.918181 | AH53: 0 | AI53: 0 | AJ53: 0 | AK53: 0 | AL53: 0 | AM53: 0 | AN53: 0 | AO53: 0 | AP53: 0 | AQ53: 0 | AR53: 0 | AS53: 462.918181
B54: =Prop2021DistTar!B54 -> NASN12 - Business Single Rate | D54: 0 | E54: 0.5751 | F54: 0.5751 | G54: 0 | H54: 0 | I54: 0 | J54: 0 | K54: 0 | L54: 0 | M54: 0 | N54: 0 | O54: 0 | P54: 0 | R54: =Prop2021DistTar!AF54 -> 3.443785292 | S54: =Prop2021DistTar!AG54 -> 64170.78729 | T54: =Prop2021DistTar!AH54 -> 0 | U54: =Prop2021DistTar!AI54 -> 0 | V54: =Prop2021DistTar!AJ54 -> 0 | W54: =Prop2021DistTar!AK54 -> 0 | X54: =Prop2021DistTar!AL54 -> 0 | Y54: =Prop2021DistTar!AM54 -> 0 | Z54: =Prop2021DistTar!AN54 -> 0 | AA54: =Prop2021DistTar!AO54 -> 301.883003 | AB54: =Prop2021DistTar!AP54 -> 587.7557165 | AC54: =Prop2021DistTar!AQ54 -> 0 | AD54: =Prop2021DistTar!AR54 -> 0 | AF54: 0 | AG54: 369.0461977 | AH54: 0 | AI54: 0 | AJ54: 0 | AK54: 0 | AL54: 0 | AM54: 0 | AN54: 0 | AO54: 0 | AP54: 0 | AQ54: 0 | AR54: 0 | AS54: 369.0461977
AF55: 0 | AG55: 0 | AH55: 0 | AI55: 0 | AJ55: 0 | AK55: 0 | AL55: 0 | AM55: 0 | AN55: 0 | AO55: 0 | AP55: 0 | AQ55: 0 | AR55: 0 | AS55: 0
AF56: 0 | AG56: 0 | AH56: 0 | AI56: 0 | AJ56: 0 | AK56: 0 | AL56: 0 | AM56: 0 | AN56: 0 | AO56: 0 | AP56: 0 | AQ56: 0 | AR56: 0 | AS56: 0
AF57: 0 | AG57: 0 | AH57: 0 | AI57: 0 | AJ57: 0 | AK57: 0 | AL57: 0 | AM57: 0 | AN57: 0 | AO57: 0 | AP57: 0 | AQ57: 0 | AR57: 0 | AS57: 0
AF58: 0 | AG58: 0 | AH58: 0 | AI58: 0 | AJ58: 0 | AK58: 0 | AL58: 0 | AM58: 0 | AN58: 0 | AO58: 0 | AP58: 0 | AQ58: 0 | AR58: 0 | AS58: 0
AF59: 0 | AG59: 0 | AH59: 0 | AI59: 0 | AJ59: 0 | AK59: 0 | AL59: 0 | AM59: 0 | AN59: 0 | AO59: 0 | AP59: 0 | AQ59: 0 | AR59: 0 | AS59: 0
AF60: 0 | AG60: 0 | AH60: 0 | AI60: 0 | AJ60: 0 | AK60: 0 | AL60: 0 | AM60: 0 | AN60: 0 | AO60: 0 | AP60: 0 | AQ60: 0 | AR60: 0 | AS60: 0
AF61: 0 | AG61: 0 | AH61: 0 | AI61: 0 | AJ61: 0 | AK61: 0 | AL61: 0 | AM61: 0 | AN61: 0 | AO61: 0 | AP61: 0 | AQ61: 0 | AR61: 0 | AS61: 0
AF62: 0 | AG62: 0 | AH62: 0 | AI62: 0 | AJ62: 0 | AK62: 0 | AL62: 0 | AM62: 0 | AN62: 0 | AO62: 0 | AP62: 0 | AQ62: 0 | AR62: 0 | AS62: 0
AF63: 0 | AG63: 0 | AH63: 0 | AI63: 0 | AJ63: 0 | AK63: 0 | AL63: 0 | AM63: 0 | AN63: 0 | AO63: 0 | AP63: 0 | AQ63: 0 | AR63: 0 | AS63: 0
AF64: 0 | AG64: 0 | AH64: 0 | AI64: 0 | AJ64: 0 | AK64: 0 | AL64: 0 | AM64: 0 | AN64: 0 | AO64: 0 | AP64: 0 | AQ64: 0 | AR64: 0 | AS64: 0
AF65: 0 | AG65: 0 | AH65: 0 | AI65: 0 | AJ65: 0 | AK65: 0 | AL65: 0 | AM65: 0 | AN65: 0 | AO65: 0 | AP65: 0 | AQ65: 0 | AR65: 0 | AS65: 0
R66: 432634.6587 | S66: 1786652652 | T66: 531414916.4 | U66: 1510878.359 | V66: 0 | W66: 1214863394 | X66: 0 | Y66: -148486500.8 | Z66: 0 | AA66: 1175008.639 | AB66: 968350.2659 | AC66: 0 | AD66: 0 | AF66: 423665.6832 | AG66: 7075738.194 | AH66: 1896209.546 | AI66: 8543.392463 | AJ66: 0 | AK66: 2860397.447 | AL66: 0 | AM66: 0 | AN66: 0 | AO66: 0 | AP66: 0 | AQ66: 0 | AR66: 0 | AS66: 12264554.26

Sheet 2021JSRevCont
B2: ="Tariff Approval - "&'Model update'!$C$3 -> Tariff Approval - AusNet Services | C2: ='Model update'!$C$5&"JSRevCont" -> 2021JSRevCont
B4: Jurisdictional Scheme Amounts (JSA)
B6: Year (t) | C6: ='Model update'!C5 -> 2021
B8: Table 1- Compliance with JSA Revenue Formula
B9: Revenue from Jurisdictional Scheme Amounts charges for year t | C9: =Prop2021JSTar!AS66 -> 12264554.26
B10: Total JSA related payments for year t | C10: =C17 -> 12265341.5
C11: =IF(C9="","",IF(C10>=C9,"JSA REVENUE FORMULA COMPLIANT","JSA REVENUE FORMULA BREACHED")) -> JSA REVENUE FORMULA COMPLIANT
B14: Table 3 - PFIT & TFIT charges for year t
B15: PFIT | C15: 12265341.5
B16: TFIT | C16: 0
B17: PFIT & TFIT charges | C17: =SUM(C15:C16) -> 12265341.5
